Workbook

Sheet HVAC-Tool
C3: HVAC Calculator Tool
C5: ="Version: " & INDEX(CurrentVersion_List,MATCH("a",CurrentVersionSelected_List,0)) -> Version: 70320.5 | H5: Application Date
H6: Invoice/Install Date | N6: =IF(InstallDate="","",INDEX(TariffTable,MATCH(InstallState,InstallStates_List,0),3)) ->  | O6: =TODAY() -> 2026-02-23 | P6: =IF(InstallDate="","Please enter project date",IF(ISNUMBER(SEARCH("applicable to",N12)),"Please contact Coordinator","")) -> Please enter project date
C7: Project Information | R7: Instructions
C8: Project Name/Type | P8: User Input Fields | S8: 1 - Complete all yellow fields | BY8: TRUE
C9: Installation Address | P9: Completed Fields | S9: 2 - Save a copy of this HVAC tool | BY9: FALSE
C10: City/State/Zip | H10: WY | P10: Calculated Fields | BY10: TRUE
C11: Contractor/Dealer Name | S11: 4 - Follow the instructions on the incentive application
C12: Participant Information | N12: =IF(AND(InstallState="",InstallDate=""),"",IF(InstallState="","Please select the project state to continue.",IF(InstallDate="","Please enter the project invoice/install date to continue.","Calculator results are in accordance with "&INDEX(StateName_List,MATCH(InstallState,StateAbrev_List,0))&" Tariff "&IF(InstallState="CA","A-140","140"))&", effective "&TEXT(INDEX(TariffTable,MATCH(InstallState,InstallStates_List,0),3),"mm/dd/yyyy")&", and are estimates only."))&IF(InstallState="","",IF(InstallDate="","",IF(InstallDate<INDEX(TariffTable,MATCH(InstallState,InstallStates_List,0),3)," Please contact your project Coordinator for an HVAC calculator tool applicable to your project."," Actual energy savings and incentives paid will be determined based on the results of a post-installation inspection and review of project invoices."&" Calculator results are only valid for equipment purchased and installed, on or after the tariff effective date."))) -> Please enter the project invoice/install date to continue., effective 10/02/2020, and are estimates only.
C13: Business Name
C14: Address
C15: City/State/Zip
C16: Contact Person/Title
C17: Phone/Email | N17: Incentive Payee Information
C18: Business Type | N18: Select where the incentive will be paid in the drop down selector >>
C19: Participant is >> | N19: Business Name
C20: Account Information (as shown on bill) | H20: =IF(RateSchedule="","",RateScheduleEffectiveDateNote) ->  | N20: Contact Name/Phone
C21: Account Name | N21: Address
C22: Account/Meter/Rate | N22: City/State/Zip
C24: Equipment Information
R26: HVAC Equipment Efficiencies
C27: HVAC Type | G27: System Type | H27: Manufacturer | J27: Model Number | L27: AHRI Reference Number | O27: Cooling Capacity (BTU/Hr) | P27: Cooling Capacity (Tons) | Q27: EER | R27: SEER / IEER | T27: HSPF / COP | V27: Wet/Dry Bulb Temperature (F°) | X27: Quantity | Y27: HP (CTA-2045)
C28: 1 | P28: =IF($O28="","",ROUND($O28/12000,1)) -> 
C29: 2
C30: 3
C31: 4
C32: 5
C33: 6
C34: 7
C35: Savings/Incentive Information | H35: =IF(InstallState="","","Baseline Energy Code: " & HVAC!D26) -> Baseline Energy Code: IECC 2009, Tables 503.2.3(1) & 503.2.3(2)
C36: HVAC Type | G36: Incentive | H36: Incentive Rate ($/ton) | I36: kWh/Yr Savings | K36: kW/Mo Savings | M36: Deemed Costs | P36: Monthly Savings | R36: Annual Savings | T36: Net Cost | V36: Pre-Incentive Payback (Years) | X36: Post-Incentive Payback (Years)
C37: 1 | D37: =IF(D28="","",D28) ->  | G37: =IF(HVAC!Q17=0,"",HVAC!Q17) ->  | H37: =IF($O28="","",IFERROR(ROUND(G37/(P28*X28),1),"")) ->  | I37: =IF(HVAC!S17=0,"",HVAC!S17) ->  | K37: =IF(HVAC!T17=0,"",HVAC!T17) ->  | M37: =IF(HVAC!U17=0,"",HVAC!U17) ->  | P37: =IF(I37="","",IFERROR(I37/12*HVAC!$BC$9,0)+IFERROR(K37*HVAC!$BD$9,0)) ->  | R37: =IF(I37="","",IFERROR(I37*HVAC!$BC$9,0)+IFERROR(K37*12*HVAC!$BD$9,0)) ->  | T37: =IF(M37="","",M37-G37) ->  | V37: =IF(R37="","",M37/R37) ->  | X37: =IF(R37="","",T37/R37) -> 
C38: 2 | D38: =IF(D29="","",D29) ->  | G38: =IF(HVAC!Q18=0,"",HVAC!Q18) ->  | H38: =IF($O29="","",IFERROR(ROUND(G38/(P29*X29),1),"")) ->  | I38: =IF(HVAC!S18=0,"",HVAC!S18) ->  | K38: =IF(HVAC!T18=0,"",HVAC!T18) ->  | M38: =IF(HVAC!U18=0,"",HVAC!U18) ->  | P38: =IF(I38="","",IFERROR(I38/12*HVAC!$BC$9,0)+IFERROR(K38*HVAC!$BD$9,0)) ->  | R38: =IF(I38="","",IFERROR(I38*HVAC!$BC$9,0)+IFERROR(K38*12*HVAC!$BD$9,0)) ->  | V38: =IF(M38="","",M38/R38) -> 
C39: 3 | G39: =IF(HVAC!Q19=0,"",HVAC!Q19) ->  | I39: =IF(HVAC!S19=0,"",HVAC!S19) ->  | K39: =IF(HVAC!T19=0,"",HVAC!T19) ->  | M39: =IF(HVAC!U19=0,"",HVAC!U19) ->  | P39: =IF(I39="","",IFERROR(I39/12*HVAC!$BC$9,0)+IFERROR(K39*HVAC!$BD$9,0)) ->  | R39: =IF(I39="","",IFERROR(I39*HVAC!$BC$9,0)+IFERROR(K39*12*HVAC!$BD$9,0)) -> 
C40: 4 | G40: =IF(HVAC!Q20=0,"",HVAC!Q20) ->  | I40: =IF(HVAC!S20=0,"",HVAC!S20) ->  | K40: =IF(HVAC!T20=0,"",HVAC!T20) ->  | M40: =IF(HVAC!U20=0,"",HVAC!U20) ->  | P40: =IF(I40="","",IFERROR(I40/12*HVAC!$BC$9,0)+IFERROR(K40*HVAC!$BD$9,0)) ->  | R40: =IF(I40="","",IFERROR(I40*HVAC!$BC$9,0)+IFERROR(K40*12*HVAC!$BD$9,0)) -> 
C41: 5 | G41: =IF(HVAC!Q21=0,"",HVAC!Q21) ->  | I41: =IF(HVAC!S21=0,"",HVAC!S21) ->  | K41: =IF(HVAC!T21=0,"",HVAC!T21) ->  | M41: =IF(HVAC!U21=0,"",HVAC!U21) ->  | P41: =IF(I41="","",IFERROR(I41/12*HVAC!$BC$9,0)+IFERROR(K41*HVAC!$BD$9,0)) ->  | R41: =IF(I41="","",IFERROR(I41*HVAC!$BC$9,0)+IFERROR(K41*12*HVAC!$BD$9,0)) -> 
C42: 6 | G42: =IF(HVAC!Q22=0,"",HVAC!Q22) ->  | I42: =IF(HVAC!S22=0,"",HVAC!S22) ->  | K42: =IF(HVAC!T22=0,"",HVAC!T22) ->  | M42: =IF(HVAC!U22=0,"",HVAC!U22) ->  | P42: =IF(I42="","",IFERROR(I42/12*HVAC!$BC$9,0)+IFERROR(K42*HVAC!$BD$9,0)) ->  | R42: =IF(I42="","",IFERROR(I42*HVAC!$BC$9,0)+IFERROR(K42*12*HVAC!$BD$9,0)) -> 
C43: 7 | G43: =IF(HVAC!Q23=0,"",HVAC!Q23) ->  | I43: =IF(HVAC!S23=0,"",HVAC!S23) ->  | K43: =IF(HVAC!T23=0,"",HVAC!T23) ->  | M43: =IF(HVAC!U23=0,"",HVAC!U23) ->  | P43: =IF(I43="","",IFERROR(I43/12*HVAC!$BC$9,0)+IFERROR(K43*HVAC!$BD$9,0)) ->  | R43: =IF(I43="","",IFERROR(I43*HVAC!$BC$9,0)+IFERROR(K43*12*HVAC!$BD$9,0)) -> 
C44: Project Totals | G44: =SUM(G37:G43) -> 0 | I44: =SUM(I37:J43) -> 0 | K44: =SUM(K37:L43) -> 0 | M44: =SUM(M37:O43) -> 0 | P44: =SUM(P37:Q43) -> 0 | R44: =SUM(R37:S43) -> 0 | T44: =SUM(T37:U43) -> 0 | V44: =IF(R44=0, 0,M44/R44) -> 0 | X44: =IF(R44=0,,T44/R44) -> 0

Sheet HVAC (hidden)
A1: =IF(H9="","",IF(OR(H9="UT",H9="ID",H9="WY"),2,1)) -> 2 | B1: RMP or PP | BF1: Lookup Tables Do Not Change
D2: This sheet used for calculations | U2: Version: | BG2: HVAC Type | BH2: System Type | BI2: Phase | BJ2: Eff2 | BK2: DB/WB
U3: =INDEX(CurrentVersion_List,MATCH("a",CurrentVersionSelected_List,0)) -> 70320.5 | AE3: Effective Dates | AF3: Tariff | AG3: Tool | AW3: 1 | AX3: ID | AY3: RMP | AZ3: Rate Lookups | BB3: Simplified Rate Table For FinAnswer Express | BH3: Split (1 Phase) | BI3: 1 | BJ3: IPLV | BK3: 47/43 | BL3: =$H$9 -> WY | CB3: PTAC Calcs from Deemed Savings | CD3: PTAC | CG3: Incentive $/Ton
B4: Date | D4: =AY10 -> 2026-02-23 | E4: =IF(H9="","","Calculator results are in accordance with the tariff effective "&VLOOKUP(H9,TariffTable,2,FALSE)) -> Calculator results are in accordance with the tariff effective October 2, 2020 | S4: Project # | T4: =ProjectNumber ->  | AE4: CA | AF4: September 24, 2020 | AG4: 2020-09-24 | AW4: 2 | AX4: UT | BH4: Package (1 Phase) | BI4: 3 | BJ4: SEER | BK4: 17/15 | BL4: =IF($BL$3="UT",1,IF($BL$3="WA",2,IF($BL$3="CA",3,IF($BL$3="ID",4,IF($BL$3="WY",5,0))))) -> 5 | BR4: =IF($BL$4=0,0,OFFSET(BR4,$BL$5*$BL$4,0)) -> Code | BS4: EFLCH | BT4: EFLHH | BU4: NTG | BV4: CF | BW4: Cooling Months | CD4: Cost | CE4: kW/Unit | CF4: Gross kWh/yr | CK4: Incentive
B5: Project/Customer Information (Optional) | L5: Incentive Payee Information (Optional) | AE5: ID | AF5: January 20, 2018 | AG5: 2018-01-20 | AW5: 3 | AX5: WY | BH5: Split (3 Phase) | BI5: HSPF | BJ5: IEER | BL5: 61 | BR5: IECC 2009, Tables 503.2.3(1) & 503.2.3(2) | BS5: 666.89 | BT5: =IF($BL$4=0,0,OFFSET(BT5,$BL$5*$BL$4,0)) -> 2588 | BU5: 1 | BV5: 1 | BW5: 5 | CD5: =IF($BL$4=0,0,OFFSET(CD5,$BL$5*$BL$4,0)) -> 200 | CE5: =IF($BL$4=0,0,OFFSET(CE5,$BL$5*$BL$4,0)) -> 0.098 | CF5: =IF($BL$4=0,0,OFFSET(CF5,$BL$5*$BL$4,0)) -> 400 | CG5: =IF($BL$4=0,0,OFFSET(CG5,$BL$5*$BL$4,0)) -> 50 | CK5: Tier | CL5: =BS6 -> 1 | CM5: =BU6 -> 125
B6: Project Name | D6: =ProjectName -> 0 | L6: Attention | AE6: UT | AF6: April 23, 2019 | AG6: 2020-01-01 | AW6: 4 | AX6: CA | AY6: PP | BB6: =CONCATENATE(AT8, " Ave Secondary rates except where noted") -> Updated 2/28/2020 Ave Secondary rates except where noted | BH6: Package (3 Phase) | BI6: COP | BL6: Baseline | BO6: 0 | BP6: =BV6 -> per ton | BR6: =IF($BL$4=0,0,OFFSET(BR6,$BL$5*$BL$4,0)) -> Tier | BS6: =IF($BL$4=0,0,OFFSET(BS6,$BL$5*$BL$4,0)) -> 1 | BU6: =IF($BL$4=0,0,OFFSET(BU6,$BL$5*$BL$4,0)) -> 125 | BV6: =IF($BL$4=0,0,OFFSET(BV6,$BL$5*$BL$4,0)) -> per ton | BX6: =IF($BL$4=0,0,OFFSET(BX6,$BL$5*$BL$4,0)) -> Tier | BY6: =IF($BL$4=0,0,OFFSET(BY6,$BL$5*$BL$4,0)) -> 2 | CA6: =IF($BL$4=0,0,OFFSET(CA6,$BL$5*$BL$4,0)) -> 62 | CB6: =IF($BL$4=0,0,OFFSET(CB6,$BL$5*$BL$4,0)) -> per ton | CD6: =IF($BL$4=0,0,OFFSET(CD6,$BL$5*$BL$4,0)) -> Tier | CE6: =IF($BL$4=0,0,OFFSET(CE6,$BL$5*$BL$4,0)) -> 3 | CG6: =IF($BL$4=0,0,OFFSET(CG6,$BL$5*$BL$4,0)) -> 75 | CH6: =IF($BL$4=0,0,OFFSET(CH6,$BL$5*$BL$4,0)) -> per ton | CK6: Tier | CL6: =BY6 -> 2 | CM6: =CA6 -> 62
B7: Business Name | D7: =CustomerBusinessName -> 0 | L7: Business Name | O7: =PayeeBusinessName -> 0 | AE7: WA | AF7: August 1, 2020 | AG7: 2020-08-01 | AW7: 5 | AX7: WA | BL7: Cooling | BO7: Heating | BR7: Cooling | BU7: Heating | BW7: Gross Incremental Cost/Ton | BX7: Cooling | CA7: Heating | CC7: Gross Incremental Cost/Ton | CD7: Cooling | CG7: Heating | CI7: Gross Incremental Cost/Ton | CK7: Tier | CL7: =CE6 -> 3 | CM7: =CG6 -> 75
B8: Address | D8: =InstallAddress -> 0 | L8: Address | O8: =PayeeAddress -> 0 | AE8: WY | AF8: October 2, 2020 | AG8: 2020-10-02 | AT8: Updated 2/28/2020 | AW8: 6 | AX8: AK | AY8: Required Filled out | BB8: State | BC8: Cost | BJ8: Size (BTU/Hr or CFM) | BL8: EER | BM8: SEER IPLV | BN8: IEER | BO8: HSPF COP @ DB/WB | BR8: EER | BS8: SEER IPLV | BT8: IEER | BU8: HSPF COP @ DB/WB | BX8: EER | BY8: SEER IPLV | BZ8: IEER | CA8: HSPF COP @ DB/WB | CD8: EER | CE8: SEER IPLV | CF8: IEER | CG8: HSPF COP @ DB/WB
B9: City | D9: =InstallCity -> 0 | G9: State | H9: =InstallState -> WY | I9: Zip | J9: =InstallZip -> 0 | L9: City | O9: =PayeeCity -> 0 | R9: State | S9: =PayeeState -> 0 | T9: Zip | U9: =PayeeZip -> 0 | AT9: Rates Effective as of: | AW9: 7 | AX9: AL | AY9: =IF(F12="Project Name, State, and Rate are Required.",FALSE,TRUE) -> TRUE | BC9: =IF($H$9="","",VLOOKUP($H$9&" "&$J$11,$BB$11:$BD$67,2,0)) ->  | BD9: =IF($H$9="","",IF(VLOOKUP($H$9&" "&$J$11,$BB$11:$BD$67,3,0)=0,0,VLOOKUP($H$9&" "&$J$11,$BB$12:$BD$67,3,0))) ->  | BG9: Equip Type | BH9: Category | BI9: Phase | BJ9: Min | BK9: Max | BO9: 47/43 | BP9: 17/15 | BU9: 47/43 | BV9: 17/15 | CA9: 47/43 | CB9: 17/15 | CG9: 47/43 | CH9: 17/15 | CK9: HVAC Type_140 | CN9: HVAC Type_115
B10: Contact Person | D10: =CustomerContactName -> 0 | H10: Phone | I10: =CustomerContactPhone -> 0 | L10: Note | AT10: CA | AU10: 2019-04-01 | AW10: 8 | AX10: AR | AY10: =TODAY() -> 2026-02-23 | BC10: kWh | BD10: Demand | BF10: 1 | BG10: =IF($BL$4=0,0,OFFSET(BG10,$BL$5*$BL$4,0)) -> Heat Pump (Air Cooled) | BH10: Split (1 Phase) | BI10: 1 | BJ10: 0 | BK10: 65000 | BL10: 10.87 | BM10: 14 | BN10: 0 | BO10: 8.2 | BP10: 8.2 | BQ10: 0 | BR10: 0 | BS10: 0 | BT10: 0 | BU10: 0 | BV10: 0 | BW10: =IF($BL$4=0,0,OFFSET(BW10,$BL$5*$BL$4,0)) -> 0 | BX10: 13 | BY10: 16 | BZ10: 0 | CA10: 9 | CB10: 9 | CC10: 450 | CD10: 0 | CE10: 0 | CF10: 0 | CG10: 0 | CH10: 0 | CI10: 0 | CK10: Heat Pump (Air Cooled) | CN10: Unitary AC (Air Cooled)
B11: Account Number | D11: =AccountNumber -> 0 | H11: Rate Schedule | J11: =RateSchedule -> 0 | L11: Please fill in all blue fields. Incentive and energy savings are estimates only. The actual incentive paid will be determined based on the results of a post-installation inspection and review of project invoices. Please be sure all capacities and efficiencies are reported @ AHRI conditions. | AT11: ID | AU11: 2018-06-01 | AW11: 9 | AX11: AZ | AZ11: =IF(ISERROR(MID(VLOOKUP(LARGE($BA$11:$BA$67,AW3),$BA$11:$BB$68,2,),4,5)),"",MID(VLOOKUP(LARGE($BA$11:$BA$67,AW3),$BA$11:$BB$68,2,),4,5)) -> 25 | BA11: =IF(LEFT(BB11,2)=$H$9,AW3,"") -> 1 | BB11: WY 212 | BC11: 0.06142 | BF11: 2 | BG11: =IF($BL$4=0,0,OFFSET(BG11,$BL$5*$BL$4,0)) -> Heat Pump (Air Cooled) | BH11: Package (1 Phase) | BI11: 1 | BJ11: 0 | BK11: 65000 | BL11: 10.87 | BM11: 14 | BN11: 0 | BO11: 8 | BP11: 8 | BQ11: 0 | BR11: 0 | BS11: 0 | BT11: 0 | BU11: 0 | BV11: 0 | BW11: 0 | BX11: 12 | BY11: 16 | BZ11: 0 | CA11: 8.2 | CB11: 8.2 | CC11: 450 | CD11: 0 | CE11: 0 | CF11: 0 | CG11: 0 | CH11: 0 | CI11: 0 | CK11: Heat Pump (Water Cooled) | CN11: Heat Pump (Air Cooled)
B12: Meter Number | D12: =MeterNumber -> 0 | F12: =IF(OR($H$9="",$J$11="",$D$6=""),"Project Name, State, and Rate are Required.",IF(ISERROR(MATCH($J$11,$AZ$11:$AZ$67,0)),CONCATENATE($J$11," is not a valid rate for ",$H$9),IF($BC$9=0,"Non-Qualifing Rate",CONCATENATE("Rate ",J11," effective as of ",TEXT(VLOOKUP(H9,AT10:AU14,2,FALSE),"mm/dd/yyyy"))))) -> 0 is not a valid rate for WY | AT12: UT | AU12: 2019-11-22 | AW12: 10 | AX12: CO | AZ12: 28 | BA12: =IF(LEFT(BB12,2)=$H$9,AW4,"") -> 2 | BB12: WY 210 | BC12: 0.03401 | BD12: 15.744 | BF12: 3 | BG12: Heat Pump (Air Cooled) | BH12: Split (3 Phase) | BI12: 3 | BJ12: 0 | BK12: 65000 | BL12: 9.23 | BM12: 13 | BN12: 0 | BO12: 7.7 | BP12: 7.7 | BQ12: 0 | BR12: 0 | BS12: 0 | BT12: 0 | BU12: 0 | BV12: 0 | BW12: 0 | BX12: 12.5 | BY12: 15 | BZ12: 0 | CA12: 8.5 | CB12: 8.5 | CC12: 150 | CD12: 13 | CE12: 16 | CF12: 0 | CG12: 9 | CH12: 9 | CI12: 450 | CK12: Heat Pump (Air Cooled, Replacing Electric Resistance) | CN12: Heat Pump (Water Cooled)
B13: Project Information and Energy/Cost Savings | AT13: WA | AU13: 2019-11-22 | AW13: 11 | AX13: CT | AZ13: 33 | BA13: 3 | BB13: WY 58 | BC13: 0.05997 | BF13: 4 | BG13: Heat Pump (Air Cooled) | BH13: Package (3 Phase) | BI13: 3 | BJ13: 0 | BK13: 65000 | BL13: 9.23 | BM13: 13 | BN13: 0 | BO13: 7.7 | BP13: 7.7 | BQ13: 0 | BR13: 0 | BS13: 0 | BT13: 0 | BU13: 0 | BV13: 0 | BW13: 0 | BX13: 12 | BY13: 15 | BZ13: 0 | CA13: 8.2 | CB13: 8.2 | CC13: 150 | CD13: 12 | CE13: 16 | CF13: 0 | CG13: 8.2 | CH13: 8.2 | CI13: 450 | CK13: Ground-Source Heat Pump (Water-to-Air) | CN13: Ground-Source Heat Pump (Water-to-Air)
B14: HVAC Type | E14: System Type | F14: Cooling Capacity (BTU/Hr) | H14: Eff 1 (EER) | I14: Eff 2 (SEER, IPLV, or IEER) | K14: Eff 3 (HSPF COP) | N14: Wet/Dry Bulb (F°) | O14: QTY | P14: Tier | Q14: =IF(SUM(O17:O23)=0,"",IF(H9="WA",CONCATENATE("Tier ",CL6," = $",CM6,"/ton, ","Tier ",CL7," = $",CM7,"/ton."),CONCATENATE("Tier ",CL5," = $",CM5,"/ton, ","Tier ",CL6," = $",CM6,"/ton, ","Tier ",CL7," = $",CM7,"/ton."))) ->  | AE14: Eff1 | AI14: Eff2 | AM14: Eff3 | AT14: WY | AU14: 2019-11-22 | AW14: 12 | AX14: DE | AZ14: 40 | BA14: 4 | BB14: WY 54 | BC14: 0.06603 | BF14: 5 | BG14: Heat Pump (Air Cooled) | BH14: Split (3 Phase) Package (3 Phase) | BI14: 3 | BJ14: 65000 | BK14: 135000 | BL14: 11 | BM14: 10.2 | BN14: 11.2 | BO14: 3.3 | BP14: 2.25 | BQ14: 0 | BR14: 0 | BS14: 0 | BT14: 0 | BU14: 0 | BV14: 0 | BW14: 0 | BX14: 11.6 | BY14: 0 | BZ14: 13.4 | CA14: 3.4 | CB14: 2.4 | CC14: 150 | CD14: 0 | CE14: 0 | CF14: 0 | CG14: 0 | CH14: 0 | CI14: =IF($BL$4=0,0,OFFSET(CI14,$BL$5*$BL$4,0)) -> 0 | CK14: Ground-Source Heat Pump (Water-to-Water) | CN14: Ground-Source Heat Pump (Water-to-Water)
Q15: Incentive | S15: kWh/Yr | T15: kW/Month | U15: Deemed Cost | W15: =COUNT(SEARCH({"UT","WY"},State)) -> 1 | AA15: For Demand | AB15: For Cooling | AC15: For heating | AT15: Rates for Software 11.22.2019 | AW15: 13 | AX15: FL | AZ15: 46 | BA15: 5 | BB15: WY 48T | BC15: 0.03221 | BD15: 17.255 | BF15: 6 | BG15: Heat Pump (Air Cooled) | BH15: Split (3 Phase) Package (3 Phase) | BI15: 3 | BJ15: 135000 | BK15: 240000 | BL15: 10.6 | BM15: 9.5 | BN15: 10.7 | BO15: 3.2 | BP15: 2.05 | BQ15: 0 | BR15: 0 | BS15: 0 | BT15: 0 | BU15: 0 | BV15: 0 | BW15: 0 | BX15: 10.7 | BY15: 0 | BZ15: 12.6 | CA15: 3.3 | CB15: 2.1 | CC15: 150 | CD15: 0 | CE15: 0 | CF15: 0 | CG15: 0 | CH15: 0 | CI15: 0 | CK15: Ground-Source Heat Pump (DGX) | CN15: Unitary AC (Water Cooled)
W16: Cooling kWh | X16: Heating kWh | Y16: Row | Z16: Cap/1000 | AA16: 1/EFF1 | AB16: 1/EFF2 | AC16: 1/EFF3 | AD16: Cooling Months | AE16: Tier | AF16: Code | AG16: Min | AI16: Tier | AJ16: Code | AK16: Min | AM16: Tier | AN16: Code | AO16: Min | AW16: 14 | AX16: GA | AZ16: 48T | BA16: 6 | BB16: WY 46 | BC16: 0.03351 | BD16: 20.279 | BF16: 7 | BG16: Heat Pump (Air Cooled) | BH16: Split (3 Phase) Package (3 Phase) | BI16: 3 | BJ16: 240000 | BK16: 10000000 | BL16: 9.5 | BM16: 9.2 | BN16: 9.6 | BO16: 3.2 | BP16: 2.05 | BQ16: 0 | BR16: 0 | BS16: 0 | BT16: 0 | BU16: 0 | BV16: 0 | BW16: 0 | BX16: 10.1 | BY16: 0 | BZ16: 11.6 | CA16: 3.3 | CB16: 2.1 | CC16: 150 | CD16: 0 | CE16: 0 | CF16: 0 | CG16: 0 | CH16: 0 | CI16: 0 | CK16: Unitary AC (Air Cooled) | CN16: Unitary AC (Evaporatively Cooled)
B17: ='HVAC-Tool'!D28 -> 0 | E17: =IF(OR(HVAC_Type_1="Ground-Source Heat Pump",HVAC_Type_1="Groundwater Source Heat Pump", HVAC_Type_1="Heat Pump (Water Cooled)"),0,'HVAC-Tool'!G28) -> 0 | F17: ='HVAC-Tool'!O28 -> 0 | H17: ='HVAC-Tool'!Q28 -> 0 | I17: ='HVAC-Tool'!R28 -> 0 | J17: ='HVAC-Tool'!S28 -> 0 | K17: ='HVAC-Tool'!T28 -> 0 | M17: ='HVAC-Tool'!U28 -> 0 | N17: =IF('HVAC-Tool'!V28="","",'HVAC-Tool'!V28) ->  | O17: =IF('HVAC-Tool'!X28="","",'HVAC-Tool'!X28) ->  | P17: =IF(OR($B17="",$F17="",$H17="",$O17="",IF($B17=HVACType_UnitaryAC_AirCooled,OR($E17="",$I17="",$J17=""),IF($B17=HVACType_HeatPump_WaterCooled,OR($K17="",$M17=""),IF($B17=HVACType_HeatPump_AirCooled,OR($E17="",$I17="",$J17="",$K17="",$M17="",$N17=""),FALSE)))),"",MIN($AE17,$AI17,$AM17)) ->  | Q17: =IF($P17=0,"Does not qualify",IF($P17="","",IF(AND(COUNT(SEARCH("VRF",B17)),COUNT(SEARCH({"UT"},HVAC!InstallState))),(VLOOKUP(P17,$CL$5:$CM$7,2,FALSE)+50)*(ROUND($F17/12000,1)*$O17),IF(ISNUMBER(SEARCH("electric resistance",B17)),(ROUNDDOWN(200*1.25,0)+(VLOOKUP(P17,$CL$5:$CM$7,2,FALSE)*(P17-1)))*ROUND($F17/12000,1)*$O17,VLOOKUP(P17,$CL$5:$CM$7,2,FALSE)*ROUND($F17/12000,1)*$O17) + IF(AND('HVAC-Tool'!Y28="Yes",ISNUMBER(SEARCH("heat pump",B17))),100,0)))) ->  | S17: =IF(P17=0,0,IF(P17="","",SUM(W17:X17)*O17)) ->  | T17: =IF($P17=0,0,IF($P17="","",Z17*AA17*O17*IF(OR($B17=HVACType_UnitaryAC_AirCooled,$B17=HVACType_UnitaryAC_EvapCooled,$B17=HVACType_UnitaryAC_WaterCooled),$BV$5*$BU$5,1))) ->  | U17: =IF($P17=0,0,IF($P17="","",IF($P17=0,0,$O17*$F17/12000*OFFSET($BQ$9,$Y17,P17*6)))) ->  | W17: =EFLCH*AB17*NTG*Z17 -> 0 | X17: =$AC17*EFLHH*$Z17/IF($M17="COP",3.412,1) -> 0 | Y17: =IF(OR($B17="",$F17=""),0,SUMPRODUCT($BF$10:$BF$63*($BG$10:$BG$63=$B17)*($F17>=$BJ$10:$BJ$63)*(F17<$BK$10:$BK$63)*(ISNUMBER(FIND($E17,$BH$10:$BH$63))))) -> 0 | Z17: =F17/1000 -> 0 | AA17: =IF(ISERROR(1/(OFFSET($BL$9,$Y17,0))-1/($H17)),0,1/(OFFSET($BL$9,$Y17,0))-1/($H17)) -> 0 | AB17: =IF(ISERROR(1/(OFFSET($BM$9,$Y17,IF($J17="IEER",1,0)))-1/($I17)),0,1/(OFFSET($BM$9,$Y17,IF($J17="IEER",1,0)))-1/($I17)) -> 0 | AC17: =IF(ISERROR((1/OFFSET($BO$9,$Y17,IF($N17=$BK$4,1,0))-1/$K17)),0,(1/OFFSET($BO$9,$Y17,IF($N17=$BK$4,1,0))-1/$K17)) -> 0 | AD17: =IF(OR($B17=$CK$14,$B17=$CK$16,$B17=$CK$17),$BW$5,12) -> 12 | AE17: =IF($Y17=0,0,IF(AND(AF17=0),MIN(AI17,AM17),IF(OR(AND($H17>=OFFSET($CD$9,$Y17,0),OFFSET($CD$9,$Y17,0)>0),AND($H17=0,AF17=0)),$CE$6,IF(AND($H17>=OFFSET($BX$9,$Y17,0),OFFSET($BX$9,$Y17,0)>0),$BY$6,IF(AND($H17>=OFFSET($BR$9,$Y17,0),OFFSET($BR$9,$Y17,0)>0),$BS$6,0))))) -> 0 | AF17: =IF($Y17=0,0,OFFSET($BL$9,$Y17,0)) -> 0 | AG17: =IF($Y17=0,0,OFFSET($BL$9,$Y17,$AE17*6)) -> 0 | AH17: =IF($Y17=0,0,"EER") -> 0 | AI17: =IF($Y17=0,0,IF(AND(AJ17=0),3,IF(OR($B17=HVACType_HeatPump_WaterCooled,$B17=HVACType_GroundSourceHeatPump,$B17=HVACType_GroundwaterSourceHeatPump,$B17=HVACType_VRF_HP__Water_Source,AND($I17>=OFFSET($CE$9,$Y17,IF($J17=$BJ$5,1,0)),OFFSET($CE$9,$Y17,IF($J17=$BJ$5,1,0))>0)),$CE$6,IF(AND($I17>=OFFSET($BY$9,$Y17,IF($J17=$BJ$5,1,0)),OFFSET($BY$9,$Y17,IF($J17=$BJ$5,1,0))>0),$BY$6,IF(AND($I17>=OFFSET($BS$9,$Y17,IF($J17=$BJ$5,1,0)),OFFSET($BS$9,$Y17,IF($J17=$BJ$5,1,0))>0),$BS$6,0))))) -> 0 | AJ17: =IF($Y17=0,0,OFFSET($BM$9,$Y17,IF($J17=$BJ$5,1,0))) -> 0 | AK17: =IF($Y17=0,0,OFFSET($BM$9,$Y17,$AE17*6+IF($J17="IEER",1,0))) -> 0 | AL17: =$J17 -> 0 | AM17: =IF($Y17=0,0,IF(AND(AN17=0),3,IF(OR(OR($B17=HVACType_UnitaryAC_AirCooled,$B17=HVACType_UnitaryAC_EvapCooled,$B17=HVACType_UnitaryAC_WaterCooled),AND($K17>=OFFSET($CG$9,$Y17,IF($N17=$BK$4,1,0)),OFFSET($CG$9,$Y17,IF($N17=$BK$4,1,0))>0)),$CE$6,IF(AND($K17>=OFFSET($CA$9,$Y17,IF($N17=$BK$4,1,0)),OFFSET($CA$9,$Y17,IF($N17=$BK$4,1,0))>0),$BY$6,IF(AND($K17>=OFFSET($BU$9,$Y17,IF($N17=$BK$4,1,0)),OFFSET($BU$9,$Y17,IF($N17=$BK$4,1,0))>0),$BS$6,0))))) -> 0 | AN17: =IF($Y17=0,0,OFFSET($BO$9,$Y17,IF($N17=$BK$4,1,0))) -> 0 | AO17: =IF($Y17=0,0,OFFSET($BO$9,$Y17,$AE17*6+IF($N17=$BK$4,1,0))) -> 0 | AP17: =$M17 -> 0 | AW17: 15 | AX17: HI | AZ17: 54 | BA17: 7 | BB17: WY 40 | BC17: 0.05227 | BD17: 7.888 | BF17: 8 | BG17: Heat Pump (Water Cooled) | BH17: 0 | BI17: 0 | BJ17: 0 | BK17: 17000 | BL17: 12.2 | BM17: 0 | BN17: 14.03 | BO17: 4.3 | BP17: 4.3 | BQ17: 0 | BR17: 0 | BS17: 0 | BT17: 0 | BU17: 0 | BV17: 0 | BW17: 0 | BX17: 14 | BY17: 0 | BZ17: 0 | CA17: 4.6 | CB17: 4.6 | CC17: 100 | CD17: 0 | CE17: 0 | CF17: 0 | CG17: 0 | CH17: 0 | CI17: 0 | CK17: Unitary AC (Water Cooled)
B18: ='HVAC-Tool'!D29 -> 0 | E18: =IF(OR(HVAC_Type_2="Ground-Source Heat Pump",HVAC_Type_2="Groundwater Source Heat Pump", HVAC_Type_2="Heat Pump (Water Cooled)"),0,'HVAC-Tool'!G29) -> 0 | F18: ='HVAC-Tool'!O29 -> 0 | H18: ='HVAC-Tool'!Q29 -> 0 | I18: ='HVAC-Tool'!R29 -> 0 | J18: ='HVAC-Tool'!S29 -> 0 | K18: ='HVAC-Tool'!T29 -> 0 | M18: ='HVAC-Tool'!U29 -> 0 | N18: =IF('HVAC-Tool'!V29="","",'HVAC-Tool'!V29) ->  | O18: =IF('HVAC-Tool'!X29="","",'HVAC-Tool'!X29) ->  | P18: =IF(OR($B18="",$F18="",$H18="",$O18="",IF($B18=HVACType_UnitaryAC_AirCooled,OR($E18="",$I18="",$J18=""),IF($B18=HVACType_HeatPump_WaterCooled,OR($K18="",$M18=""),IF($B18=HVACType_HeatPump_AirCooled,OR($E18="",$I18="",$J18="",$K18="",$M18="",$N18=""),FALSE)))),"",MIN($AE18,$AI18,$AM18)) ->  | Q18: =IF($P18=0,"Does not qualify",IF($P18="","",IF(AND(COUNT(SEARCH("VRF",B18)),COUNT(SEARCH({"UT"},HVAC!InstallState))),(VLOOKUP(P18,$CL$5:$CM$7,2,FALSE)+50)*(ROUND($F18/12000,1)*$O18),IF(ISNUMBER(SEARCH("electric resistance",B18)),(ROUNDDOWN(200*1.25,0)+(VLOOKUP(P18,$CL$5:$CM$7,2,FALSE)*(P18-1)))*ROUND($F18/12000,1)*$O18,VLOOKUP(P18,$CL$5:$CM$7,2,FALSE)*ROUND($F18/12000,1)*$O18) + IF(AND('HVAC-Tool'!Y29="Yes",ISNUMBER(SEARCH("heat pump",B18))),100,0)))) ->  | S18: =IF(P18=0,0,IF(P18="","",SUM(W18:X18)*O18)) ->  | W18: 0 | X18: 0 | Y18: 0 | Z18: 0 | AA18: 0 | AB18: 0 | AC18: 0 | AD18: 12 | AE18: =IF($Y18=0,0,IF(AND(AF18=0),MIN(AI18,AM18),IF(OR(AND($H18>=OFFSET($CD$9,$Y18,0),OFFSET($CD$9,$Y18,0)>0),AND($H18=0,AF18=0)),$CE$6,IF(AND($H18>=OFFSET($BX$9,$Y18,0),OFFSET($BX$9,$Y18,0)>0),$BY$6,IF(AND($H18>=OFFSET($BR$9,$Y18,0),OFFSET($BR$9,$Y18,0)>0),$BS$6,0))))) -> 0 | AF18: =IF($Y18=0,0,OFFSET($BL$9,$Y18,0)) -> 0 | AG18: =IF($Y18=0,0,OFFSET($BL$9,$Y18,$AE18*6)) -> 0 | AH18: =IF($Y18=0,0,"EER") -> 0 | AI18: 0 | AJ18: 0 | AK18: 0 | AL18: 0 | AM18: 0 | AN18: 0 | AO18: 0 | AP18: 0 | AW18: 16 | AX18: IA | AZ18: 58 | BA18: 8 | BB18: WY 33 | BC18: 0.03285 | BF18: 9 | BG18: Heat Pump (Water Cooled) | BH18: 0 | BI18: 0 | BJ18: 17000 | BK18: 65000 | BL18: 13 | BM18: 0 | BN18: 14.95 | BO18: 4.3 | BP18: 4.3 | BQ18: 0 | BR18: 0 | BS18: 0 | BT18: 0 | BU18: 0 | BV18: 0 | BW18: 0 | BX18: 14 | BY18: 0 | BZ18: 0 | CA18: 4.6 | CB18: 4.6 | CC18: 100 | CD18: 0 | CE18: 0 | CF18: 0 | CG18: 0 | CH18: 0 | CI18: 0 | CK18: Unitary AC (Evaporatively Cooled)
B19: ='HVAC-Tool'!D30 -> 0 | E19: =IF(OR(HVAC_Type_3="Ground-Source Heat Pump",HVAC_Type_3="Groundwater Source Heat Pump", HVAC_Type_3="Heat Pump (Water Cooled)"),0,'HVAC-Tool'!G30) -> 0 | F19: ='HVAC-Tool'!O30 -> 0 | H19: ='HVAC-Tool'!Q30 -> 0 | I19: ='HVAC-Tool'!R30 -> 0 | J19: ='HVAC-Tool'!S30 -> 0 | K19: ='HVAC-Tool'!T30 -> 0 | M19: ='HVAC-Tool'!U30 -> 0 | N19: =IF('HVAC-Tool'!V30="","",'HVAC-Tool'!V30) ->  | O19: =IF('HVAC-Tool'!X30="","",'HVAC-Tool'!X30) ->  | Q19: =IF($P19=0,"Does not qualify",IF($P19="","",IF(AND(COUNT(SEARCH("VRF",B19)),COUNT(SEARCH({"UT"},HVAC!InstallState))),(VLOOKUP(P19,$CL$5:$CM$7,2,FALSE)+50)*(ROUND($F19/12000,1)*$O19),IF(ISNUMBER(SEARCH("electric resistance",B19)),(ROUNDDOWN(200*1.25,0)+(VLOOKUP(P19,$CL$5:$CM$7,2,FALSE)*(P19-1)))*ROUND($F19/12000,1)*$O19,VLOOKUP(P19,$CL$5:$CM$7,2,FALSE)*ROUND($F19/12000,1)*$O19) + IF(AND('HVAC-Tool'!Y30="Yes",ISNUMBER(SEARCH("heat pump",B19))),100,0)))) ->  | S19: =IF(P19=0,0,IF(P19="","",SUM(W19:X19)*O19)) ->  | W19: 0 | X19: 0 | Y19: 0 | Z19: 0 | AA19: 0 | AB19: 0 | AC19: 0 | AD19: 12 | AE19: =IF($Y19=0,0,IF(AND(AF19=0),MIN(AI19,AM19),IF(OR(AND($H19>=OFFSET($CD$9,$Y19,0),OFFSET($CD$9,$Y19,0)>0),AND($H19=0,AF19=0)),$CE$6,IF(AND($H19>=OFFSET($BX$9,$Y19,0),OFFSET($BX$9,$Y19,0)>0),$BY$6,IF(AND($H19>=OFFSET($BR$9,$Y19,0),OFFSET($BR$9,$Y19,0)>0),$BS$6,0))))) -> 0 | AF19: 0 | AG19: 0 | AH19: 0 | AI19: 0 | AJ19: 0 | AK19: 0 | AL19: 0 | AM19: 0 | AN19: 0 | AO19: 0 | AP19: 0 | AW19: 17 | AX19: IL | AZ19: 210 | BA19: 9 | BB19: WY 28 | BC19: 0.03857 | BD19: 17.538 | BF19: 10 | BG19: Heat Pump (Water Cooled) | BH19: 0 | BI19: 0 | BJ19: 65000 | BK19: 135000 | BL19: 13 | BM19: 0 | BN19: 14.95 | BO19: 4.3 | BP19: 4.3 | BQ19: 0 | BR19: 0 | BS19: 0 | BT19: 0 | BU19: 0 | BV19: 0 | BW19: 0 | BX19: 14 | BY19: 0 | BZ19: 0 | CA19: 4.6 | CB19: 4.6 | CC19: 100 | CD19: 0 | CE19: 0 | CF19: 0 | CG19: 0 | CH19: 0 | CI19: 0 | CK19: VRF HP (Air Cooled)
B20: ='HVAC-Tool'!D31 -> 0 | E20: =IF(OR(HVAC_Type_4="Ground-Source Heat Pump",HVAC_Type_4="Groundwater Source Heat Pump", HVAC_Type_4="Heat Pump (Water Cooled)"),0,'HVAC-Tool'!G31) -> 0 | F20: ='HVAC-Tool'!O31 -> 0 | H20: ='HVAC-Tool'!Q31 -> 0 | I20: ='HVAC-Tool'!R31 -> 0 | J20: ='HVAC-Tool'!S31 -> 0 | K20: ='HVAC-Tool'!T31 -> 0 | M20: ='HVAC-Tool'!U31 -> 0 | N20: =IF('HVAC-Tool'!V31="","",'HVAC-Tool'!V31) ->  | O20: =IF('HVAC-Tool'!X31="","",'HVAC-Tool'!X31) ->  | Q20: =IF($P20=0,"Does not qualify",IF($P20="","",IF(AND(COUNT(SEARCH("VRF",B20)),COUNT(SEARCH({"UT"},HVAC!InstallState))),(VLOOKUP(P20,$CL$5:$CM$7,2,FALSE)+50)*(ROUND($F20/12000,1)*$O20),IF(ISNUMBER(SEARCH("electric resistance",B20)),(ROUNDDOWN(200*1.25,0)+(VLOOKUP(P20,$CL$5:$CM$7,2,FALSE)*(P20-1)))*ROUND($F20/12000,1)*$O20,VLOOKUP(P20,$CL$5:$CM$7,2,FALSE)*ROUND($F20/12000,1)*$O20) + IF(AND('HVAC-Tool'!Y31="Yes",ISNUMBER(SEARCH("heat pump",B20))),100,0)))) ->  | W20: 0 | X20: 0 | Y20: 0 | Z20: 0 | AA20: 0 | AB20: 0 | AC20: 0 | AD20: 12 | AE20: 0 | AF20: 0 | AG20: 0 | AH20: 0 | AI20: 0 | AJ20: 0 | AK20: 0 | AL20: 0 | AM20: 0 | AN20: 0 | AO20: 0 | AP20: 0 | AW20: 18 | AX20: IN | AZ20: 212 | BA20: 10 | BB20: WY 25 | BC20: 0.07926 | BF20: 11 | BG20: Unitary AC (Air Cooled) | BH20: Split (1 Phase) | BI20: 1 | BJ20: 0 | BK20: 45000 | BL20: 10.87 | BM20: 13 | BN20: 0 | BO20: 0 | BP20: 0 | BQ20: 0 | BR20: 0 | BS20: 0 | BT20: 0 | BU20: 0 | BV20: 0 | BW20: 0 | BX20: 13 | BY20: 16 | BZ20: 0 | CA20: 0 | CB20: 0 | CC20: 375 | CD20: 0 | CE20: 0 | CF20: 0 | CG20: 0 | CH20: 0 | CI20: 400 | CK20: VRF HP (Water Source)
B21: ='HVAC-Tool'!D32 -> 0 | E21: =IF(OR(HVAC_Type_5="Ground-Source Heat Pump",HVAC_Type_5="Groundwater Source Heat Pump", HVAC_Type_5="Heat Pump (Water Cooled)"),0,'HVAC-Tool'!G32) -> 0 | F21: ='HVAC-Tool'!O32 -> 0 | H21: ='HVAC-Tool'!Q32 -> 0 | I21: ='HVAC-Tool'!R32 -> 0 | J21: ='HVAC-Tool'!S32 -> 0 | K21: ='HVAC-Tool'!T32 -> 0 | M21: ='HVAC-Tool'!U32 -> 0 | N21: =IF('HVAC-Tool'!V32="","",'HVAC-Tool'!V32) ->  | O21: =IF('HVAC-Tool'!X32="","",'HVAC-Tool'!X32) ->  | Q21: =IF($P21=0,"Does not qualify",IF($P21="","",IF(AND(COUNT(SEARCH("VRF",B21)),COUNT(SEARCH({"UT"},HVAC!InstallState))),(VLOOKUP(P21,$CL$5:$CM$7,2,FALSE)+50)*(ROUND($F21/12000,1)*$O21),IF(ISNUMBER(SEARCH("electric resistance",B21)),(ROUNDDOWN(200*1.25,0)+(VLOOKUP(P21,$CL$5:$CM$7,2,FALSE)*(P21-1)))*ROUND($F21/12000,1)*$O21,VLOOKUP(P21,$CL$5:$CM$7,2,FALSE)*ROUND($F21/12000,1)*$O21) + IF(AND('HVAC-Tool'!Y32="Yes",ISNUMBER(SEARCH("heat pump",B21))),100,0)))) ->  | W21: 0 | X21: 0 | Y21: 0 | Z21: 0 | AA21: 0 | AB21: 0 | AC21: 0 | AD21: 12 | AE21: 0 | AF21: 0 | AG21: 0 | AH21: 0 | AI21: 0 | AJ21: 0 | AK21: 0 | AL21: 0 | AM21: 0 | AN21: 0 | AO21: 0 | AP21: 0 | AW21: 19 | AX21: KS | BB21: WA 48T | BC21: 0.0491 | BD21: 9.25 | BF21: 12 | BG21: Unitary AC (Air Cooled) | BH21: Split (1 Phase) | BI21: 1 | BJ21: 45000 | BK21: 65000 | BL21: 10.87 | BM21: 13 | BN21: 0 | BO21: 0 | BP21: 0 | BQ21: 0 | BR21: 0 | BS21: 0 | BT21: 0 | BU21: 0 | BV21: 0 | BW21: 0 | BX21: 13 | BY21: 16 | BZ21: 0 | CA21: 0 | CB21: 0 | CC21: 375 | CD21: 0 | CE21: 0 | CF21: 0 | CG21: 0 | CH21: 0 | CI21: 400
B22: ='HVAC-Tool'!D33 -> 0 | E22: =IF(OR(HVAC_Type_6="Ground-Source Heat Pump",HVAC_Type_6="Groundwater Source Heat Pump", HVAC_Type_6="Heat Pump (Water Cooled)"),0,'HVAC-Tool'!G33) -> 0 | F22: ='HVAC-Tool'!O33 -> 0 | H22: ='HVAC-Tool'!Q33 -> 0 | I22: ='HVAC-Tool'!R33 -> 0 | J22: ='HVAC-Tool'!S33 -> 0 | K22: ='HVAC-Tool'!T33 -> 0 | M22: ='HVAC-Tool'!U33 -> 0 | N22: =IF('HVAC-Tool'!V33="","",'HVAC-Tool'!V33) ->  | O22: =IF('HVAC-Tool'!X33="","",'HVAC-Tool'!X33) ->  | Q22: =IF($P22=0,"Does not qualify",IF($P22="","",IF(AND(COUNT(SEARCH("VRF",B22)),COUNT(SEARCH({"UT"},HVAC!InstallState))),(VLOOKUP(P22,$CL$5:$CM$7,2,FALSE)+50)*(ROUND($F22/12000,1)*$O22),IF(ISNUMBER(SEARCH("electric resistance",B22)),(ROUNDDOWN(200*1.25,0)+(VLOOKUP(P22,$CL$5:$CM$7,2,FALSE)*(P22-1)))*ROUND($F22/12000,1)*$O22,VLOOKUP(P22,$CL$5:$CM$7,2,FALSE)*ROUND($F22/12000,1)*$O22) + IF(AND('HVAC-Tool'!Y33="Yes",ISNUMBER(SEARCH("heat pump",B22))),100,0)))) ->  | W22: 0 | X22: 0 | Y22: 0 | Z22: 0 | AA22: 0 | AB22: 0 | AC22: 0 | AD22: 12 | AE22: 0 | AF22: 0 | AG22: 0 | AH22: 0 | AI22: 0 | AJ22: 0 | AK22: 0 | AL22: 0 | AM22: 0 | AN22: 0 | AO22: 0 | AP22: 0 | AW22: 20 | AX22: KY | BB22: WA 40 | BC22: 0.06951 | BD22: 2.22 | BF22: 13 | BG22: Unitary AC (Air Cooled) | BH22: Package (1 Phase) | BI22: 1 | BJ22: 0 | BK22: 65000 | BL22: 11 | BM22: 14 | BN22: 0 | BO22: 0 | BP22: 0 | BQ22: 0 | BR22: 0 | BS22: 0 | BT22: 0 | BU22: 0 | BV22: 0 | BW22: 0 | BX22: 12 | BY22: 16 | BZ22: 0 | CA22: 0 | CB22: 0 | CC22: 375 | CD22: 0 | CE22: 0 | CF22: 0 | CG22: 0 | CH22: 0 | CI22: 400 | CK22: VRF System Type | CN22: SystemType_UT | CP22: LoopType_GSHP
B23: ='HVAC-Tool'!D34 -> 0 | E23: =IF(OR(HVAC_Type_7="Ground-Source Heat Pump",HVAC_Type_7="Groundwater Source Heat Pump", HVAC_Type_7="Heat Pump (Water Cooled)"),0,'HVAC-Tool'!G34) -> 0 | F23: ='HVAC-Tool'!O34 -> 0 | H23: ='HVAC-Tool'!Q34 -> 0 | I23: ='HVAC-Tool'!R34 -> 0 | J23: ='HVAC-Tool'!S34 -> 0 | K23: ='HVAC-Tool'!T34 -> 0 | M23: ='HVAC-Tool'!U34 -> 0 | N23: =IF('HVAC-Tool'!V34="","",'HVAC-Tool'!V34) ->  | O23: =IF('HVAC-Tool'!X34="","",'HVAC-Tool'!X34) ->  | Q23: =IF($P23=0,"Does not qualify",IF($P23="","",IF(AND(COUNT(SEARCH("VRF",B23)),COUNT(SEARCH({"UT"},HVAC!InstallState))),(VLOOKUP(P23,$CL$5:$CM$7,2,FALSE)+50)*(ROUND($F23/12000,1)*$O23),IF(ISNUMBER(SEARCH("electric resistance",B23)),(ROUNDDOWN(200*1.25,0)+(VLOOKUP(P23,$CL$5:$CM$7,2,FALSE)*(P23-1)))*ROUND($F23/12000,1)*$O23,VLOOKUP(P23,$CL$5:$CM$7,2,FALSE)*ROUND($F23/12000,1)*$O23) + IF(AND('HVAC-Tool'!Y34="Yes",ISNUMBER(SEARCH("heat pump",B23))),100,0)))) ->  | W23: 0 | X23: 0 | Y23: 0 | Z23: 0 | AA23: 0 | AB23: 0 | AC23: 0 | AD23: 12 | AE23: 0 | AF23: 0 | AG23: 0 | AH23: 0 | AI23: 0 | AJ23: 0 | AK23: 0 | AL23: 0 | AM23: 0 | AN23: 0 | AO23: 0 | AP23: 0 | AW23: 21 | AX23: LA | BB23: WA 36 | BC23: 0.05805 | BD23: 7.1 | BF23: 14 | BG23: Unitary AC (Air Cooled) | BH23: Split (3 Phase) | BI23: 3 | BJ23: 0 | BK23: 65000 | BL23: 9.23 | BM23: 13 | BN23: 0 | BO23: 0 | BP23: 0 | BQ23: 0 | BR23: 0 | BS23: 0 | BT23: 0 | BU23: 0 | BV23: 0 | BW23: 0 | BX23: 12.5 | BY23: 15 | BZ23: 0 | CA23: 0 | CB23: 0 | CC23: 175 | CD23: =IF($BL$4=0,0,OFFSET(CD23,$BL$5*$BL$4,0)) -> 13 | CE23: 16 | CF23: 0 | CG23: 0 | CH23: 0 | CI23: 375 | CK23: Multi-split System | CN23: Split (1 Phase) | CP23: Closed Loop
B24: Total Project | D24: Baseline Energy Code | E24: Energy Savings (kWh/Yr) | F24: Demand Savings (kW) | G24: Deemed Cost | I24: Incentive | K24: Monthly Savings | M24: Annual Savings | O24: % of Cost Paid by Incentive | Q24: Net Project Cost | R24: Pre-incentive Payback (Yr) | T24: Post-incentive Payback (Yr) | AW24: 22 | AX24: MA | BB24: WA 24 | BC24: 0.10773 | BD24: 4.84 | BF24: 15 | BG24: Unitary AC (Air Cooled) | BH24: Package (3 Phase) | BI24: 3 | BJ24: 0 | BK24: 65000 | BL24: 9.23 | BM24: 13 | BN24: 0 | BO24: 0 | BP24: 0 | BQ24: 0 | BR24: 0 | BS24: 0 | BT24: 0 | BU24: 0 | BV24: 0 | BW24: 0 | BX24: 12 | BY24: 15 | BZ24: 0 | CA24: 0 | CB24: 0 | CC24: 175 | CD24: 12 | CE24: 16 | CF24: 0 | CG24: 0 | CH24: 0 | CI24: 375 | CK24: Multi-split w/Heat Recovery | CN24: Split (3 Phase) | CP24: Open Loop
AW25: 23 | AX25: MD | BF25: 16 | BG25: Unitary AC (Air Cooled) | BH25: Split (3 Phase) Package (3 Phase) | BI25: 3 | BJ25: 65000 | BK25: 135000 | BL25: 11.2 | BM25: 9.8 | BN25: 11.4 | BO25: 0 | BP25: 0 | BQ25: 0 | BR25: 0 | BS25: 0 | BT25: 0 | BU25: 0 | BV25: 0 | BW25: 0 | BX25: 12 | BY25: 0 | BZ25: 13.8 | CA25: 0 | CB25: 0 | CC25: 150 | CD25: 12 | CE25: 0 | CF25: 14.6 | CG25: 0 | CH25: 0 | CI25: 325
D26: =$BR$5 -> IECC 2009, Tables 503.2.3(1) & 503.2.3(2) | E26: =IF(SUM($P$17:$P$23)=0,0,SUM($S$17:$S$23)) -> 0 | F26: =IF(SUM($P$17:$P$23)=0,0,SUM($T$17:$T$23)) -> 0 | G26: =IF(SUM($P$17:$P$23)=0,0,SUM($U$17:$U$23)) -> 0 | I26: =IF(SUM($P$17:$P$23)=0,0,SUM($Q$17:$Q$23)) -> 0 | K26: =IF(SUM(P17:P23)=0,0,$M$26/12) -> 0 | M26: =IF(SUM(P17:P23)=0,0,$E$26*$BC$9+$BD$9*SUMPRODUCT($T$17:$T$23,$AD$17:$AD$23)) -> 0 | O26: =IF(SUM(P17:P23)=0,0,$I$26/$G$26) -> 0 | Q26: =IF(SUM(P17:P23)=0,0,$G$26-$I$26) -> 0 | R26: =IF(SUM(P17:P23)=0,0,$G$26/$M$26) -> 0 | T26: =IF(SUM(P17:P23)=0,0,$Q$26/$M$26) -> 0 | AW26: 24 | AX26: ME | BB26: UT 23 | BC26: 0.0637 | BD26: 8.754 | BF26: 17 | BG26: Unitary AC (Air Cooled) | BH26: Split (3 Phase) Package (3 Phase) | BI26: 3 | BJ26: 135000 | BK26: 240000 | BL26: 11 | BM26: 9.7 | BN26: 11.2 | BO26: 0 | BP26: 0 | BQ26: 0 | BR26: 0 | BS26: 0 | BT26: 0 | BU26: 0 | BV26: =IF($BL$4=0,0,OFFSET(BV26,$BL$5*$BL$4,0)) -> 0 | BW26: 0 | BX26: 12 | BY26: 0 | BZ26: 13 | CA26: 0 | CB26: 0 | CC26: 125 | CD26: 12 | CE26: 0 | CF26: 14 | CG26: 0 | CH26: 0 | CI26: 225
AW27: 25 | AX27: MI | BB27: UT 10 | BC27: 0.05387 | BD27: 7.321 | BF27: 18 | BG27: =IF($BL$4=0,0,OFFSET(BG27,$BL$5*$BL$4,0)) -> Unitary AC (Air Cooled) | BH27: Split (3 Phase) Package (3 Phase) | BI27: 3 | BJ27: 240000 | BK27: 760000 | BL27: 10 | BM27: 9.7 | BN27: 10.1 | BO27: 0 | BP27: 0 | BQ27: 0 | BR27: 0 | BS27: 0 | BT27: 0 | BU27: 0 | BV27: 0 | BW27: 0 | BX27: 10.3 | BY27: 0 | BZ27: 12.1 | CA27: 0 | CB27: 0 | CC27: 150 | CD27: 10.6 | CE27: 0 | CF27: 13 | CG27: 0 | CH27: 0 | CI27: 200
AW28: 26 | AX28: MN | BB28: UT 9 | BC28: 0.04114 | BD28: 14.054 | BF28: 19 | BG28: Unitary AC (Air Cooled) | BH28: Split (3 Phase) Package (3 Phase) | BI28: 3 | BJ28: 760000 | BK28: 10000000 | BL28: 9.7 | BM28: 9.4 | BN28: 9.8 | BO28: 0 | BP28: 0 | BQ28: 0 | BR28: 0 | BS28: 0 | BT28: 0 | BU28: 0 | BV28: 0 | BW28: 0 | BX28: 9.7 | BY28: 0 | BZ28: 11.4 | CA28: 0 | CB28: 0 | CC28: 75 | CD28: 10.2 | CE28: 0 | CF28: 12.1 | CG28: 0 | CH28: 0 | CI28: 150
D29: User Input Cells | AW29: 27 | AX29: MO | BB29: UT 9A | BC29: 0.03462 | BF29: 20 | BG29: Ground-Source Heat Pump (Water-to-Air) | BH29: Closed Loop | BI29: 0 | BJ29: 0 | BK29: 10000000 | BL29: 13.4 | BM29: 0 | BN29: 15.41 | BO29: 3.1 | BP29: 3.1 | BQ29: 0 | BR29: 0 | BS29: 0 | BT29: 0 | BU29: 0 | BV29: 0 | BW29: 0 | BX29: 17.1 | BY29: 0 | BZ29: 0 | CA29: 3.6 | CB29: 3.6 | CC29: 150 | CD29: 0 | CE29: 0 | CF29: 0 | CG29: 0 | CH29: 0 | CI29: 0
AW30: 28 | AX30: MS | BB30: UT 8 | BC30: 0.04535 | BD30: 18.261 | BF30: 21 | BG30: Ground-Source Heat Pump (Water-to-Air) | BH30: Open Loop | BI30: 0 | BJ30: 0 | BK30: 10000000 | BL30: 13.4 | BM30: 0 | BN30: 15.41 | BO30: 3.1 | BP30: 3.1 | BQ30: 0 | BR30: 0 | BS30: 0 | BT30: 0 | BU30: 0 | BV30: 0 | BW30: 0 | BX30: 21.1 | BY30: 0 | BZ30: 0 | CA30: 4.1 | CB30: 4.1 | CC30: 150 | CD30: 0 | CE30: 0 | CF30: 0 | CG30: 0 | CH30: 0 | CI30: 0
X31: =OFFSET($BO$9,$Y19,IF($N19=$BK$4,1,0)) -> 47/43 | AW31: 29 | AX31: MT | BB31: UT 6 | BC31: 0.03679 | BD31: 12.82 | BF31: 22 | BG31: Ground-Source Heat Pump (Water-to-Water) | BH31: Closed Loop | BI31: 0 | BJ31: 0 | BK31: 10000000 | BL31: 13.4 | BM31: 0 | BN31: 15.41 | BO31: 3.1 | BP31: 3.1 | BQ31: 0 | BR31: 0 | BS31: 0 | BT31: 0 | BU31: 0 | BV31: 0 | BW31: 0 | BX31: 16.1 | BY31: 0 | BZ31: 0 | CA31: 3.1 | CB31: 3.1 | CC31: 150 | CD31: 0 | CE31: 0 | CF31: 0 | CG31: 0 | CH31: 0 | CI31: 0
AW32: 30 | AX32: NC | BB32: OR 48 | BC32: 0 | BD32: 0 | BF32: 23 | BG32: Ground-Source Heat Pump (Water-to-Water) | BH32: Open Loop | BI32: 0 | BJ32: 0 | BK32: 10000000 | BL32: 13.4 | BM32: 0 | BN32: 15.41 | BO32: 3.1 | BP32: 3.1 | BQ32: 0 | BR32: 0 | BS32: 0 | BT32: 0 | BU32: 0 | BV32: 0 | BW32: 0 | BX32: 20.1 | BY32: 0 | BZ32: 0 | CA32: 3.5 | CB32: 3.5 | CC32: 150 | CD32: 0 | CE32: 0 | CF32: 0 | CG32: 0 | CH32: 0 | CI32: 0
AW33: 31 | AX33: ND | BB33: OR 30 | BC33: 0 | BD33: 0 | BF33: 24 | BG33: Ground-Source Heat Pump (DGX) | BH33: 0 | BI33: 0 | BJ33: 0 | BK33: 10000000 | BL33: 13.4 | BM33: 0 | BN33: 15.41 | BO33: 3.1 | BP33: 3.1 | BQ33: 0 | BR33: 0 | BS33: 0 | BT33: 0 | BU33: 0 | BV33: 0 | BW33: 0 | BX33: 16 | BY33: 0 | BZ33: 0 | CA33: 3.6 | CB33: 3.6 | CC33: 150 | CD33: 0 | CE33: 0 | CF33: 0 | CG33: 0 | CH33: 0 | CI33: 0
AW34: 32 | AX34: NE | BB34: OR 28 | BC34: 0 | BD34: 0 | BF34: 25 | BG34: Unitary AC (Water Cooled) | BH34: Split (1 Phase) | BI34: 1 | BJ34: 0 | BK34: 65000 | BL34: 12.1 | BM34: 0 | BN34: 12.3 | BO34: 0 | BP34: 0 | BQ34: 0 | BR34: 0 | BS34: 0 | BT34: 0 | BU34: 0 | BV34: 0 | BW34: 0 | BX34: 14 | BY34: 0 | BZ34: 0 | CA34: 0 | CB34: 0 | CC34: 100 | CD34: =IF($BL$4=0,0,OFFSET(CD34,$BL$5*$BL$4,0)) -> 0 | CE34: 0 | CF34: 0 | CG34: 0 | CH34: 0 | CI34: 0
AW35: 33 | AX35: NH | BB35: ID 35 | BC35: 0.05478 | BD35: 16.82 | BF35: 26 | BG35: Unitary AC (Water Cooled) | BH35: Package (1 Phase) | BI35: 1 | BJ35: 0 | BK35: 65000 | BL35: 12.1 | BM35: 0 | BN35: 12.3 | BO35: 0 | BP35: 0 | BQ35: 0 | BR35: 0 | BS35: 0 | BT35: 0 | BU35: 0 | BV35: 0 | BW35: 0 | BX35: 14 | BY35: 0 | BZ35: 0 | CA35: 0 | CB35: 0 | CC35: 100 | CD35: 0 | CE35: 0 | CF35: 0 | CG35: 0 | CH35: 0 | CI35: 0
AW36: 34 | AX36: NJ | BB36: ID 23 | BC36: 0.09132 | BF36: 27 | BG36: Unitary AC (Water Cooled) | BH36: Split (3 Phase) | BI36: 3 | BJ36: 0 | BK36: 65000 | BL36: 12.1 | BM36: 0 | BN36: 12.3 | BO36: 0 | BP36: 0 | BQ36: 0 | BR36: 0 | BS36: 0 | BT36: 0 | BU36: 0 | BV36: 0 | BW36: 0 | BX36: 14 | BY36: 0 | BZ36: 0 | CA36: 0 | CB36: 0 | CC36: 100 | CD36: 0 | CE36: 0 | CF36: 0 | CG36: 0 | CH36: 0 | CI36: 0
AW37: 35 | AX37: NM | BB37: ID 10 | BC37: 0.05129 | BD37: 6.115 | BF37: 28 | BG37: Unitary AC (Water Cooled) | BH37: Package (3 Phase) | BI37: 3 | BJ37: 0 | BK37: 65000 | BL37: 12.1 | BM37: 0 | BN37: 12.3 | BO37: 0 | BP37: 0 | BQ37: 0 | BR37: 0 | BS37: 0 | BT37: 0 | BU37: 0 | BV37: 0 | BW37: 0 | BX37: 14 | BY37: 0 | BZ37: 0 | CA37: 0 | CB37: 0 | CC37: 100 | CD37: 0 | CE37: 0 | CF37: 0 | CG37: 0 | CH37: 0 | CI37: 0
AW38: 36 | AX38: NV | BB38: ID 9 | BC38: 0.04418 | BD38: 9.203 | BF38: 29 | BG38: Unitary AC (Water Cooled) | BH38: Split (3 Phase) Package (3 Phase) | BI38: 3 | BJ38: 65000 | BK38: 135000 | BL38: 12.1 | BM38: 0 | BN38: 12.3 | BO38: 0 | BP38: 0 | BQ38: 0 | BR38: 0 | BS38: 0 | BT38: 0 | BU38: 0 | BV38: 0 | BW38: 0 | BX38: 13.8 | BY38: 0 | BZ38: 15.1 | CA38: 0 | CB38: 0 | CC38: 100 | CD38: 0 | CE38: 0 | CF38: 0 | CG38: 0 | CH38: 0 | CI38: 0
AW39: 37 | AX39: NY | BB39: ID 6 | BC39: 0.0418 | BD39: 13.379 | BF39: 30 | BG39: Unitary AC (Water Cooled) | BH39: Split (3 Phase) Package (3 Phase) | BI39: 3 | BJ39: 135000 | BK39: 240000 | BL39: 12.5 | BM39: 0 | BN39: 12.7 | BO39: 0 | BP39: 0 | BQ39: 0 | BR39: 0 | BS39: 0 | BT39: 0 | BU39: 0 | BV39: 0 | BW39: 0 | BX39: 13.8 | BY39: 0 | BZ39: 14.6 | CA39: 0 | CB39: 0 | CC39: 100 | CD39: 0 | CE39: 0 | CF39: 0 | CG39: 0 | CH39: 0 | CI39: 0
AW40: 38 | AX40: OH | BA40: =IF(LEFT(BB40,2)=$H$9,AW32,"") ->  | BB40: ID 6A | BC40: 0.0418 | BD40: 13.379 | BF40: 31 | BG40: Unitary AC (Water Cooled) | BH40: Split (3 Phase) Package (3 Phase) | BI40: 3 | BJ40: 240000 | BK40: 760000 | BL40: 12.4 | BM40: 0 | BN40: 12.6 | BO40: 0 | BP40: 0 | BQ40: 0 | BR40: 0 | BS40: 0 | BT40: 0 | BU40: 0 | BV40: 0 | BW40: 0 | BX40: 13.8 | BY40: 0 | BZ40: 14.6 | CA40: 0 | CB40: 0 | CC40: 100 | CD40: 0 | CE40: 0 | CF40: 0 | CG40: 0 | CH40: 0 | CI40: 0
AW41: 39 | AX41: OK | BA41: =IF(LEFT(BB41,2)=$H$9,AW33,"") ->  | BB41: CA 48 | BC41: 0.08912 | BD41: 9.295 | BF41: 32 | BG41: Unitary AC (Water Cooled) | BH41: Split (3 Phase) Package (3 Phase) | BI41: 3 | BJ41: 760000 | BK41: 10000000 | BL41: 12 | BM41: 0 | BN41: 12.4 | BO41: 0 | BP41: 0 | BQ41: 0 | BR41: 0 | BS41: 0 | BT41: 0 | BU41: 0 | BV41: 0 | BW41: 0 | BX41: 13.8 | BY41: 0 | BZ41: 14.6 | CA41: 0 | CB41: 0 | CC41: 100 | CD41: 0 | CE41: 0 | CF41: 0 | CG41: 0 | CH41: 0 | CI41: 0
AW42: 40 | AX42: OR | BA42: =IF(LEFT(BB42,2)=$H$9,AW34,"") ->  | BB42: CA 36 | BC42: 0.1059 | BD42: 10.95 | BF42: 33 | BG42: Unitary AC (Evaporatively Cooled) | BH42: Split (1 Phase) | BI42: 1 | BJ42: 0 | BK42: 65000 | BL42: 12.1 | BM42: 0 | BN42: 12.3 | BO42: 0 | BP42: 0 | BQ42: 0 | BR42: 0 | BS42: 0 | BT42: 0 | BU42: 0 | BV42: 0 | BW42: 0 | BX42: 14 | BY42: 0 | BZ42: 0 | CA42: 0 | CB42: 0 | CC42: 100 | CD42: 0 | CE42: 0 | CF42: 0 | CG42: 0 | CH42: 0 | CI42: 0
AW43: 41 | AX43: PA | BB43: CA 32 | BC43: 0.1366 | BD43: 4.95 | BF43: 34 | BG43: Unitary AC (Evaporatively Cooled) | BH43: Package (1 Phase) | BI43: 1 | BJ43: 0 | BK43: 65000 | BL43: 12.1 | BM43: 0 | BN43: 12.3 | BO43: 0 | BP43: 0 | BQ43: 0 | BR43: 0 | BS43: 0 | BT43: 0 | BU43: 0 | BV43: 0 | BW43: 0 | BX43: 14 | BY43: 0 | BZ43: 0 | CA43: 0 | CB43: 0 | CC43: 100 | CD43: 0 | CE43: 0 | CF43: 0 | CG43: 0 | CH43: 0 | CI43: 0
AW44: 42 | AX44: RI | AZ44: =IF(ISERROR(MID(VLOOKUP(LARGE($BA$11:$BA$67,AW28),$BA$11:$BB$68,2,),4,5)),"",MID(VLOOKUP(LARGE($BA$11:$BA$67,AW28),$BA$11:$BB$68,2,),4,5)) ->  | BA44: =IF(LEFT(BB36,2)=$H$9,AW28,"") ->  | BB44: CA 25 | BC44: 0.1697 | BF44: 35 | BG44: Unitary AC (Evaporatively Cooled) | BH44: Split (3 Phase) | BI44: 3 | BJ44: 0 | BK44: 65000 | BL44: 12.1 | BM44: 0 | BN44: 12.3 | BO44: 0 | BP44: 0 | BQ44: 0 | BR44: 0 | BS44: 0 | BT44: 0 | BU44: 0 | BV44: 0 | BW44: 0 | BX44: 14 | BY44: 0 | BZ44: 0 | CA44: 0 | CB44: 0 | CC44: 100 | CD44: 0 | CE44: 0 | CF44: 0 | CG44: 0 | CH44: 0 | CI44: 0
AW45: 43 | AX45: SC | BB45: CA PA20 | BC45: 0.12662 | BD45: 5.176 | BF45: 36 | BG45: Unitary AC (Evaporatively Cooled) | BH45: Package (3 Phase) | BI45: 3 | BJ45: 0 | BK45: 65000 | BL45: 12.1 | BM45: 0 | BN45: 12.3 | BO45: 0 | BP45: 0 | BQ45: 0 | BR45: 0 | BS45: 0 | BT45: 0 | BU45: 0 | BV45: 0 | BW45: 0 | BX45: 14 | BY45: 0 | BZ45: 0 | CA45: 0 | CB45: 0 | CC45: 100 | CD45: 0 | CE45: 0 | CF45: 0 | CG45: 0 | CH45: 0 | CI45: 0
AW46: 44 | AX46: SD | BF46: 37 | BG46: Unitary AC (Evaporatively Cooled) | BH46: Split (3 Phase) Package (3 Phase) | BI46: 3 | BJ46: 65000 | BK46: 135000 | BL46: 12.1 | BM46: 0 | BN46: 12.3 | BO46: 0 | BP46: 0 | BQ46: 0 | BR46: 0 | BS46: 0 | BT46: 0 | BU46: 0 | BV46: 0 | BW46: 0 | BX46: 13.8 | BY46: 0 | BZ46: 15.1 | CA46: 0 | CB46: 0 | CC46: 100 | CD46: 0 | CE46: 0 | CF46: 0 | CG46: 0 | CH46: 0 | CI46: 0
AW47: 45 | AX47: TN | BF47: 38 | BG47: Unitary AC (Evaporatively Cooled) | BH47: Split (3 Phase) Package (3 Phase) | BI47: =IF($BL$4=0,0,OFFSET(BI47,$BL$5*$BL$4,0)) -> 3 | BJ47: 135000 | BK47: 240000 | BL47: 12 | BM47: 0 | BN47: 12.2 | BO47: 0 | BP47: 0 | BQ47: 0 | BR47: 0 | BS47: 0 | BT47: 0 | BU47: 0 | BV47: 0 | BW47: 0 | BX47: 13.3 | BY47: =IF($BL$4=0,0,OFFSET(BY47,$BL$5*$BL$4,0)) -> 0 | BZ47: 14.1 | CA47: 0 | CB47: 0 | CC47: 100 | CD47: 0 | CE47: 0 | CF47: 0 | CG47: 0 | CH47: 0 | CI47: 0
AW48: 46 | AX48: TX | BA48: =IF(LEFT(BB40,2)=$H$9,AW32,"") ->  | BF48: 39 | BG48: Unitary AC (Evaporatively Cooled) | BH48: Split (3 Phase) Package (3 Phase) | BI48: 3 | BJ48: 240000 | BK48: 760000 | BL48: 11.9 | BM48: 0 | BN48: 12.1 | BO48: 0 | BP48: 0 | BQ48: 0 | BR48: 0 | BS48: 0 | BT48: 0 | BU48: 0 | BV48: 0 | BW48: 0 | BX48: 13.3 | BY48: 0 | BZ48: 14.1 | CA48: 0 | CB48: 0 | CC48: 100 | CD48: 0 | CE48: 0 | CF48: 0 | CG48: 0 | CH48: 0 | CI48: 0
AW49: 47 | AX49: VA | BA49: =IF(LEFT(BB41,2)=$H$9,AW33,"") ->  | BF49: 40 | BG49: Unitary AC (Evaporatively Cooled) | BH49: Split (3 Phase) Package (3 Phase) | BI49: 3 | BJ49: 760000 | BK49: 10000000 | BL49: 11.7 | BM49: 0 | BN49: 11.9 | BO49: 0 | BP49: 0 | BQ49: 0 | BR49: 0 | BS49: 0 | BT49: 0 | BU49: 0 | BV49: 0 | BW49: 0 | BX49: 13.3 | BY49: 0 | BZ49: 14.1 | CA49: 0 | CB49: 0 | CC49: 100 | CD49: 0 | CE49: 0 | CF49: 0 | CG49: 0 | CH49: 0 | CI49: 0
AW50: 48 | AX50: VT | BA50: =IF(LEFT(BB42,2)=$H$9,AW34,"") ->  | BF50: 41 | BG50: VRF HP (Air Cooled) | BH50: Multi-split System | BI50: 0 | BJ50: 0 | BK50: 65000 | BL50: 10.87 | BM50: 13 | BN50: 0 | BO50: 7.7 | BP50: 7.7 | BQ50: 0 | BR50: 12.5 | BS50: 15 | BT50: 0 | BU50: 8.5 | BV50: 8.5 | BW50: 400 | BX50: 0 | BY50: 0 | BZ50: 0 | CA50: 0 | CB50: 0 | CC50: 0 | CD50: 0 | CE50: 0 | CF50: 0 | CG50: 0 | CH50: 0 | CI50: 0
AW51: 49 | AX51: WI | BA51: =IF(LEFT(BB51,2)=$H$9,AW35,"") ->  | BF51: 42 | BG51: VRF HP (Air Cooled) | BH51: Multi-split w/Heat Recovery | BI51: 0 | BJ51: 0 | BK51: 65000 | BL51: 10.87 | BM51: 13 | BN51: 0 | BO51: 7.7 | BP51: 7.7 | BQ51: 0 | BR51: 12.5 | BS51: 15 | BT51: 0 | BU51: 8.5 | BV51: 8.5 | BW51: 400 | BX51: 0 | BY51: 0 | BZ51: 0 | CA51: 0 | CB51: 0 | CC51: 0 | CD51: 0 | CE51: 0 | CF51: 0 | CG51: 0 | CH51: 0 | CI51: 0
AW52: 50 | AX52: WV | BA52: =IF(LEFT(BB52,2)=$H$9,AW36,"") ->  | BF52: 43 | BG52: VRF HP (Air Cooled) | BH52: Multi-split System | BI52: 0 | BJ52: 65000 | BK52: 135000 | BL52: 11 | BM52: 0 | BN52: 12.9 | BO52: 3.3 | BP52: 2.25 | BQ52: 0 | BR52: 11.3 | BS52: 0 | BT52: 14.2 | BU52: 3.4 | BV52: 2.4 | BW52: 400 | BX52: 0 | BY52: 0 | BZ52: 0 | CA52: 0 | CB52: 0 | CC52: 0 | CD52: 0 | CE52: 0 | CF52: 0 | CG52: 0 | CH52: 0 | CI52: 0
BA53: =IF(LEFT(BB53,2)=$H$9,AW37,"") ->  | BF53: 44 | BG53: VRF HP (Air Cooled) | BH53: Multi-split w/Heat Recovery | BI53: 0 | BJ53: 65000 | BK53: 135000 | BL53: 10.8 | BM53: 0 | BN53: 12.7 | BO53: 3.3 | BP53: 2.25 | BQ53: 0 | BR53: 11.1 | BS53: 0 | BT53: 14 | BU53: 3.4 | BV53: 2.4 | BW53: 400 | BX53: 0 | BY53: 0 | BZ53: 0 | CA53: 0 | CB53: 0 | CC53: 0 | CD53: 0 | CE53: 0 | CF53: 0 | CG53: 0 | CH53: 0 | CI53: 0
BA54: =IF(LEFT(BB54,2)=$H$9,AW38,"") ->  | BF54: 45 | BG54: VRF HP (Air Cooled) | BH54: Multi-split System | BI54: 0 | BJ54: 135000 | BK54: 240000 | BL54: 10.6 | BM54: 0 | BN54: 12.3 | BO54: 3.2 | BP54: 2.05 | BQ54: 0 | BR54: 10.9 | BS54: 0 | BT54: 13.7 | BU54: 3.2 | BV54: 2.1 | BW54: 400 | BX54: 0 | BY54: 0 | BZ54: 0 | CA54: 0 | CB54: 0 | CC54: 0 | CD54: 0 | CE54: 0 | CF54: 0 | CG54: 0 | CH54: 0 | CI54: 0
BF55: 46 | BG55: VRF HP (Air Cooled) | BH55: Multi-split w/Heat Recovery | BI55: 0 | BJ55: 135000 | BK55: 240000 | BL55: 10.4 | BM55: 0 | BN55: 12.1 | BO55: 3.2 | BP55: 2.05 | BQ55: 0 | BR55: 10.7 | BS55: 0 | BT55: 13.5 | BU55: 3.2 | BV55: 2.1 | BW55: 400 | BX55: 0 | BY55: 0 | BZ55: 0 | CA55: 0 | CB55: 0 | CC55: 0 | CD55: 0 | CE55: 0 | CF55: 0 | CG55: 0 | CH55: 0 | CI55: 0
BF56: 47 | BG56: VRF HP (Air Cooled) | BH56: Multi-split System | BI56: 0 | BJ56: 240000 | BK56: 10000000 | BL56: 9.5 | BM56: 0 | BN56: 11 | BO56: 3.2 | BP56: 2.05 | BQ56: 0 | BR56: 10.3 | BS56: 0 | BT56: 12.5 | BU56: 3.2 | BV56: 2.1 | BW56: 400 | BX56: 0 | BY56: 0 | BZ56: 0 | CA56: 0 | CB56: 0 | CC56: 0 | CD56: 0 | CE56: 0 | CF56: 0 | CG56: 0 | CH56: 0 | CI56: 0
BF57: 48 | BG57: VRF HP (Air Cooled) | BH57: Multi-split w/Heat Recovery | BI57: 0 | BJ57: 240000 | BK57: 10000000 | BL57: 9.3 | BM57: 0 | BN57: 10.8 | BO57: 3.2 | BP57: 2.05 | BQ57: 0 | BR57: 10.1 | BS57: 0 | BT57: 12.3 | BU57: 3.2 | BV57: 2.1 | BW57: 400 | BX57: 0 | BY57: 0 | BZ57: 0 | CA57: 0 | CB57: 0 | CC57: 0 | CD57: 0 | CE57: 0 | CF57: 0 | CG57: 0 | CH57: 0 | CI57: 0
BF58: 49 | BG58: VRF HP (Water Source) | BH58: Multi-split System | BI58: 0 | BJ58: 0 | BK58: 135000 | BL58: 12 | BM58: 0 | BN58: 13.8 | BO58: 4.2 | BP58: 4.2 | BQ58: 0 | BR58: 14 | BS58: 0 | BT58: 0 | BU58: 4.6 | BV58: 4.6 | BW58: 400 | BX58: 0 | BY58: 0 | BZ58: 0 | CA58: 0 | CB58: 0 | CC58: 0 | CD58: 0 | CE58: 0 | CF58: 0 | CG58: 0 | CH58: 0 | CI58: 0
BF59: 50 | BG59: VRF HP (Water Source) | BH59: Multi-split w/Heat Recovery | BI59: 0 | BJ59: 0 | BK59: 135000 | BL59: 11.8 | BM59: 0 | BN59: 13.57 | BO59: 4.2 | BP59: 4.2 | BQ59: 0 | BR59: 13.8 | BS59: 0 | BT59: 0 | BU59: 4.6 | BV59: 4.6 | BW59: 400 | BX59: 0 | BY59: 0 | BZ59: 0 | CA59: 0 | CB59: 0 | CC59: 0 | CD59: 0 | CE59: 0 | CF59: 0 | CG59: 0 | CH59: 0 | CI59: 0
BF60: 51 | BG60: 0 | BH60: 0 | BI60: 0 | BJ60: 0 | BK60: 0 | BL60: 0 | BM60: 0 | BN60: 0 | BO60: 0 | BP60: 0 | BQ60: 0 | BR60: 0 | BS60: 0 | BT60: 0 | BU60: 0 | BV60: 0 | BW60: 0 | BX60: 0 | BY60: 0 | BZ60: 0 | CA60: 0 | CB60: 0 | CC60: 0 | CD60: 0 | CE60: 0 | CF60: 0 | CG60: 0 | CH60: 0 | CI60: 0
BF61: 52 | BG61: 0 | BH61: 0 | BI61: 0 | BJ61: 0 | BK61: 0 | BL61: 0 | BM61: 0 | BN61: 0 | BO61: 0 | BP61: 0 | BQ61: 0 | BR61: 0 | BS61: 0 | BT61: 0 | BU61: 0 | BV61: 0 | BW61: 0 | BX61: 0 | BY61: 0 | BZ61: 0 | CA61: 0 | CB61: 0 | CC61: 0 | CD61: 0 | CE61: 0 | CF61: 0 | CG61: 0 | CH61: 0 | CI61: 0
AZ62: =IF(ISERROR(MID(VLOOKUP(LARGE($BA$11:$BA$67,AW39),$BA$11:$BB$68,2,),4,5)),"",MID(VLOOKUP(LARGE($BA$11:$BA$67,AW39),$BA$11:$BB$68,2,),4,5)) ->  | BA62: =IF(LEFT(BB62,2)=$H$9,AW39,"") ->  | BF62: 53 | BG62: 0 | BH62: 0 | BI62: 0 | BJ62: 0 | BK62: 0 | BL62: 0 | BM62: 0 | BN62: 0 | BO62: 0 | BP62: 0 | BQ62: 0 | BR62: 0 | BS62: 0 | BT62: 0 | BU62: 0 | BV62: 0 | BW62: 0 | BX62: 0 | BY62: 0 | BZ62: 0 | CA62: 0 | CB62: 0 | CC62: 0 | CD62: 0 | CE62: 0 | CF62: 0 | CG62: 0 | CH62: 0 | CI62: 0
BF63: 54 | BG63: 0 | BH63: 0 | BI63: 0 | BJ63: =IF($BL$4=0,0,OFFSET(BJ63,$BL$5*$BL$4,0)) -> 0 | BK63: 0 | BL63: 0 | BM63: 0 | BN63: 0 | BO63: 0 | BP63: 0 | BQ63: 0 | BR63: 0 | BS63: 0 | BT63: 0 | BU63: 0 | BV63: 0 | BW63: 0 | BX63: 0 | BY63: 0 | BZ63: 0 | CA63: 0 | CB63: 0 | CC63: 0 | CD63: 0 | CE63: 0 | CF63: 0 | CG63: 0 | CH63: 0 | CI63: 0
BF64: ↓ ADD OR CHANGE EFFICIENCY REQUIRMENTS BELOW↓
BL65: UT | BR65: Code | BS65: EFLCH | BT65: EFLHH | BU65: NTG | BV65: CF | BW65: Cooling Months | BX65: Defined in Fed Code | BY65: Estimation | BZ65: Defined in State Code | CB65: PTAC Calcs from Deemed Savings | CD65: Cost | CE65: kW/Unit | CF65: Gross kWh/yr | CG65: $/ton
BR66: IECC 2018, Tables C403.2.3(1) & C403.2.3(2) | BS66: 953.41 | BT66: 2443 | BU66: 1 | BV66: 1 | BW66: 5 | BY66: Not Used | BZ66: Existing in Program | CD66: 200 | CE66: 0.098 | CF66: 400 | CG66: 50
BL67: Baseline | BR67: Tier | BS67: 1 | BU67: 25 | BV67: per ton | BX67: Tier | BY67: 2 | CA67: 50 | CB67: =BV67 -> per ton | CD67: Tier | CE67: 3 | CG67: 75 | CH67: =CB67 -> per ton
BL68: Cooling | BO68: Heating | BR68: Cooling | BU68: Heating | BW68: Gross Incremental Cost/Ton | BX68: Cooling | CA68: Heating | CC68: Gross Incremental Cost/Ton | CD68: Cooling | CG68: Heating | CI68: Gross Incremental Cost/Ton
BL69: EER | BM69: SEER IPLV | BN69: IEER | BO69: HSPF COP @ DB/WB | BR69: EER | BS69: SEER IPLV | BT69: IEER | BU69: HSPF COP @ DB/WB | BX69: EER | BY69: SEER IPLV | BZ69: IEER | CA69: HSPF COP @ DB/WB | CD69: EER | CE69: SEER IPLV | CF69: IEER | CG69: HSPF COP @ DB/WB
BG70: Equip Type | BH70: Category | BI70: Phase | BJ70: Min (>=) | BK70: Max (<) | BO70: 47/43 | BP70: 17/15 | BU70: 47/43 | BV70: 17/15 | CA70: 47/43 | CB70: 17/15 | CG70: 47/43 | CH70: 17/15
BF71: 1 | BG71: Heat Pump (Air Cooled) | BH71: Split (1 Phase) | BI71: 1 | BJ71: 0 | BK71: 65000 | BM71: 14 | BO71: 8.2 | BP71: 8.2 | BY71: 16 | CA71: 9 | CB71: 9 | CC71: 150
BF72: 2 | BG72: Heat Pump (Air Cooled) | BH72: Package (1 Phase) | BI72: 1 | BJ72: 0 | BK72: 65000 | BM72: 14 | BO72: 8 | BP72: 8 | BY72: 16 | CA72: 8.2 | CB72: 8.2 | CC72: 150
BF73: 3 | BG73: Heat Pump (Air Cooled) | BH73: Split (3 Phase) | BI73: 3 | BJ73: 0 | BK73: 65000 | BM73: 14 | BO73: 8.2 | BP73: 8.2 | BS73: 15 | BU73: 8.5 | BV73: 8.5 | BW73: 105 | BY73: 16 | CA73: 9 | CB73: 9 | CC73: 150
BF74: 4 | BG74: Heat Pump (Air Cooled) | BH74: Package (3 Phase) | BI74: 3 | BJ74: 0 | BK74: 65000 | BM74: 14 | BO74: 8 | BP74: 8 | BS74: 15 | BU74: 8.2 | BV74: 8.2 | BW74: 105 | BY74: 16 | CA74: 8.2 | CB74: 8.2 | CC74: 150
BF75: 5 | BG75: Heat Pump (Air Cooled) | BH75: Split (3 Phase) Package (3 Phase) | BI75: 3 | BJ75: 65000 | BK75: 135000 | BL75: 10.8 | BN75: 12 | BO75: 3.3 | BP75: 2.25 | BR75: 10.8 | BT75: 13.4 | BU75: 3.4 | BV75: 2.4 | BW75: 105 | CC75: 150
BF76: 6 | BG76: Heat Pump (Air Cooled) | BH76: Split (3 Phase) Package (3 Phase) | BI76: 3 | BJ76: 135000 | BK76: 240000 | BL76: 10.4 | BN76: 11.4 | BO76: 3.2 | BP76: 2.05 | BR76: 10.4 | BT76: 12.6 | BU76: 3.3 | BV76: 2.1 | BW76: 105 | CC76: 150
BF77: 7 | BG77: Heat Pump (Air Cooled) | BH77: Split (3 Phase) Package (3 Phase) | BI77: 3 | BJ77: 240000 | BK77: 10000000 | BL77: 9.3 | BN77: 10.4 | BO77: 3.2 | BP77: 2.05 | BR77: 9.3 | BT77: 11.6 | BU77: 3.3 | BV77: 2.1 | BW77: 105 | CC77: 150
BF78: 8 | BG78: Heat Pump (Water Cooled) | BJ78: 0 | BK78: 17000 | BL78: 12.2 | BN78: =BL78*1.15 -> 14.03 | BO78: 4.3 | BP78: 4.3 | BX78: 14 | CA78: 4.6 | CB78: 4.6 | CC78: 100
BF79: 9 | BG79: Heat Pump (Water Cooled) | BJ79: 17000 | BK79: 65000 | BL79: 13 | BN79: =BL79*1.15 -> 14.95 | BO79: 4.3 | BP79: 4.3 | BX79: 14 | CA79: 4.6 | CB79: 4.6 | CC79: 100
BF80: 10 | BG80: Heat Pump (Water Cooled) | BJ80: 65000 | BK80: 135000 | BL80: 13 | BN80: =BL80*1.15 -> 14.95 | BO80: 4.3 | BP80: 4.3 | BX80: 14 | CA80: 4.6 | CB80: 4.6 | CC80: 100
BF81: 11 | BG81: Unitary AC (Air Cooled) | BH81: Split (1 Phase) | BI81: 1 | BJ81: 0 | BK81: 45000 | BL81: 11 | BM81: 13 | BX81: 11 | BY81: 16 | CC81: 235 | CD81: 11 | CE81: 18 | CI81: 375
BF82: 12 | BG82: Unitary AC (Air Cooled) | BH82: Split (1 Phase) | BI82: 1 | BJ82: 45000 | BK82: 65000 | BL82: 11 | BM82: 13 | BX82: 11 | BY82: 16 | CC82: 235 | CD82: 11 | CE82: 18 | CI82: 375
BF83: 13 | BG83: Unitary AC (Air Cooled) | BH83: Package (1 Phase) | BI83: 1 | BJ83: 0 | BK83: 65000 | BL83: 11 | BM83: 14 | BX83: 10000 | BY83: 10000 | CC83: 235 | CD83: 10000 | CE83: 10000
BF84: 14 | BG84: Unitary AC (Air Cooled) | BH84: Split (3 Phase) | BI84: 3 | BJ84: 0 | BK84: 65000 | BL84: 11 | BM84: 13 | BX84: 11 | BY84: 16 | CC84: 175 | CD84: 11 | CE84: 18 | CI84: 375
BF85: 15 | BG85: Unitary AC (Air Cooled) | BH85: Package (3 Phase) | BI85: 3 | BJ85: 0 | BK85: 65000 | BL85: 11 | BM85: 14 | BX85: 10000 | BY85: 10000 | CC85: 175 | CD85: 10000 | CE85: 10000
BF86: 16 | BG86: Unitary AC (Air Cooled) | BH86: Split (3 Phase) | BI86: 3 | BJ86: 65000 | BK86: 135000 | BL86: 11 | BM86: 10000 | BN86: 12.7 | BX86: 11 | BZ86: 14.6 | CC86: 150 | CD86: 11 | CF86: 17.8 | CI86: 300
BF87: 17 | BG87: Unitary AC (Air Cooled) | BH87: Split (3 Phase) Package (3 Phase) | BI87: 3 | BJ87: 135000 | BK87: 240000 | BL87: 10.8 | BM87: 10000 | BN87: 12.2 | BX87: 10.8 | BZ87: 14 | CC87: 125 | CD87: 10.8 | CF87: 16.8 | CI87: 205
BF88: 18 | BG88: Unitary AC (Air Cooled) | BH88: Split (3 Phase) Package (3 Phase) | BI88: 3 | BJ88: 240000 | BK88: 760000 | BL88: 9.8 | BM88: 10000 | BN88: 11.4 | BX88: 9.8 | BZ88: 13 | CC88: 95 | CD88: 9.8 | CF88: 14.3 | CI88: 185
BF89: 19 | BG89: Unitary AC (Air Cooled) | BH89: Split (3 Phase) Package (3 Phase) | BI89: 3 | BJ89: 760000 | BK89: 10000000 | BL89: 9.5 | BM89: 10000 | BN89: 11 | BX89: 9.5 | BZ89: 12.1 | CC89: 160
BF90: 20 | BG90: Ground-Source Heat Pump | BJ90: 0 | BK90: 10000000 | BL90: 14.1 | BN90: =BL90*1.15 -> 16.215 | BO90: 3.2 | BP90: 3.2 | BX90: 17.1 | CA90: 3.6 | CB90: 3.6 | CC90: 150
BF91: 21 | BG91: Groundwater Source Heat Pump | BJ91: 0 | BK91: 10000000 | BL91: 18 | BN91: =BL91*1.15 -> 20.7 | BO91: 3.7 | BP91: 3.7 | BX91: 21.1 | CA91: 4.1 | CB91: 4.1 | CC91: 150
BF92: 22 | BG92: Unitary AC (Water Cooled) | BH92: Split (1 Phase) | BI92: 1 | BJ92: 0 | BK92: 65000 | BL92: 12.1 | BN92: 12.3 | BX92: 14 | CC92: 100
BF93: 23 | BG93: Unitary AC (Water Cooled) | BH93: Package (1 Phase) | BI93: 1 | BJ93: 0 | BK93: 65000 | BL93: 12.1 | BN93: 12.3 | BX93: 14 | CC93: 100
BF94: 24 | BG94: Unitary AC (Water Cooled) | BH94: Split (3 Phase) | BI94: 3 | BJ94: 0 | BK94: 65000 | BL94: 12.1 | BN94: 12.3 | BX94: 14 | CC94: 100
BF95: 25 | BG95: Unitary AC (Water Cooled) | BH95: Package (3 Phase) | BI95: 3 | BJ95: 0 | BK95: 65000 | BL95: 12.1 | BN95: 12.3 | BX95: 14 | CC95: 100
BF96: 26 | BG96: Unitary AC (Water Cooled) | BH96: Split (3 Phase) Package (3 Phase) | BI96: 3 | BJ96: 65000 | BK96: 135000 | BL96: 11.9 | BM96: 10000 | BN96: 13.7 | BX96: 11.9 | BZ96: 15.1 | CC96: 100
BF97: 27 | BG97: Unitary AC (Water Cooled) | BH97: Split (3 Phase) Package (3 Phase) | BI97: 3 | BJ97: 135000 | BK97: 240000 | BL97: 12.3 | BM97: 10000 | BN97: 13.7 | BX97: 12.3 | BZ97: 14.6 | CC97: 100
BF98: 28 | BG98: Unitary AC (Water Cooled) | BH98: Split (3 Phase) Package (3 Phase) | BI98: 3 | BJ98: 240000 | BK98: 760000 | BL98: 12.2 | BM98: 10000 | BN98: 13.4 | BX98: 12.3 | BZ98: 14.6 | CC98: 100
BF99: 29 | BG99: Unitary AC (Water Cooled) | BH99: Split (3 Phase) Package (3 Phase) | BI99: 3 | BJ99: 760000 | BK99: 10000000 | BL99: 12 | BM99: 10000 | BN99: 13.3 | BX99: 12.3 | BZ99: 14.6 | CC99: 100
BF100: 30 | BG100: Unitary AC (Evaporatively Cooled) | BH100: Split (1 Phase) | BI100: 1 | BJ100: 0 | BK100: 65000 | BL100: 12.1 | BN100: 12.3 | BX100: 14 | CC100: 100
BF101: 31 | BG101: Unitary AC (Evaporatively Cooled) | BH101: Package (1 Phase) | BI101: 1 | BJ101: 0 | BK101: 65000 | BL101: 12.1 | BN101: 12.3 | BX101: 14 | CC101: 100
BF102: 32 | BG102: Unitary AC (Evaporatively Cooled) | BH102: Split (3 Phase) | BI102: 3 | BJ102: 0 | BK102: 65000 | BL102: 12.1 | BN102: 12.3 | BX102: 14 | CC102: 100
BF103: 33 | BG103: Unitary AC (Evaporatively Cooled) | BH103: Package (3 Phase) | BI103: 3 | BJ103: 0 | BK103: 65000 | BL103: 12.1 | BN103: 12.3 | BX103: 14 | CC103: 100
BF104: 34 | BG104: Unitary AC (Evaporatively Cooled) | BH104: Split (3 Phase) Package (3 Phase) | BI104: 3 | BJ104: 65000 | BK104: 135000 | BL104: 11.9 | BM104: 10000 | BN104: 12.1 | BX104: 11.9 | BZ104: 15.1 | CC104: 100
BF105: 35 | BG105: Unitary AC (Evaporatively Cooled) | BH105: Split (3 Phase) Package (3 Phase) | BI105: 3 | BJ105: 135000 | BK105: 240000 | BL105: 11.8 | BM105: 10000 | BN105: 12 | BX105: 11.8 | BZ105: 14.1 | CC105: 100
BF106: 36 | BG106: Unitary AC (Evaporatively Cooled) | BH106: Split (3 Phase) Package (3 Phase) | BI106: 3 | BJ106: 240000 | BK106: 760000 | BL106: 11.7 | BM106: 10000 | BN106: 11.9 | BX106: 11.8 | BZ106: 14.1 | CC106: 100
BF107: 37 | BG107: Unitary AC (Evaporatively Cooled) | BH107: Split (3 Phase) Package (3 Phase) | BI107: 3 | BJ107: 760000 | BK107: 10000000 | BL107: 11.5 | BM107: 10000 | BN107: 11.7 | BX107: 11.8 | BZ107: 14.1 | CC107: 100
BF108: 38 | BG108: VRF HP (Air Cooled) | BH108: Multi-split System | BJ108: 0 | BK108: 65000 | BL108: 11 | BM108: 13 | BO108: 7.7 | BP108: 7.7 | CD108: 1 | CE108: 15 | CG108: 8.5 | CH108: 8.5 | CI108: 535
BF109: 39 | BG109: VRF HP (Air Cooled) | BH109: Multi-split w/Heat Recovery | BJ109: 0 | BK109: 65000 | BL109: 11 | BM109: 13 | BO109: 7.7 | BP109: 7.7 | CD109: 1 | CE109: 15 | CG109: 8.5 | CH109: 8.5 | CI109: 535
BF110: 40 | BG110: VRF HP (Air Cooled) | BH110: Multi-split System | BJ110: 65000 | BK110: 135000 | BL110: 11 | BM110: 10000 | BN110: 12.9 | BO110: 3.3 | BP110: 2.25 | CD110: 10.8 | CF110: 14.2 | CG110: 3.4 | CH110: 2.4 | CI110: 535
BF111: 41 | BG111: VRF HP (Air Cooled) | BH111: Multi-split w/Heat Recovery | BJ111: 65000 | BK111: 135000 | BL111: 10.8 | BM111: 10000 | BN111: 12.7 | BO111: 3.3 | BP111: 2.25 | CD111: 10.8 | CF111: 14 | CG111: 3.4 | CH111: 2.4 | CI111: 775
BF112: 42 | BG112: VRF HP (Air Cooled) | BH112: Multi-split System | BJ112: 135000 | BK112: 240000 | BL112: 10.6 | BM112: 10000 | BN112: 12.3 | BO112: 3.2 | BP112: 2.05 | CD112: 10.4 | CF112: 13.7 | CG112: 3.2 | CH112: 2.1 | CI112: 560
BF113: 43 | BG113: VRF HP (Air Cooled) | BH113: Multi-split w/Heat Recovery | BJ113: 135000 | BK113: 240000 | BL113: 10.4 | BM113: 10000 | BN113: 12.1 | BO113: 3.2 | BP113: 2.05 | CD113: 10.4 | CF113: 13.5 | CG113: 3.2 | CH113: 2.1 | CI113: 735
BF114: 44 | BG114: VRF HP (Air Cooled) | BH114: Multi-split System | BJ114: 240000 | BK114: 10000000 | BL114: 9.5 | BM114: 10000 | BN114: 11 | BO114: 3.2 | BP114: 2.05 | CD114: 9.3 | CF114: 12.5 | CG114: 3.2 | CH114: 2.1 | CI114: 525
BF115: 45 | BG115: VRF HP (Air Cooled) | BH115: Multi-split w/Heat Recovery | BJ115: 240000 | BK115: 10000000 | BL115: 9.3 | BM115: 10000 | BN115: 10.8 | BO115: 3.2 | BP115: 2.05 | CD115: 9.3 | CF115: 12.3 | CG115: 3.2 | CH115: 2.1 | CI115: 800
BF116: 46 | BG116: VRF HP (Water Source) | BH116: Multi-split System | BJ116: 0 | BK116: 760000 | BL116: 12 | BN116: =BL116*1.15 -> 13.8 | BO116: 4.2 | BP116: 4.2 | CD116: 14 | CG116: 4.6 | CH116: 4.6 | CI116: 535
BF117: 47 | BG117: VRF HP (Water Source) | BH117: Multi-split w/Heat Recovery | BJ117: 0 | BK117: 760000 | BL117: 11.8 | BN117: =BL117*1.15 -> 13.57 | BO117: 4.2 | BP117: 4.2 | CD117: 13.8 | CG117: 4.6 | CH117: 4.6 | CI117: 775
BF118: 48
BF119: 49
BF120: 50
BF121: 51
BF122: 52
BF123: 53
BF124: 54
BL126: WA | BR126: Code | BS126: EFLCH | BT126: EFLHH | BU126: NTG | BV126: CF | BW126: Cooling Months | BX126: Defined in Fed Code | BY126: Estimation | BZ126: Defined in Code | CB126: PTAC Calcs from Deemed Savings | CD126: Cost | CE126: kW/Unit | CF126: Gross kWh/yr | CG126: $/ton
BR127: WSEC 2015, Tables C403.2.3(1)A, C403.2.3(1)D, C403.2.3(2) | BS127: 710.21 | BT127: 2201 | BU127: 1 | BV127: 1 | BW127: 5 | BY127: Not Used | BZ127: Existing in Program | CD127: 200 | CE127: 0.098 | CF127: 377 | CG127: 50
BL128: Baseline | BR128: Tier | BS128: 1 | BU128: 31 | BV128: per ton | BX128: Tier | BY128: 2 | CA128: 62 | CB128: =BV128 -> per ton | CD128: Tier | CE128: 3 | CG128: 93 | CH128: =CB128 -> per ton
BL129: Cooling | BO129: Heating | BR129: Cooling | BU129: Heating | BW129: Gross Incremental Cost/Ton | BX129: Cooling | CA129: Heating | CC129: Gross Incremental Cost/Ton | CD129: Cooling | CG129: Heating | CI129: Gross Incremental Cost/Ton
BL130: EER | BM130: SEER IPLV | BN130: IEER | BO130: HSPF COP @ DB/WB | BR130: EER | BS130: SEER IPLV | BT130: IEER | BU130: HSPF COP @ DB/WB | BX130: EER | BY130: SEER IPLV | BZ130: IEER | CA130: HSPF COP @ DB/WB | CD130: EER | CE130: SEER IPLV | CF130: IEER | CG130: HSPF COP @ DB/WB
BG131: Equip Type | BH131: Category | BI131: Phase | BJ131: Min (>=) | BK131: Max (<) | BO131: 47/43 | BP131: 17/15 | BU131: 47/43 | BV131: 17/15 | CA131: 47/43 | CB131: 17/15 | CG131: 47/43 | CH131: 17/15
BF132: 1 | BG132: Heat Pump (Air Cooled) | BH132: Split (1 Phase) | BI132: 1 | BJ132: 0 | BK132: 65000 | BM132: 14 | BO132: 8.2 | BP132: 8.2 | BW132: 105 | BY132: 16 | CA132: 9 | CB132: 9 | CC132: 450
BF133: 2 | BG133: Heat Pump (Air Cooled) | BH133: Package (1 Phase) | BI133: 1 | BJ133: 0 | BK133: 65000 | BM133: 14 | BO133: 8 | BP133: 8 | BW133: 105 | BY133: 16 | CA133: 8.2 | CB133: 8.2 | CC133: 450
BF134: 3 | BG134: Heat Pump (Air Cooled) | BH134: Split (3 Phase) | BI134: 3 | BJ134: 0 | BK134: 65000 | BM134: 14 | BO134: 8.2 | BP134: 8.2 | BS134: 15 | BU134: 8.5 | BV134: 8.5 | BW134: 105 | BY134: 16 | CA134: 9 | CB134: 9 | CC134: 150
BF135: 4 | BG135: Heat Pump (Air Cooled) | BH135: Package (3 Phase) | BI135: 3 | BJ135: 0 | BK135: 65000 | BM135: 14 | BO135: 8 | BP135: 8 | BS135: 15 | BU135: 8.2 | BV135: 8.2 | BW135: 105 | BY135: 16 | CA135: 8.2 | CB135: 8.2 | CC135: 150
BF136: 5 | BG136: Heat Pump (Air Cooled) | BH136: Split (1 Phase) Package (1 Phase) Split (3 Phase) Package (3 Phase) | BI136: 3 | BJ136: 65000 | BK136: 135000 | BL136: 10.8 | BN136: 12 | BO136: 3.3 | BP136: 2.25 | BR136: 10.8 | BT136: 13.4 | BU136: 3.4 | BV136: 2.4 | BW136: 105 | CC136: 150
BF137: 6 | BG137: Heat Pump (Air Cooled) | BH137: Split (1 Phase) Package (1 Phase) Split (3 Phase) Package (3 Phase) | BI137: 3 | BJ137: 135000 | BK137: 240000 | BL137: 10.4 | BN137: 11.4 | BO137: 3.2 | BP137: 2.05 | BR137: 10.4 | BT137: 12.6 | BU137: 3.2 | BV137: 2.1 | BW137: 105 | CC137: 150
BF138: 7 | BG138: Heat Pump (Air Cooled) | BH138: Split (1 Phase) Package (1 Phase) Split (3 Phase) Package (3 Phase) | BI138: 3 | BJ138: 240000 | BK138: 760000 | BL138: 9.3 | BN138: 10.4 | BO138: 3.2 | BP138: 2.05 | BR138: 9.3 | BT138: 11.6 | BU138: 3.2 | BV138: 2.1 | BW138: 105 | CC138: 150
BF139: 8 | BG139: Heat Pump (Air Cooled, Replacing Electric Resistance) | BH139: Split (1 Phase) | BI139: 1 | BJ139: 0 | BK139: 65000 | BL139: 10.87 | BM139: 14 | BO139: 8.2 | BP139: 8.2 | BS139: 15 | BU139: 8.5 | BV139: 8.5 | BW139: 105 | BY139: 16 | CA139: 9 | CB139: 9 | CC139: 450
BF140: 9 | BG140: Heat Pump (Air Cooled, Replacing Electric Resistance) | BH140: Package (1 Phase) | BI140: 1 | BJ140: 0 | BK140: 65000 | BL140: 10.87 | BM140: 14 | BO140: 8 | BP140: 8 | BS140: 15 | BU140: 8.2 | BV140: 8.2 | BW140: 105 | BY140: 16 | CA140: 8.2 | CB140: 8.2 | CC140: 450
BF141: 10 | BG141: Heat Pump (Air Cooled, Replacing Electric Resistance) | BH141: Split (3 Phase) | BI141: 3 | BJ141: 0 | BK141: 65000 | BL141: 9.23 | BM141: 14 | BO141: 8.2 | BP141: 8.2 | BS141: 15 | BU141: 8.5 | BV141: 8.5 | BW141: 105 | BY141: 16 | CA141: 9 | CB141: 9 | CC141: 150
BF142: 11 | BG142: Heat Pump (Air Cooled, Replacing Electric Resistance) | BH142: Package (3 Phase) | BI142: 3 | BJ142: 0 | BK142: 65000 | BL142: 9.23 | BM142: 14 | BO142: 8 | BP142: 8 | BS142: 15 | BU142: 8.2 | BV142: 8.2 | BW142: 105 | BY142: 16 | CA142: 8.2 | CB142: 8.2 | CC142: 150
BF143: 12 | BG143: Heat Pump (Air Cooled, Replacing Electric Resistance) | BH143: Split (1 Phase) Package (1 Phase) Split (3 Phase) Package (3 Phase) | BI143: 3 | BJ143: 65000 | BK143: 135000 | BL143: 10.8 | BN143: 12 | BO143: 3.3 | BP143: 2.25 | BR143: 11 | BT143: 13.6 | BU143: 3.4 | BV143: 2.4 | BW143: 105 | CC143: 150
BF144: 13 | BG144: Heat Pump (Air Cooled, Replacing Electric Resistance) | BH144: Split (1 Phase) Package (1 Phase) Split (3 Phase) Package (3 Phase) | BI144: 3 | BJ144: 135000 | BK144: 240000 | BL144: 10.4 | BN144: 11.4 | BO144: 3.2 | BP144: 2.05 | BR144: 10.6 | BT144: 12.8 | BU144: 3.3 | BV144: 2.1 | BW144: 105 | CC144: 150
BF145: 14 | BG145: Heat Pump (Air Cooled, Replacing Electric Resistance) | BH145: Split (1 Phase) Package (1 Phase) Split (3 Phase) Package (3 Phase) | BI145: 3 | BJ145: 240000 | BK145: 760000 | BL145: 9.3 | BN145: 10.4 | BO145: 3.2 | BP145: 2.05 | BR145: 9.5 | BT145: 11.8 | BU145: 3.3 | BV145: 2.1 | BW145: 105 | CC145: 150
BF146: 15 | BG146: Heat Pump (Water Cooled) | BJ146: 0 | BK146: 17000 | BL146: 12.2 | BN146: =BL146*1.15 -> 14.03 | BO146: 4.3 | BP146: 4.3 | BX146: 14 | CA146: 4.6 | CB146: 4.6 | CC146: 100
BF147: 16 | BG147: Heat Pump (Water Cooled) | BJ147: 17000 | BK147: 65000 | BL147: 13 | BN147: =BL147*1.15 -> 14.95 | BO147: 4.3 | BP147: 4.3 | BX147: 14 | CA147: 4.6 | CB147: 4.6 | CC147: 100
BF148: 17 | BG148: Heat Pump (Water Cooled) | BJ148: 65000 | BK148: 135000 | BL148: 13 | BN148: =BL148*1.15 -> 14.95 | BO148: 4.3 | BP148: 4.3 | BX148: 14 | CA148: 4.6 | CB148: 4.6 | CC148: 100
BF149: 18 | BG149: Unitary AC (Air Cooled) | BH149: Split (1 Phase) | BI149: 1 | BJ149: 0 | BK149: 45000 | BL149: 11 | BM149: 13 | BX149: 11 | BY149: 16 | CC149: 375 | CD149: 11 | CE149: 18 | CI149: 400
BF150: 19 | BG150: Unitary AC (Air Cooled) | BH150: Split (1 Phase) | BI150: 1 | BJ150: 45000 | BK150: 65000 | BL150: 11 | BM150: 13 | BX150: 11 | BY150: 16 | CC150: 375 | CD150: 11 | CE150: 18 | CI150: 400
BF151: 20 | BG151: Unitary AC (Air Cooled) | BH151: Package (1 Phase) | BI151: 1 | BJ151: 0 | BK151: 65000 | BL151: 11 | BM151: 14 | BX151: 11 | BY151: 16 | CC151: 375 | CD151: 11 | CE151: 17 | CI151: 400
BF152: 21 | BG152: Unitary AC (Air Cooled) | BH152: Split (3 Phase) | BI152: 3 | BJ152: 0 | BK152: 65000 | BL152: 11 | BM152: 13 | BX152: 11 | BY152: 16 | CC152: 175 | CD152: 11 | CE152: 18 | CI152: 375
BF153: 22 | BG153: Unitary AC (Air Cooled) | BH153: Package (3 Phase) | BI153: 3 | BJ153: 0 | BK153: 65000 | BL153: 11 | BM153: 14 | BX153: 11 | BY153: 16 | CC153: 175 | CD153: 11 | CE153: 17 | CI153: 375
BF154: 23 | BG154: Unitary AC (Air Cooled) | BH154: Split (3 Phase) Package (3 Phase) | BI154: 3 | BJ154: 65000 | BK154: 135000 | BL154: 11 | BN154: 12.7 | BX154: 11 | BZ154: 14.6 | CC154: 150 | CD154: 11 | CF154: 17.8 | CI154: 300
BF155: 24 | BG155: Unitary AC (Air Cooled) | BH155: Split (3 Phase) Package (3 Phase) | BI155: 3 | BJ155: 135000 | BK155: 240000 | BL155: 10.8 | BN155: 12.2 | BX155: 10.8 | BZ155: 14 | CC155: 125 | CD155: 10.8 | CF155: 16.8 | CI155: 205
BF156: 25 | BG156: Unitary AC (Air Cooled) | BH156: Split (3 Phase) Package (3 Phase) | BI156: 3 | BJ156: 240000 | BK156: 760000 | BL156: 9.8 | BN156: 11.4 | BX156: 9.8 | BZ156: 13 | CC156: 150 | CD156: 9.8 | CF156: 14.3 | CI156: 185
BF157: 26 | BG157: Unitary AC (Air Cooled) | BH157: Split (3 Phase) Package (3 Phase) | BI157: 3 | BJ157: 760000 | BK157: 10000000 | BL157: 9.5 | BN157: 11.6 | BX157: 9.5 | BZ157: 12.1 | CC157: 75
BF158: 27 | BG158: Ground-Source Heat Pump | BJ158: 0 | BK158: 10000000 | BL158: 14.1 | BN158: =BL158*1.15 -> 16.215 | BO158: 3.2 | BP158: 3.2 | BX158: 17.1 | CA158: 3.6 | CB158: 3.6 | CC158: 100
BF159: 28 | BG159: Groundwater Source Heat Pump | BJ159: 0 | BK159: 10000000 | BL159: 18 | BN159: =BL159*1.15 -> 20.7 | BO159: 3.7 | BP159: 3.7 | BX159: 21.1 | CA159: 4.1 | CB159: 4.1 | CC159: 100
BF160: 29 | BG160: Unitary AC (Water Cooled) | BH160: Split (1 Phase) | BI160: 1 | BJ160: 0 | BK160: 65000 | BL160: 12.1 | BN160: 12.3 | BR160: 14 | BT160: 12.3 | BW160: 100
BF161: 30 | BG161: Unitary AC (Water Cooled) | BH161: Package (1 Phase) | BI161: 1 | BJ161: 0 | BK161: 65000 | BL161: 12.1 | BN161: 12.3 | BR161: 14 | BT161: 12.3 | BW161: 100
BF162: 31 | BG162: Unitary AC (Water Cooled) | BH162: Split (3 Phase) | BI162: 3 | BJ162: 0 | BK162: 65000 | BL162: 12.1 | BN162: 12.3 | BR162: 14 | BT162: 12.3 | BW162: 100
BF163: 32 | BG163: Unitary AC (Water Cooled) | BH163: Package (3 Phase) | BI163: 3 | BJ163: 0 | BK163: 65000 | BL163: 12.1 | BN163: 12.3 | BR163: 14 | BT163: 12.3 | BW163: 100
BF164: 33 | BG164: Unitary AC (Water Cooled) | BH164: Split (3 Phase) Package (3 Phase) | BI164: 3 | BJ164: 65000 | BK164: 135000 | BL164: 11.9 | BN164: 13.7 | BR164: 11.9 | BT164: 15.1 | BW164: 100
BF165: 34 | BG165: Unitary AC (Water Cooled) | BH165: Split (3 Phase) Package (3 Phase) | BI165: 3 | BJ165: 135000 | BK165: 240000 | BL165: 12.3 | BN165: 13.7 | BR165: 12.3 | BT165: 14.6 | BW165: 100
BF166: 35 | BG166: Unitary AC (Water Cooled) | BH166: Split (3 Phase) Package (3 Phase) | BI166: 3 | BJ166: 240000 | BK166: 760000 | BL166: 12.2 | BN166: 13.4 | BR166: 12.3 | BT166: 14.6 | BW166: 100
BF167: 36 | BG167: Unitary AC (Water Cooled) | BH167: Split (3 Phase) Package (3 Phase) | BI167: 3 | BJ167: 760000 | BK167: 10000000 | BL167: 12 | BN167: 13.3 | BR167: 12.3 | BT167: 14.6 | BW167: 100
BF168: 37 | BG168: Unitary AC (Evaporatively Cooled) | BH168: Split (1 Phase) | BI168: 1 | BJ168: 0 | BK168: 65000 | BL168: 12.1 | BN168: 12.3 | BX168: 14 | BZ168: 12.3 | CC168: 100
BF169: 38 | BG169: Unitary AC (Evaporatively Cooled) | BH169: Package (1 Phase) | BI169: 1 | BJ169: 0 | BK169: 65000 | BL169: 12.1 | BN169: 12.3 | BX169: 14 | BZ169: 12.3 | CC169: 100
BF170: 39 | BG170: Unitary AC (Evaporatively Cooled) | BH170: Split (3 Phase) | BI170: 3 | BJ170: 0 | BK170: 65000 | BL170: 12.1 | BN170: 12.3 | BX170: 14 | BZ170: 12.3 | CC170: 100
BF171: 40 | BG171: Unitary AC (Evaporatively Cooled) | BH171: Package (3 Phase) | BI171: 3 | BJ171: 0 | BK171: 65000 | BL171: 12.1 | BN171: 12.3 | BX171: 14 | BZ171: 12.3 | CC171: 100
BF172: 41 | BG172: Unitary AC (Evaporatively Cooled) | BH172: Split (1 Phase) Package (1 Phase) Split (3 Phase) Package (3 Phase) | BI172: 3 | BJ172: 65000 | BK172: 135000 | BL172: 11.9 | BN172: 12.1 | BX172: 11.9 | BZ172: 15.1 | CC172: 100
BF173: 42 | BG173: Unitary AC (Evaporatively Cooled) | BH173: Split (1 Phase) Package (1 Phase) Split (3 Phase) Package (3 Phase) | BI173: 3 | BJ173: 135000 | BK173: 240000 | BL173: 11.8 | BN173: 12 | BX173: 11.8 | BZ173: 14.1 | CC173: 100
BF174: 43 | BG174: Unitary AC (Evaporatively Cooled) | BH174: Split (1 Phase) Package (1 Phase) Split (3 Phase) Package (3 Phase) | BI174: 3 | BJ174: 240000 | BK174: 760000 | BL174: 11.7 | BN174: 11.9 | BX174: 11.8 | BZ174: 14.1 | CC174: 100
BF175: 44 | BG175: Unitary AC (Evaporatively Cooled) | BH175: Split (1 Phase) Package (1 Phase) Split (3 Phase) Package (3 Phase) | BI175: 3 | BJ175: 760000 | BK175: 10000000 | BL175: 11.5 | BN175: 11.7 | BX175: 11.8 | BZ175: 14.1 | CC175: 100
BF176: 45 | BG176: VRF HP (Air Cooled) | BH176: Multi-split System | BJ176: 0 | BK176: 65000 | BL176: 10.87 | BM176: 13 | BO176: 8.2 | BP176: 8.2 | CD176: 12.5 | CE176: 15 | CG176: 8.5 | CH176: 8.5 | CI176: 400
BF177: 46 | BG177: VRF HP (Air Cooled) | BH177: Multi-split w/Heat Recovery | BJ177: 0 | BK177: 65000 | BL177: 10.87 | BM177: 13 | BO177: 8.2 | BP177: 8.2 | CD177: 12.5 | CE177: 15 | CG177: 8.5 | CH177: 8.5 | CI177: 400
BF178: 47 | BG178: VRF HP (Air Cooled) | BH178: Multi-split System | BJ178: 65000 | BK178: 135000 | BL178: 11 | BN178: 12.7 | BO178: 3.3 | BP178: 2.25 | CD178: 11.5 | CF178: 16 | CG178: 3.4 | CH178: 2.4 | CI178: 400
BF179: 48 | BG179: VRF HP (Air Cooled) | BH179: Multi-split w/Heat Recovery | BJ179: 65000 | BK179: 135000 | BL179: 11 | BN179: 12.7 | BO179: 3.3 | BP179: 2.25 | CD179: 11.5 | CF179: 16 | CG179: 3.4 | CH179: 2.4 | CI179: 400
BF180: 49 | BG180: VRF HP (Air Cooled) | BH180: Multi-split System | BJ180: 135000 | BK180: 240000 | BL180: 10.8 | BN180: 12.2 | BO180: 3.2 | BP180: 2.05 | CD180: 10.9 | CF180: 15.4 | CG180: 3.2 | CH180: 2.5 | CI180: 400
BF181: 50 | BG181: VRF HP (Air Cooled) | BH181: Multi-split w/Heat Recovery | BJ181: 135000 | BK181: 240000 | BL181: 10.8 | BN181: 12.2 | BO181: 3.2 | BP181: 2.05 | CD181: 10.9 | CF181: 15.4 | CG181: 3.2 | CH181: 2.5 | CI181: 400
BF182: 51 | BG182: VRF HP (Air Cooled) | BH182: Multi-split System | BJ182: 240000 | BK182: 10000000 | BL182: 9.8 | BN182: 11.4 | BO182: 3.2 | BP182: 2.05 | CD182: 9.6 | CF182: 14.3 | CG182: 3.2 | CH182: 2.5 | CI182: 400
BF183: 52 | BG183: VRF HP (Air Cooled) | BH183: Multi-split w/Heat Recovery | BJ183: 240000 | BK183: 10000000 | BL183: 9.8 | BN183: 11.4 | BO183: 3.2 | BP183: 2.05 | CD183: 9.6 | CF183: 14.3 | CG183: 3.2 | CH183: 2.5 | CI183: 400
BF184: 53 | BG184: VRF HP (Water Source) | BH184: Multi-split System | BJ184: 0 | BK184: 135000 | BL184: 12 | BN184: =BL184*1.15 -> 13.8 | BO184: 4.2 | BP184: 4.2 | CD184: 14 | CF184: 16 | CG184: 4.6 | CH184: 4.6 | CI184: 400
BF185: 54 | BG185: VRF HP (Water Source) | BH185: Multi-split w/Heat Recovery | BJ185: 0 | BK185: 135000 | BL185: 11.8 | BN185: =BL185*1.15 -> 13.57 | BO185: 4.2 | BP185: 4.2 | CD185: 13.8 | CF185: 15.8 | CG185: 4.6 | CH185: 4.6 | CI185: 400
BL187: CA | BR187: Code | BS187: EFLCH | BT187: EFLHH | BU187: NTG | BV187: CF | BW187: Cooling Months | BX187: Defined in Fed Code | BY187: Estimation | BZ187: Defined in Code | CB187: PTAC Calcs from Deemed Savings | CD187: Cost | CE187: kW/Unit | CF187: Gross kWh/yr | CG187: $/ton
BR188: Title 24 - 2013, Table 110.2-A, 110.2-B, 110.2-I | BS188: 837.93 | BT188: 2016 | BU188: 1 | BV188: 1 | BW188: 5 | BY188: Not Used | BZ188: Existing in Program | CD188: 200 | CE188: 0.098 | CF188: 313 | CG188: 50
BL189: Baseline | BR189: Tier | BS189: 1 | BV189: per ton | BX189: Tier | BY189: 2 | CA189: 50 | CB189: per ton | CD189: Tier | CE189: 3 | CG189: 50 | CH189: per ton
BL190: Cooling | BO190: Heating | BR190: Cooling | BU190: Heating | BW190: Gross Incremental Cost/Ton | BX190: Cooling | CA190: Heating | CC190: Gross Incremental Cost/Ton | CD190: Cooling | CG190: Heating | CI190: Gross Incremental Cost/Ton
BL191: EER | BM191: SEER IPLV | BN191: IEER | BO191: HSPF COP @ DB/WB | BR191: EER | BS191: SEER IPLV | BT191: IEER | BU191: HSPF COP @ DB/WB | BX191: EER | BY191: SEER IPLV | BZ191: IEER | CA191: HSPF COP @ DB/WB | CD191: EER | CE191: SEER IPLV | CF191: IEER | CG191: HSPF COP @ DB/WB
BG192: Equip Type | BH192: Category | BI192: Phase | BJ192: Min (>=) | BK192: Max (<) | BO192: 47/43 | BP192: 17/15 | BU192: 47/43 | BV192: 17/15 | CA192: 47/43 | CB192: 17/15 | CG192: 47/43 | CH192: 17/15
BF193: 1 | BG193: Heat Pump (Air Cooled) | BH193: Split (1 Phase) | BI193: 1 | BJ193: 0 | BK193: 65000 | BL193: 10.87 | BM193: 14 | BO193: 8.2 | BP193: 8.2 | BR193: 10000 | BS193: 10000 | BT193: 10000 | BU193: 10000 | BV193: 10000 | BX193: 10000 | BY193: 10000 | BZ193: 10000 | CA193: 10000 | CB193: 10000 | CC193: 450 | CD193: 10000 | CE193: 10000 | CF193: 10000 | CG193: 10000 | CH193: 10000
BF194: 2 | BG194: Heat Pump (Air Cooled) | BH194: Package (1 Phase) | BI194: 1 | BJ194: 0 | BK194: 65000 | BL194: 10.87 | BM194: 14 | BO194: 8 | BP194: 8 | BR194: 10000 | BS194: 10000 | BT194: 10000 | BU194: 10000 | BV194: 10000 | BX194: 10000 | BY194: 10000 | BZ194: 10000 | CA194: 10000 | CB194: 10000 | CC194: 450 | CD194: 10000 | CE194: 10000 | CF194: 10000 | CG194: 10000 | CH194: 10000
BF195: 3 | BG195: Heat Pump (Air Cooled) | BH195: Split (3 Phase) | BI195: 3 | BJ195: 0 | BK195: 65000 | BL195: 9.23 | BM195: 14 | BO195: 7.7 | BP195: 7.7 | BR195: 10000 | BS195: 10000 | BT195: 10000 | BU195: 10000 | BV195: 10000 | BX195: 10000 | BY195: 10000 | BZ195: 10000 | CA195: 10000 | CB195: 10000 | CC195: 150 | CD195: 10000 | CE195: 10000 | CF195: 10000 | CG195: 10000 | CH195: 10000 | CI195: 450
BF196: 4 | BG196: Heat Pump (Air Cooled) | BH196: Package (3 Phase) | BI196: 3 | BJ196: 0 | BK196: 65000 | BL196: 9.23 | BM196: 14 | BO196: 7.7 | BP196: 7.7 | BR196: 10000 | BS196: 10000 | BT196: 10000 | BU196: 10000 | BV196: 10000 | BX196: 10000 | BY196: 10000 | BZ196: 10000 | CA196: 10000 | CB196: 10000 | CC196: 150 | CD196: 10000 | CE196: 10000 | CF196: 10000 | CG196: 10000 | CH196: 10000 | CI196: 450
BF197: 5 | BG197: Heat Pump (Air Cooled) | BH197: Split (3 Phase) Package (3 Phase) | BI197: 3 | BJ197: 65000 | BK197: 135000 | BL197: 11 | BM197: 10.2 | BN197: 12.2 | BO197: 3.3 | BP197: 2.25 | BR197: 10000 | BS197: 10000 | BT197: 10000 | BU197: 10000 | BV197: 10000 | BX197: 10000 | BY197: 10000 | BZ197: 10000 | CA197: 10000 | CB197: 10000 | CC197: 150 | CD197: 10000 | CE197: 10000 | CF197: 10000 | CG197: 10000 | CH197: 10000
BF198: 6 | BG198: Heat Pump (Air Cooled) | BH198: Split (3 Phase) Package (3 Phase) | BI198: 3 | BJ198: 135000 | BK198: 240000 | BL198: 10.6 | BM198: 9.5 | BN198: 11.6 | BO198: 3.2 | BP198: 2.05 | BR198: 10000 | BS198: 10000 | BT198: 10000 | BU198: 10000 | BV198: 10000 | BX198: 10000 | BY198: 10000 | BZ198: 10000 | CA198: 10000 | CB198: 10000 | CC198: 150 | CD198: 10000 | CE198: 10000 | CF198: 10000 | CG198: 10000 | CH198: 10000
BF199: 7 | BG199: Heat Pump (Air Cooled) | BH199: Split (3 Phase) Package (3 Phase) | BI199: 3 | BJ199: 240000 | BK199: 10000000 | BL199: 9.5 | BM199: 9.2 | BN199: 10.6 | BO199: 3.2 | BP199: 2.05 | BR199: 10000 | BS199: 10000 | BT199: 10000 | BU199: 10000 | BV199: 10000 | BX199: 10000 | BY199: 10000 | BZ199: 10000 | CA199: 10000 | CB199: 10000 | CC199: 150 | CD199: 10000 | CE199: 10000 | CF199: 10000 | CG199: 10000 | CH199: 10000
BF200: 8 | BG200: Heat Pump (Air Cooled, Replacing Electric Resistance) | BH200: Split (1 Phase) | BI200: 1 | BJ200: 0 | BK200: 65000 | BL200: 10.87 | BM200: 14 | BO200: 8.2 | BP200: 8.2 | BR200: 10000 | BS200: 10000 | BT200: 10000 | BU200: 10000 | BV200: 10000 | BX200: 10.87 | BY200: 15 | CA200: 8.5 | CB200: 8.5 | CC200: 105 | CD200: 10.87 | CE200: 16 | CG200: 9 | CH200: 9 | CI200: 450
BF201: 9 | BG201: Heat Pump (Air Cooled, Replacing Electric Resistance) | BH201: Package (1 Phase) | BI201: 1 | BJ201: 0 | BK201: 65000 | BL201: 10.87 | BM201: 14 | BO201: 8 | BP201: 8 | BR201: 10000 | BS201: 10000 | BT201: 10000 | BU201: 10000 | BV201: 10000 | BX201: 10.87 | BY201: 15 | CA201: 8.2 | CB201: 8.2 | CC201: 105 | CD201: 10.87 | CE201: 16 | CG201: 8.2 | CH201: 8.2 | CI201: 450
BF202: 10 | BG202: Heat Pump (Air Cooled, Replacing Electric Resistance) | BH202: Split (3 Phase) | BI202: 3 | BJ202: 0 | BK202: 65000 | BL202: 9.23 | BM202: 14 | BO202: 7.7 | BP202: 7.7 | BR202: 10000 | BS202: 10000 | BT202: 10000 | BU202: 10000 | BV202: 10000 | BX202: 9.23 | BY202: 15 | CA202: 8.5 | CB202: 8.5 | CC202: 105 | CD202: 9.23 | CE202: 16 | CG202: 9 | CH202: 9 | CI202: 150
... 167 more rows

Sheet Program Requirements (hidden)
B1: =IF(InstallState<>"",IF(InstallState="UT","Utah",IF(InstallState="WA","Washington",IF(InstallState="CA","California",IF(InstallState="WY","Wyoming",IF(InstallState="ID","Idaho",""))))) & " Program Incentive Offerings and Efficiency Requirements for HVAC Equipment","You Must Select an Install State before viewing this page.") -> Wyoming Program Incentive Offerings and Efficiency Requirements for HVAC Equipment | L1: =IF(AND('HVAC-Tool'!D28="",'HVAC-Tool'!O28=""),"You can see requirements specific to your equipment by selecting the HVAC Type and entering the cooling capacity under the Equipment Information section in the HVAC Tool for at least one equipment line.","") -> You can see requirements specific to your equipment by selecting the HVAC Type and entering the cooling capacity under the Equipment Information section in the HVAC Tool for at least one equipment line.
C2: ="Project-Specific HVAC Incentive Tiers and Minimum Efficiency Requirements" -> Project-Specific HVAC Incentive Tiers and Minimum Efficiency Requirements
P4: =IF(State="WY","$100/Ton Incentive Tier","$75/Ton Incentive Tier") -> $100/Ton Incentive Tier
C5: HVAC Type (selected) | G5: System Type (selected) | H5: Cooling Capacity (BTU/Hr) (selected) | I5: Cooling Capacity (Tons) | J5: Minimum EER | K5: Minimum SEER / IEER | M5: Minimum (HSPF / COP) | O5: Wet/Dry Bulb Temperature (F°)
C8: 1 | D8: =IF('HVAC-Tool'!$D$28="","",'HVAC-Tool'!$D$28) ->  | G8: =IF('HVAC-Tool'!$G28="",IF(OR('HVAC-Tool'!$D28="Heat Pump (Water Cooled)",'HVAC-Tool'!$D28="Ground-Source Heat Pump",'HVAC-Tool'!$D28="Groundwater Source Heat Pump"),"","selection needed"),'HVAC-Tool'!$G28) -> selection needed | H8: =IF('HVAC-Tool'!$O$28="","",'HVAC-Tool'!$O$28) ->  | I8: =IF(H8="","",H8/12000) ->  | J8: =IF(I8="","",IF(VLOOKUP(HVAC!$Y17,HVAC!$BF$10:$CI$63,25)=0," - ",VLOOKUP(HVAC!$Y$17,HVAC!$BF$10:$CI$63,25))) ->  | K8: =IF(I8="","",IF(VLOOKUP(HVAC!$Y17,HVAC!$BF$10:$CI$63,IF(H20<65000,26,27))=0," - ",VLOOKUP(HVAC!$Y17,HVAC!$BF$10:$CI$63,IF(H20<65000,26,27)))) ->  | L8: =IF(K8="","",IF(K8=" - "," - ",IF(H8<65000,"SEER","IEER"))) ->  | M8: =IF(D8="","",IF(OR(D8="Unitary AC (Air Cooled)",D8="Unitary AC (Water Cooled)",D8="Unitary AC (Evaporatively Cooled)"),"n/a",IF(VLOOKUP(HVAC!$Y17,HVAC!$BF$10:$CI$63,28)=0," - ",VLOOKUP(HVAC!$Y17,HVAC!$BF$10:$CI$63,28)))) ->  | N8: =IF(M8="","",IF(M8="n/a","n/a",IF(M8=" - "," - ",IF(H8<65000,"HSPF","COP")))) ->  | O8: =IF(M8="","",IF(M8="n/a","n/a",IF(M8=" - "," - ","47/43"))) -> 
C9: 2 | D9: =IF('HVAC-Tool'!$D$29="","",'HVAC-Tool'!$D$29) ->  | G9: =IF('HVAC-Tool'!$G29="",IF(OR('HVAC-Tool'!$D29="Heat Pump (Water Cooled)",'HVAC-Tool'!$D29="Ground-Source Heat Pump",'HVAC-Tool'!$D29="Groundwater Source Heat Pump"),"","selection needed"),'HVAC-Tool'!$G29) -> selection needed | H9: =IF('HVAC-Tool'!$O$29="","",'HVAC-Tool'!$O$29) ->  | J9: =IF(I9="","",IF(VLOOKUP(HVAC!$Y18,HVAC!$BF$10:$CI$63,25)=0," - ",VLOOKUP(HVAC!$Y$17,HVAC!$BF$10:$CI$63,25))) ->  | K9: =IF(I9="","",IF(VLOOKUP(HVAC!$Y18,HVAC!$BF$10:$CI$63,IF(H21<65000,26,27))=0," - ",VLOOKUP(HVAC!$Y18,HVAC!$BF$10:$CI$63,IF(H21<65000,26,27)))) ->  | L9: =IF(K9="","",IF(K9=" - "," - ",IF(H9<65000,"SEER","IEER"))) ->  | M9: =IF(D9="","",IF(OR(D9="Unitary AC (Air Cooled)",D9="Unitary AC (Water Cooled)",D9="Unitary AC (Evaporatively Cooled)"),"n/a",IF(VLOOKUP(HVAC!$Y18,HVAC!$BF$10:$CI$63,28)=0," - ",VLOOKUP(HVAC!$Y18,HVAC!$BF$10:$CI$63,28)))) ->  | N9: =IF(M9="","",IF(M9="n/a","n/a",IF(M9=" - "," - ",IF(H9<65000,"HSPF","COP")))) ->  | O9: =IF(M9="","",IF(M9="n/a","n/a",IF(M9=" - "," - ","47/43"))) -> 
C10: 3 | D10: =IF('HVAC-Tool'!$D$30="","",'HVAC-Tool'!$D$30) ->  | G10: =IF('HVAC-Tool'!$G30="",IF(OR('HVAC-Tool'!$D30="Heat Pump (Water Cooled)",'HVAC-Tool'!$D30="Ground-Source Heat Pump",'HVAC-Tool'!$D30="Groundwater Source Heat Pump"),"","selection needed"),'HVAC-Tool'!$G30) -> selection needed | H10: =IF('HVAC-Tool'!$O$30="","",'HVAC-Tool'!$O$30) ->  | J10: =IF(I10="","",IF(VLOOKUP(HVAC!$Y19,HVAC!$BF$10:$CI$63,25)=0," - ",VLOOKUP(HVAC!$Y$17,HVAC!$BF$10:$CI$63,25))) ->  | K10: =IF(I10="","",IF(VLOOKUP(HVAC!$Y19,HVAC!$BF$10:$CI$63,IF(H22<65000,26,27))=0," - ",VLOOKUP(HVAC!$Y19,HVAC!$BF$10:$CI$63,IF(H22<65000,26,27)))) ->  | L10: =IF(K10="","",IF(K10=" - "," - ",IF(H10<65000,"SEER","IEER"))) ->  | M10: =IF(D10="","",IF(OR(D10="Unitary AC (Air Cooled)",D10="Unitary AC (Water Cooled)",D10="Unitary AC (Evaporatively Cooled)"),"n/a",IF(VLOOKUP(HVAC!$Y19,HVAC!$BF$10:$CI$63,28)=0," - ",VLOOKUP(HVAC!$Y19,HVAC!$BF$10:$CI$63,28)))) ->  | N10: =IF(M10="","",IF(M10="n/a","n/a",IF(M10=" - "," - ",IF(H10<65000,"HSPF","COP")))) -> 
C11: 4 | D11: =IF('HVAC-Tool'!$D$31="","",'HVAC-Tool'!$D$31) ->  | G11: =IF('HVAC-Tool'!$G31="",IF(OR('HVAC-Tool'!$D31="Heat Pump (Water Cooled)",'HVAC-Tool'!$D31="Ground-Source Heat Pump",'HVAC-Tool'!$D31="Groundwater Source Heat Pump"),"","selection needed"),'HVAC-Tool'!$G31) -> selection needed | H11: =IF('HVAC-Tool'!$O$31="","",'HVAC-Tool'!$O$31) ->  | K11: =IF(I11="","",IF(VLOOKUP(HVAC!$Y20,HVAC!$BF$10:$CI$63,25)=0," - ",VLOOKUP(HVAC!$Y$17,HVAC!$BF$10:$CI$63,25))) ->  | L11: =IF(I11="","",IF(VLOOKUP(HVAC!$Y20,HVAC!$BF$10:$CI$63,IF(H23<65000,26,27))=0," - ",VLOOKUP(HVAC!$Y20,HVAC!$BF$10:$CI$63,IF(H23<65000,26,27)))) ->  | M11: =IF(L11="","",IF(L11=" - "," - ",IF(H11<65000,"SEER","IEER"))) ->  | N11: =IF(D11="","",IF(OR(D11="Unitary AC (Air Cooled)",D11="Unitary AC (Water Cooled)",D11="Unitary AC (Evaporatively Cooled)"),"n/a",IF(VLOOKUP(HVAC!$Y20,HVAC!$BF$10:$CI$63,28)=0," - ",VLOOKUP(HVAC!$Y20,HVAC!$BF$10:$CI$63,28)))) ->  | O11: =IF(N11="","",IF(N11="n/a","n/a",IF(N11=" - "," - ",IF(H11<65000,"HSPF","COP")))) -> 
C12: 5 | D12: =IF('HVAC-Tool'!$D$32="","",'HVAC-Tool'!$D$32) ->  | G12: =IF('HVAC-Tool'!$G32="",IF(OR('HVAC-Tool'!$D32="Heat Pump (Water Cooled)",'HVAC-Tool'!$D32="Ground-Source Heat Pump",'HVAC-Tool'!$D32="Groundwater Source Heat Pump"),"","selection needed"),'HVAC-Tool'!$G32) -> selection needed | H12: =IF('HVAC-Tool'!$O$32="","",'HVAC-Tool'!$O$32) ->  | K12: =IF(I12="","",IF(VLOOKUP(HVAC!$Y21,HVAC!$BF$10:$CI$63,25)=0," - ",VLOOKUP(HVAC!$Y$17,HVAC!$BF$10:$CI$63,25))) ->  | L12: =IF(I12="","",IF(VLOOKUP(HVAC!$Y21,HVAC!$BF$10:$CI$63,IF(H24<65000,26,27))=0," - ",VLOOKUP(HVAC!$Y21,HVAC!$BF$10:$CI$63,IF(H24<65000,26,27)))) ->  | M12: =IF(L12="","",IF(L12=" - "," - ",IF(H12<65000,"SEER","IEER"))) ->  | N12: =IF(D12="","",IF(OR(D12="Unitary AC (Air Cooled)",D12="Unitary AC (Water Cooled)",D12="Unitary AC (Evaporatively Cooled)"),"n/a",IF(VLOOKUP(HVAC!$Y21,HVAC!$BF$10:$CI$63,28)=0," - ",VLOOKUP(HVAC!$Y21,HVAC!$BF$10:$CI$63,28)))) ->  | O12: =IF(N12="","",IF(N12="n/a","n/a",IF(N12=" - "," - ",IF(H12<65000,"HSPF","COP")))) -> 
C13: 6 | D13: =IF('HVAC-Tool'!$D$33="","",'HVAC-Tool'!$D$33) ->  | G13: =IF('HVAC-Tool'!$G33="",IF(OR('HVAC-Tool'!$D33="Heat Pump (Water Cooled)",'HVAC-Tool'!$D33="Ground-Source Heat Pump",'HVAC-Tool'!$D33="Groundwater Source Heat Pump"),"","selection needed"),'HVAC-Tool'!$G33) -> selection needed | H13: =IF('HVAC-Tool'!$O$33="","",'HVAC-Tool'!$O$33) ->  | K13: =IF(I13="","",IF(VLOOKUP(HVAC!$Y22,HVAC!$BF$10:$CI$63,25)=0," - ",VLOOKUP(HVAC!$Y$17,HVAC!$BF$10:$CI$63,25))) ->  | L13: =IF(I13="","",IF(VLOOKUP(HVAC!$Y22,HVAC!$BF$10:$CI$63,IF(H25<65000,26,27))=0," - ",VLOOKUP(HVAC!$Y22,HVAC!$BF$10:$CI$63,IF(H25<65000,26,27)))) ->  | M13: =IF(L13="","",IF(L13=" - "," - ",IF(H13<65000,"SEER","IEER"))) ->  | N13: =IF(D13="","",IF(OR(D13="Unitary AC (Air Cooled)",D13="Unitary AC (Water Cooled)",D13="Unitary AC (Evaporatively Cooled)"),"n/a",IF(VLOOKUP(HVAC!$Y22,HVAC!$BF$10:$CI$63,28)=0," - ",VLOOKUP(HVAC!$Y22,HVAC!$BF$10:$CI$63,28)))) ->  | O13: =IF(N13="","",IF(N13="n/a","n/a",IF(N13=" - "," - ",IF(H13<65000,"HSPF","COP")))) -> 
C14: 7 | D14: =IF('HVAC-Tool'!$D$34="","",'HVAC-Tool'!$D$34) ->  | G14: =IF('HVAC-Tool'!$G34="",IF(OR('HVAC-Tool'!$D34="Heat Pump (Water Cooled)",'HVAC-Tool'!$D34="Ground-Source Heat Pump",'HVAC-Tool'!$D34="Groundwater Source Heat Pump"),"","selection needed"),'HVAC-Tool'!$G34) -> selection needed | H14: =IF('HVAC-Tool'!$O$34="","",'HVAC-Tool'!$O$34) ->  | K14: =IF(I14="","",IF(VLOOKUP(HVAC!$Y23,HVAC!$BF$10:$CI$63,25)=0," - ",VLOOKUP(HVAC!$Y$17,HVAC!$BF$10:$CI$63,25))) ->  | L14: =IF(I14="","",IF(VLOOKUP(HVAC!$Y23,HVAC!$BF$10:$CI$63,IF(H26<65000,26,27))=0," - ",VLOOKUP(HVAC!$Y23,HVAC!$BF$10:$CI$63,IF(H26<65000,26,27)))) ->  | M14: =IF(L14="","",IF(L14=" - "," - ",IF(H14<65000,"SEER","IEER"))) ->  | N14: =IF(D14="","",IF(OR(D14="Unitary AC (Air Cooled)",D14="Unitary AC (Water Cooled)",D14="Unitary AC (Evaporatively Cooled)"),"n/a",IF(VLOOKUP(HVAC!$Y23,HVAC!$BF$10:$CI$63,28)=0," - ",VLOOKUP(HVAC!$Y23,HVAC!$BF$10:$CI$63,28)))) ->  | O14: =IF(N14="","",IF(N14="n/a","n/a",IF(N14=" - "," - ",IF(H14<65000,"HSPF","COP")))) -> 
Q16: =IF(State="WY","$75/Ton Incentive Tier","$50/Ton Incentive Tier") -> $75/Ton Incentive Tier
C17: HVAC Type (selected) | G17: System Type (selected) | H17: Cooling Capacity (BTU/Hr) (selected) | I17: Cooling Capacity (Tons) | J17: Minimum EER | K17: Minimum SEER / IEER | M17: Minimum (HSPF / COP) | O17: Wet/Dry Bulb Temperature (F°)
C20: 1 | D20: =IF('HVAC-Tool'!$D$28="","",'HVAC-Tool'!$D$28) ->  | G20: =IF('HVAC-Tool'!$G28="",IF(OR('HVAC-Tool'!$D28="Heat Pump (Water Cooled)",'HVAC-Tool'!$D28="Ground-Source Heat Pump",'HVAC-Tool'!$D28="Groundwater Source Heat Pump"),"","selection needed"),'HVAC-Tool'!$G28) -> selection needed | H20: =IF('HVAC-Tool'!$O$28="","",'HVAC-Tool'!$O$28) ->  | I20: =IF(H20="","",H20/12000) ->  | J20: =IF(I20="","",IF(VLOOKUP(HVAC!$Y17,HVAC!$BF$10:$CI$63,19)=0," - ",VLOOKUP(HVAC!$Y17,HVAC!$BF$10:$CI$63,19))) ->  | K20: =IF(I20="","",IF(VLOOKUP(HVAC!$Y17,HVAC!$BF$10:$CI$63,IF(H20<65000,20,21))=0," - ",VLOOKUP(HVAC!$Y17,HVAC!$BF$10:$CI$63,IF(H20<65000,20,21)))) ->  | L20: =IF(K20="","",IF(K20=" - "," - ",IF(H20<65000,"SEER","IEER"))) ->  | M20: =IF(D20="","",IF(OR(D20="Unitary AC (Air Cooled)",D20="Unitary AC (Water Cooled)",D20="Unitary AC (Evaporatively Cooled)"),"n/a",IF(VLOOKUP(HVAC!$Y17,HVAC!$BF$10:$CI$63,22)=0," - ",VLOOKUP(HVAC!$Y17,HVAC!$BF$10:$CI$63,22)))) ->  | N20: =IF(M20="","",IF(M20="n/a","n/a",IF(M20=" - "," - ",IF(H20<65000,"HSPF","COP")))) ->  | O20: =IF(M20="","",IF(M20="n/a","n/a",IF(M20=" - "," - ","47/43"))) -> 
C21: 2 | D21: =IF('HVAC-Tool'!$D$29="","",'HVAC-Tool'!$D$29) ->  | G21: =IF('HVAC-Tool'!$G29="",IF(OR('HVAC-Tool'!$D29="Heat Pump (Water Cooled)",'HVAC-Tool'!$D29="Ground-Source Heat Pump",'HVAC-Tool'!$D29="Groundwater Source Heat Pump"),"","selection needed"),'HVAC-Tool'!$G29) -> selection needed | H21: =IF('HVAC-Tool'!$O$29="","",'HVAC-Tool'!$O$29) ->  | J21: =IF(I21="","",IF(VLOOKUP(HVAC!$Y18,HVAC!$BF$10:$CI$63,19)=0," - ",VLOOKUP(HVAC!$Y18,HVAC!$BF$10:$CI$63,19))) ->  | K21: =IF(I21="","",IF(VLOOKUP(HVAC!$Y18,HVAC!$BF$10:$CI$63,IF(H21<65000,20,21))=0," - ",VLOOKUP(HVAC!$Y18,HVAC!$BF$10:$CI$63,IF(H21<65000,20,21)))) ->  | L21: =IF(K21="","",IF(K21=" - "," - ",IF(H21<65000,"SEER","IEER"))) ->  | M21: =IF(D21="","",IF(OR(D21="Unitary AC (Air Cooled)",D21="Unitary AC (Water Cooled)",D21="Unitary AC (Evaporatively Cooled)"),"n/a",IF(VLOOKUP(HVAC!$Y18,HVAC!$BF$10:$CI$63,22)=0," - ",VLOOKUP(HVAC!$Y18,HVAC!$BF$10:$CI$63,22)))) ->  | N21: =IF(M21="","",IF(M21="n/a","n/a",IF(M21=" - "," - ",IF(H21<65000,"HSPF","COP")))) ->  | O21: =IF(M21="","",IF(M21="n/a","n/a",IF(M21=" - "," - ","47/43"))) -> 
C22: 3 | D22: =IF('HVAC-Tool'!$D$30="","",'HVAC-Tool'!$D$30) ->  | G22: =IF('HVAC-Tool'!$G30="",IF(OR('HVAC-Tool'!$D30="Heat Pump (Water Cooled)",'HVAC-Tool'!$D30="Ground-Source Heat Pump",'HVAC-Tool'!$D30="Groundwater Source Heat Pump"),"","selection needed"),'HVAC-Tool'!$G30) -> selection needed | H22: =IF('HVAC-Tool'!$O$30="","",'HVAC-Tool'!$O$30) ->  | J22: =IF(I22="","",IF(VLOOKUP(HVAC!$Y19,HVAC!$BF$10:$CI$63,19)=0," - ",VLOOKUP(HVAC!$Y19,HVAC!$BF$10:$CI$63,19))) ->  | K22: =IF(I22="","",IF(VLOOKUP(HVAC!$Y19,HVAC!$BF$10:$CI$63,IF(H22<65000,20,21))=0," - ",VLOOKUP(HVAC!$Y19,HVAC!$BF$10:$CI$63,IF(H22<65000,20,21)))) ->  | L22: =IF(K22="","",IF(K22=" - "," - ",IF(H22<65000,"SEER","IEER"))) ->  | M22: =IF(D22="","",IF(OR(D22="Unitary AC (Air Cooled)",D22="Unitary AC (Water Cooled)",D22="Unitary AC (Evaporatively Cooled)"),"n/a",IF(VLOOKUP(HVAC!$Y19,HVAC!$BF$10:$CI$63,22)=0," - ",VLOOKUP(HVAC!$Y19,HVAC!$BF$10:$CI$63,22)))) ->  | N22: =IF(M22="","",IF(M22="n/a","n/a",IF(M22=" - "," - ",IF(H22<65000,"HSPF","COP")))) -> 
C23: 4 | D23: =IF('HVAC-Tool'!$D$31="","",'HVAC-Tool'!$D$31) ->  | G23: =IF('HVAC-Tool'!$G31="",IF(OR('HVAC-Tool'!$D31="Heat Pump (Water Cooled)",'HVAC-Tool'!$D31="Ground-Source Heat Pump",'HVAC-Tool'!$D31="Groundwater Source Heat Pump"),"","selection needed"),'HVAC-Tool'!$G31) -> selection needed | H23: =IF('HVAC-Tool'!$O$31="","",'HVAC-Tool'!$O$31) ->  | K23: =IF(I23="","",IF(VLOOKUP(HVAC!$Y20,HVAC!$BF$10:$CI$63,19)=0," - ",VLOOKUP(HVAC!$Y20,HVAC!$BF$10:$CI$63,19))) ->  | L23: =IF(I23="","",IF(VLOOKUP(HVAC!$Y20,HVAC!$BF$10:$CI$63,IF(H23<65000,20,21))=0," - ",VLOOKUP(HVAC!$Y20,HVAC!$BF$10:$CI$63,IF(H23<65000,20,21)))) ->  | M23: =IF(L23="","",IF(L23=" - "," - ",IF(H23<65000,"SEER","IEER"))) ->  | N23: =IF(D23="","",IF(OR(D23="Unitary AC (Air Cooled)",D23="Unitary AC (Water Cooled)",D23="Unitary AC (Evaporatively Cooled)"),"n/a",IF(VLOOKUP(HVAC!$Y20,HVAC!$BF$10:$CI$63,22)=0," - ",VLOOKUP(HVAC!$Y20,HVAC!$BF$10:$CI$63,22)))) ->  | O23: =IF(N23="","",IF(N23="n/a","n/a",IF(N23=" - "," - ",IF(H23<65000,"HSPF","COP")))) -> 
C24: 5 | D24: =IF('HVAC-Tool'!$D$32="","",'HVAC-Tool'!$D$32) ->  | G24: =IF('HVAC-Tool'!$G32="",IF(OR('HVAC-Tool'!$D32="Heat Pump (Water Cooled)",'HVAC-Tool'!$D32="Ground-Source Heat Pump",'HVAC-Tool'!$D32="Groundwater Source Heat Pump"),"","selection needed"),'HVAC-Tool'!$G32) -> selection needed | H24: =IF('HVAC-Tool'!$O$32="","",'HVAC-Tool'!$O$32) ->  | K24: =IF(I24="","",IF(VLOOKUP(HVAC!$Y21,HVAC!$BF$10:$CI$63,19)=0," - ",VLOOKUP(HVAC!$Y21,HVAC!$BF$10:$CI$63,19))) ->  | L24: =IF(I24="","",IF(VLOOKUP(HVAC!$Y21,HVAC!$BF$10:$CI$63,IF(H24<65000,20,21))=0," - ",VLOOKUP(HVAC!$Y21,HVAC!$BF$10:$CI$63,IF(H24<65000,20,21)))) ->  | M24: =IF(L24="","",IF(L24=" - "," - ",IF(H24<65000,"SEER","IEER"))) ->  | N24: =IF(D24="","",IF(OR(D24="Unitary AC (Air Cooled)",D24="Unitary AC (Water Cooled)",D24="Unitary AC (Evaporatively Cooled)"),"n/a",IF(VLOOKUP(HVAC!$Y21,HVAC!$BF$10:$CI$63,22)=0," - ",VLOOKUP(HVAC!$Y21,HVAC!$BF$10:$CI$63,22)))) ->  | O24: =IF(N24="","",IF(N24="n/a","n/a",IF(N24=" - "," - ",IF(H24<65000,"HSPF","COP")))) -> 
C25: 6 | D25: =IF('HVAC-Tool'!$D$33="","",'HVAC-Tool'!$D$33) ->  | G25: =IF('HVAC-Tool'!$G33="",IF(OR('HVAC-Tool'!$D33="Heat Pump (Water Cooled)",'HVAC-Tool'!$D33="Ground-Source Heat Pump",'HVAC-Tool'!$D33="Groundwater Source Heat Pump"),"","selection needed"),'HVAC-Tool'!$G33) -> selection needed | H25: =IF('HVAC-Tool'!$O$33="","",'HVAC-Tool'!$O$33) ->  | K25: =IF(I25="","",IF(VLOOKUP(HVAC!$Y22,HVAC!$BF$10:$CI$63,19)=0," - ",VLOOKUP(HVAC!$Y22,HVAC!$BF$10:$CI$63,19))) ->  | L25: =IF(I25="","",IF(VLOOKUP(HVAC!$Y22,HVAC!$BF$10:$CI$63,IF(H25<65000,20,21))=0," - ",VLOOKUP(HVAC!$Y22,HVAC!$BF$10:$CI$63,IF(H25<65000,20,21)))) ->  | M25: =IF(L25="","",IF(L25=" - "," - ",IF(H25<65000,"SEER","IEER"))) ->  | N25: =IF(D25="","",IF(OR(D25="Unitary AC (Air Cooled)",D25="Unitary AC (Water Cooled)",D25="Unitary AC (Evaporatively Cooled)"),"n/a",IF(VLOOKUP(HVAC!$Y22,HVAC!$BF$10:$CI$63,22)=0," - ",VLOOKUP(HVAC!$Y22,HVAC!$BF$10:$CI$63,22)))) ->  | O25: =IF(N25="","",IF(N25="n/a","n/a",IF(N25=" - "," - ",IF(H25<65000,"HSPF","COP")))) -> 
C26: 7 | D26: =IF('HVAC-Tool'!$D$34="","",'HVAC-Tool'!$D$34) ->  | G26: =IF('HVAC-Tool'!$G34="",IF(OR('HVAC-Tool'!$D34="Heat Pump (Water Cooled)",'HVAC-Tool'!$D34="Ground-Source Heat Pump",'HVAC-Tool'!$D34="Groundwater Source Heat Pump"),"","selection needed"),'HVAC-Tool'!$G34) -> selection needed | H26: =IF('HVAC-Tool'!$O$34="","",'HVAC-Tool'!$O$34) ->  | K26: =IF(I26="","",IF(VLOOKUP(HVAC!$Y23,HVAC!$BF$10:$CI$63,19)=0," - ",VLOOKUP(HVAC!$Y23,HVAC!$BF$10:$CI$63,19))) ->  | L26: =IF(I26="","",IF(VLOOKUP(HVAC!$Y23,HVAC!$BF$10:$CI$63,IF(H26<65000,20,21))=0," - ",VLOOKUP(HVAC!$Y23,HVAC!$BF$10:$CI$63,IF(H26<65000,20,21)))) ->  | M26: =IF(L26="","",IF(L26=" - "," - ",IF(H26<65000,"SEER","IEER"))) ->  | N26: =IF(D26="","",IF(OR(D26="Unitary AC (Air Cooled)",D26="Unitary AC (Water Cooled)",D26="Unitary AC (Evaporatively Cooled)"),"n/a",IF(VLOOKUP(HVAC!$Y23,HVAC!$BF$10:$CI$63,22)=0," - ",VLOOKUP(HVAC!$Y23,HVAC!$BF$10:$CI$63,22)))) ->  | O26: =IF(N26="","",IF(N26="n/a","n/a",IF(N26=" - "," - ",IF(H26<65000,"HSPF","COP")))) -> 
Q28: =IF(State="WY","$50/Ton Incentive Tier","$25/Ton Incentive Tier") -> $50/Ton Incentive Tier
C29: HVAC Type | G29: System Type | H29: Cooling Capacity (BTU/Hr) | I29: Cooling Capacity (Tons) | K29: Minimum EER | L29: Minimum SEER / IEER | N29: Minimum (HSPF / COP) | P29: Wet/Dry Bulb Temperature (F°)
C32: 1 | D32: =IF('HVAC-Tool'!$D$28="","",'HVAC-Tool'!$D$28) ->  | G32: =IF('HVAC-Tool'!$G28="",IF(OR('HVAC-Tool'!$D28="Heat Pump (Water Cooled)",'HVAC-Tool'!$D28="Ground-Source Heat Pump",'HVAC-Tool'!$D28="Groundwater Source Heat Pump"),"","selection needed"),'HVAC-Tool'!$G28) -> selection needed | H32: =IF('HVAC-Tool'!$O$28="","",'HVAC-Tool'!$O$28) ->  | I32: =IF(H32="","",H32/12000) ->  | K32: =IF(I32="","",IF(VLOOKUP(HVAC!$Y17,HVAC!$BF$10:$CI$63,13)=0," - ",VLOOKUP(HVAC!$Y17,HVAC!$BF$10:$CI$63,13))) ->  | L32: =IF(I32="","",IF(VLOOKUP(HVAC!$Y17,HVAC!$BF$10:$CI$63,IF(H32<65000,14,15))=0," - ",VLOOKUP(HVAC!$Y17,HVAC!$BF$10:$CI$63,IF(H32<65000,14,15)))) ->  | M32: =IF(L32="","",IF(L32=" - "," - ",IF(H32<65000,"SEER","IEER"))) ->  | N32: =IF(D32="","",IF(OR(D32="Unitary AC (Air Cooled)",D32="Unitary AC (Water Cooled)",D32="Unitary AC (Evaporatively Cooled)"),"n/a",IF(VLOOKUP(HVAC!$Y17,HVAC!$BF$10:$CI$63,16)=0," - ",VLOOKUP(HVAC!$Y17,HVAC!$BF$10:$CI$63,16)))) ->  | O32: =IF(N32="","",IF(N32="n/a","n/a",IF(N32=" - "," - ",IF(H32<65000,"HSPF","COP")))) ->  | P32: =IF(N32="","",IF(N32="n/a","n/a",IF(N32=" - "," - ","47/43"))) -> 
C33: 2 | D33: =IF('HVAC-Tool'!$D$29="","",'HVAC-Tool'!$D$29) ->  | G33: =IF('HVAC-Tool'!$G29="",IF(OR('HVAC-Tool'!$D29="Heat Pump (Water Cooled)",'HVAC-Tool'!$D29="Ground-Source Heat Pump",'HVAC-Tool'!$D29="Groundwater Source Heat Pump"),"","selection needed"),'HVAC-Tool'!$G29) -> selection needed | H33: =IF('HVAC-Tool'!$O$29="","",'HVAC-Tool'!$O$29) ->  | K33: =IF(I33="","",IF(VLOOKUP(HVAC!$Y18,HVAC!$BF$10:$CI$63,13)=0," - ",VLOOKUP(HVAC!$Y18,HVAC!$BF$10:$CI$63,13))) ->  | L33: =IF(I33="","",IF(VLOOKUP(HVAC!$Y18,HVAC!$BF$10:$CI$63,IF(H33<65000,14,15))=0," - ",VLOOKUP(HVAC!$Y18,HVAC!$BF$10:$CI$63,IF(H33<65000,14,15)))) ->  | N33: =IF(D33="","",IF(OR(D33="Unitary AC (Air Cooled)",D33="Unitary AC (Water Cooled)",D33="Unitary AC (Evaporatively Cooled)"),"n/a",IF(VLOOKUP(HVAC!$Y18,HVAC!$BF$10:$CI$63,16)=0," - ",VLOOKUP(HVAC!$Y18,HVAC!$BF$10:$CI$63,16)))) ->  | P33: =IF(N33="","",IF(N33="n/a","n/a",IF(N33=" - "," - ","47/43"))) -> 
C34: 3 | D34: =IF('HVAC-Tool'!$D$30="","",'HVAC-Tool'!$D$30) ->  | G34: =IF('HVAC-Tool'!$G30="",IF(OR('HVAC-Tool'!$D30="Heat Pump (Water Cooled)",'HVAC-Tool'!$D30="Ground-Source Heat Pump",'HVAC-Tool'!$D30="Groundwater Source Heat Pump"),"","selection needed"),'HVAC-Tool'!$G30) -> selection needed | H34: =IF('HVAC-Tool'!$O$30="","",'HVAC-Tool'!$O$30) ->  | K34: =IF(I34="","",IF(VLOOKUP(HVAC!$Y19,HVAC!$BF$10:$CI$63,13)=0," - ",VLOOKUP(HVAC!$Y19,HVAC!$BF$10:$CI$63,13))) ->  | L34: =IF(I34="","",IF(VLOOKUP(HVAC!$Y19,HVAC!$BF$10:$CI$63,IF(H34<65000,14,15))=0," - ",VLOOKUP(HVAC!$Y19,HVAC!$BF$10:$CI$63,IF(H34<65000,14,15)))) ->  | N34: =IF(D34="","",IF(OR(D34="Unitary AC (Air Cooled)",D34="Unitary AC (Water Cooled)",D34="Unitary AC (Evaporatively Cooled)"),"n/a",IF(VLOOKUP(HVAC!$Y19,HVAC!$BF$10:$CI$63,16)=0," - ",VLOOKUP(HVAC!$Y19,HVAC!$BF$10:$CI$63,16)))) -> 
C35: 4 | D35: =IF('HVAC-Tool'!$D$31="","",'HVAC-Tool'!$D$31) ->  | G35: =IF('HVAC-Tool'!$G31="",IF(OR('HVAC-Tool'!$D31="Heat Pump (Water Cooled)",'HVAC-Tool'!$D31="Ground-Source Heat Pump",'HVAC-Tool'!$D31="Groundwater Source Heat Pump"),"","selection needed"),'HVAC-Tool'!$G31) -> selection needed | H35: =IF('HVAC-Tool'!$O$31="","",'HVAC-Tool'!$O$31) ->  | K35: =IF(I35="","",IF(VLOOKUP(HVAC!$Y20,HVAC!$BF$10:$CI$63,13)=0," - ",VLOOKUP(HVAC!$Y20,HVAC!$BF$10:$CI$63,13))) ->  | L35: =IF(I35="","",IF(VLOOKUP(HVAC!$Y20,HVAC!$BF$10:$CI$63,IF(H35<65000,14,15))=0," - ",VLOOKUP(HVAC!$Y20,HVAC!$BF$10:$CI$63,IF(H35<65000,14,15)))) ->  | N35: =IF(D35="","",IF(OR(D35="Unitary AC (Air Cooled)",D35="Unitary AC (Water Cooled)",D35="Unitary AC (Evaporatively Cooled)"),"n/a",IF(VLOOKUP(HVAC!$Y20,HVAC!$BF$10:$CI$63,16)=0," - ",VLOOKUP(HVAC!$Y20,HVAC!$BF$10:$CI$63,16)))) -> 
C36: 5 | D36: =IF('HVAC-Tool'!$D$32="","",'HVAC-Tool'!$D$32) ->  | G36: =IF('HVAC-Tool'!$G32="",IF(OR('HVAC-Tool'!$D32="Heat Pump (Water Cooled)",'HVAC-Tool'!$D32="Ground-Source Heat Pump",'HVAC-Tool'!$D32="Groundwater Source Heat Pump"),"","selection needed"),'HVAC-Tool'!$G32) -> selection needed | H36: =IF('HVAC-Tool'!$O$32="","",'HVAC-Tool'!$O$32) ->  | K36: =IF(I36="","",IF(VLOOKUP(HVAC!$Y21,HVAC!$BF$10:$CI$63,13)=0," - ",VLOOKUP(HVAC!$Y21,HVAC!$BF$10:$CI$63,13))) ->  | L36: =IF(I36="","",IF(VLOOKUP(HVAC!$Y21,HVAC!$BF$10:$CI$63,IF(H36<65000,14,15))=0," - ",VLOOKUP(HVAC!$Y21,HVAC!$BF$10:$CI$63,IF(H36<65000,14,15)))) ->  | N36: =IF(D36="","",IF(OR(D36="Unitary AC (Air Cooled)",D36="Unitary AC (Water Cooled)",D36="Unitary AC (Evaporatively Cooled)"),"n/a",IF(VLOOKUP(HVAC!$Y21,HVAC!$BF$10:$CI$63,16)=0," - ",VLOOKUP(HVAC!$Y21,HVAC!$BF$10:$CI$63,16)))) -> 
C37: 6 | D37: =IF('HVAC-Tool'!$D$33="","",'HVAC-Tool'!$D$33) ->  | G37: =IF('HVAC-Tool'!$G33="",IF(OR('HVAC-Tool'!$D33="Heat Pump (Water Cooled)",'HVAC-Tool'!$D33="Ground-Source Heat Pump",'HVAC-Tool'!$D33="Groundwater Source Heat Pump"),"","selection needed"),'HVAC-Tool'!$G33) -> selection needed | H37: =IF('HVAC-Tool'!$O$33="","",'HVAC-Tool'!$O$33) ->  | K37: =IF(I37="","",IF(VLOOKUP(HVAC!$Y22,HVAC!$BF$10:$CI$63,13)=0," - ",VLOOKUP(HVAC!$Y22,HVAC!$BF$10:$CI$63,13))) ->  | L37: =IF(I37="","",IF(VLOOKUP(HVAC!$Y22,HVAC!$BF$10:$CI$63,IF(H37<65000,14,15))=0," - ",VLOOKUP(HVAC!$Y22,HVAC!$BF$10:$CI$63,IF(H37<65000,14,15)))) ->  | N37: =IF(D37="","",IF(OR(D37="Unitary AC (Air Cooled)",D37="Unitary AC (Water Cooled)",D37="Unitary AC (Evaporatively Cooled)"),"n/a",IF(VLOOKUP(HVAC!$Y22,HVAC!$BF$10:$CI$63,16)=0," - ",VLOOKUP(HVAC!$Y22,HVAC!$BF$10:$CI$63,16)))) -> 
C38: 7 | D38: =IF('HVAC-Tool'!$D$34="","",'HVAC-Tool'!$D$34) ->  | G38: =IF('HVAC-Tool'!$G34="",IF(OR('HVAC-Tool'!$D34="Heat Pump (Water Cooled)",'HVAC-Tool'!$D34="Ground-Source Heat Pump",'HVAC-Tool'!$D34="Groundwater Source Heat Pump"),"","selection needed"),'HVAC-Tool'!$G34) -> selection needed | H38: =IF('HVAC-Tool'!$O$34="","",'HVAC-Tool'!$O$34) ->  | K38: =IF(I38="","",IF(VLOOKUP(HVAC!$Y23,HVAC!$BF$10:$CI$63,13)=0," - ",VLOOKUP(HVAC!$Y23,HVAC!$BF$10:$CI$63,13))) ->  | L38: =IF(I38="","",IF(VLOOKUP(HVAC!$Y23,HVAC!$BF$10:$CI$63,IF(H38<65000,14,15))=0," - ",VLOOKUP(HVAC!$Y23,HVAC!$BF$10:$CI$63,IF(H38<65000,14,15)))) ->  | N38: =IF(D38="","",IF(OR(D38="Unitary AC (Air Cooled)",D38="Unitary AC (Water Cooled)",D38="Unitary AC (Evaporatively Cooled)"),"n/a",IF(VLOOKUP(HVAC!$Y23,HVAC!$BF$10:$CI$63,16)=0," - ",VLOOKUP(HVAC!$Y23,HVAC!$BF$10:$CI$63,16)))) -> 
D41: ="A/C Efficiency Requirements & Incentive Levels" -> A/C Efficiency Requirements & Incentive Levels | I41: Minimum Efficiency Requirement(s) & Customer Incentive
D42: Equipment Type | G42: Size Category | H42: Sub-Category | I42: =IF(InstallState="WY","Tier 1 $50/ton*",IF(InstallState="CA", "Tier 1 $25/ton*","")) -> Tier 1 $50/ton* | J42: =IF(InstallState="WY","Tier 2 $75/ton*","CEE Tier 1 $50/ton*") -> Tier 2 $75/ton* | K42: =IF(InstallState="WY","Tier 3 $100/ton*","CEE Tier 2 $75/ton*") -> Tier 3 $100/ton*
I43: Tier 0 | J43: Tier 1 | K43: Tier 2
D44: Unitary Commercial Air Conditioners, Air-Cooled | G44: < 65, 000 Btu/hr (single phase) | H44: Split System | I44: =IF(INDIRECT("HVAC!"&INDEX(INDIRECT($T44),MATCH(I$43,Tiers,0))&$S44)=0," -- ",INDIRECT("HVAC!"&INDEX(INDIRECT($T44),MATCH(I$43,Tiers,0))&$S44)&" "&$T44) -> -- | J44: =IF(INDIRECT("HVAC!"&INDEX(INDIRECT($T44),MATCH(J$43,Tiers,0))&$S44)=0," -- ",INDIRECT("HVAC!"&INDEX(INDIRECT($T44),MATCH(J$43,Tiers,0))&$S44)&" "&$T44) -> 16 SEER | K44: -- | S44: 20 | T44: SEER
I45: -- | J45: 13 EER | K45: -- | S45: 20 | T45: EER
H46: Single Package | I46: -- | J46: 16 SEER | K46: -- | S46: 22 | T46: SEER
I47: -- | J47: 12 EER | K47: -- | S47: 22 | T47: EER
G48: < 65, 000 Btu/hr (three phase) | H48: Split System | I48: -- | J48: 15 SEER | K48: 16 SEER | S48: 23 | T48: SEER
I49: -- | J49: 12.5 EER | K49: 13 EER | S49: 23 | T49: EER
H50: Single Package | I50: -- | J50: 15 SEER | K50: 16 SEER | S50: 24 | T50: SEER
I51: -- | J51: 12 EER | K51: 12 EER | S51: 24 | T51: EER
G52: ≥ 65,000 Btu/hr and < 135,000 Btu/hr | H52: Split System and Single Package | I52: -- | J52: 12 EER | K52: 12 EER | S52: 25 | T52: EER
I53: -- | J53: 13.8 IEER | K53: 14.6 IEER | S53: 25 | T53: IEER
G54: ≥ 135,000 Btu/hr and < 240,000 Btu/hr | H54: Split System and Single Package | I54: -- | J54: 12 EER | K54: 12 EER | S54: 26 | T54: EER
I55: -- | J55: 13 IEER | K55: 14 IEER | S55: 26 | T55: IEER
G56: ≥ 240,000 Btu/hr and < 760,000 Btu/hr | H56: Split System and Single Package | I56: -- | J56: 10.3 EER | K56: 10.6 EER | S56: 27 | T56: EER
I57: -- | J57: 12.1 IEER | K57: 13 IEER | S57: 27 | T57: IEER
G58: ≥ 760,000 Btu/hr | H58: Split System and Single Package | I58: -- | J58: 9.7 EER | K58: 10.2 EER | S58: 28 | T58: EER
I59: -- | J59: 11.4 IEER | K59: 12.1 IEER | S59: 28 | T59: IEER | Z59: COP 47 | AA59: COP 17
D60: Unitary Commercial Air Conditioners, Water Cooled | G60: < 65,000 Btu/hr | H60: Split system and Single Package | I60: -- | J60: 14 EER | K60: -- | S60: 34 | T60: EER | W60: EER | X60: SEER | Y60: IEER | Z60: COP | AA60: COP. | AB60: HSPF
I61: -- | J61: -- | K61: -- | S61: 34 | T61: IEER | V61: Tier 0 | W61: BR | X61: BS | Y61: BT | Z61: BU | AA61: BV | AB61: BU
G62: ≥ 65,000 Btu/hr and < 135,000 Btu/hr | I62: -- | J62: 14 EER | K62: -- | S62: 35 | T62: EER | V62: Tier 1 | W62: BX | X62: BY | Y62: BZ | Z62: CA | AA62: CB | AB62: CA
I63: -- | J63: -- | K63: -- | S63: 35 | T63: IEER | V63: Tier 2 | W63: CD | X63: CE | Y63: CF | Z63: CG | AA63: CH | AB63: CG
G64: ≥ 135,000 Btu/hr | I64: -- | J64: 14 EER | K64: -- | S64: 36 | T64: EER
I65: -- | J65: -- | K65: -- | S65: 36 | T65: IEER
D66: Unitary Commercial Air Conditioners, Evaporatively Cooled | G66: < 65,000 Btu/hr | H66: Split System and Single Package | I66: -- | J66: 14 EER | K66: -- | S66: 42 | T66: EER
I67: -- | J67: -- | K67: -- | S67: 42 | T67: IEER
G68: ≥ 65,000 Btu/hr and < 135,000 Btu/hr | I68: -- | J68: 14 EER | K68: -- | S68: 43 | T68: EER
I69: -- | J69: -- | K69: -- | S69: 43 | T69: IEER
G70: ≥ 135,000 Btu/hr | I70: -- | J70: 14 EER | K70: -- | S70: 44 | T70: EER
I71: -- | J71: -- | K71: -- | S71: 44 | T71: IEER
D72: 1. Equipment that meets or exceeds the efficiency requirements listed for the equipment category in the above table may qualify for the listed incentive. Equipment must meet both listed efficiency requirements to qualify for the listed incentives.
D73: 2. Equipment size categories and capacities are specified in terms of net cooling capacity at AHRI standard conditions as determined by AHRI Standard 210/240 for units < 65,000 Btu/hr, AHRI Standard 340/360 for units ≥ 65,000 Btu/hr, and AHRI Standard 310/380 for PTAC and PTHP units.
D74: 3. Units rated only with an IPLV may qualify for the listed incentives if the value meets or exceeds the minimum IPLV established as part of the Consortium for Energy Efficiency Commercial Unitary Air Conditioning and Heat Pump Specification effective January 16, 2009.
D77: EER = Energy Efficiency Ratio
D78: SEER = Seasonal Energy Efficiency Ratio
D79: IEER = Integrated Energy Efficiency Ratio
D80: IPLV = Integrated Part Load Value
D81: CEE = Consortium for Energy Efficiency
D82: AHRI = Air Conditioning, Heating, and Refrigeration Institute
D85: ="Heat Pump Efficiency Requirements & Incentive Levels" -> Heat Pump Efficiency Requirements & Incentive Levels | I85: Minimum Efficiency Requirement(s) & Customer Incentive
D86: Equipment Type | G86: Size Category | H86: Sub-Category | I86: Tier 1 $25/ton* | J86: =IF(InstallState="WY","Tier 2 $75/ton*","CEE Tier 1 $50/ton*") -> Tier 2 $75/ton* | K86: =IF(InstallState="WY","Tier 2 $75/ton*","CEE Tier 2 $75/ton*") -> Tier 2 $75/ton*
D88: Heat Pumps, Air-Cooled (Cooling Mode) | G88: < 65, 000 Btu/hr (single phase) | H88: Split System | I88: =IF(INDIRECT("HVAC!"&INDEX(INDIRECT($T88),MATCH(I$43,Tiers,0))&$S88)=0," -- ",INDIRECT("HVAC!"&INDEX(INDIRECT($T88),MATCH(I$43,Tiers,0))&$S88)&" "&$T88) -> -- | J88: 16 SEER | K88: -- | S88: 10 | T88: SEER
I89: -- | J89: 13 EER | K89: -- | S89: 10 | T89: EER
H90: Single Package | I90: -- | J90: 16 SEER | K90: -- | S90: 11 | T90: SEER
I91: -- | J91: 12 EER | K91: -- | S91: 11 | T91: EER
G92: < 65, 000 Btu/hr (three phase) | H92: Split System | I92: -- | J92: 15 SEER | K92: 16 SEER | S92: 12 | T92: SEER
I93: -- | J93: 12.5 EER | K93: 13 EER | S93: 12 | T93: EER
H94: Single Package | I94: -- | J94: 15 SEER | K94: 16 SEER | S94: 13 | T94: SEER
I95: -- | J95: 12 EER | K95: 12 EER | S95: 13 | T95: EER
G96: ≥ 65,000 Btu/hr and < 135,000 Btu/hr | H96: Split system and single package | I96: -- | J96: 11.6 EER | K96: -- | S96: 14 | T96: EER
I97: -- | J97: 13.4 IEER | K97: -- | S97: 14 | T97: IEER
G98: ≥ 135,000 Btu/hr and < 240,000 Btu/hr | H98: Split system and single package | I98: -- | J98: 10.7 EER | K98: -- | S98: 15 | T98: EER
I99: -- | J99: 12.6 IEER | K99: -- | S99: 15 | T99: IEER
G100: ≥ 240,000 Btu/hr | H100: Split system and single package | I100: -- | J100: 10.1 EER | K100: -- | S100: 16 | T100: EER
I101: -- | J101: 11.6 IEER | K101: -- | S101: 16 | T101: IEER
D102: Heat Pumps, Air-Cooled (Heating Mode) (See Note 2) | G102: < 65, 000 Btu/hr (single phase) | H102: Split system | I102: -- | J102: 9 HSPF | K102: -- | S102: 10 | T102: HSPF
H103: Single package | I103: -- | J103: 8.2 HSPF | K103: -- | S103: 11 | T103: HSPF
G104: < 65, 000 Btu/hr (three phase) | H104: Split system | I104: -- | J104: 8.5 HSPF | K104: 9 HSPF | S104: 12 | T104: HSPF
H105: Single package | I105: -- | J105: 8.2 HSPF | K105: 8.2 HSPF | S105: 13 | T105: HSPF
G106: ≥ 65,000 Btu/hr and < 135,000 Btu/hr | H106: 47°F db/43°F wb outdoor air | I106: -- | J106: 3.4 COP | K106: -- | S106: 14 | T106: COP
H107: 17°F db/15°F wb outdoor air | I107: -- | J107: 2.4 COP. | K107: -- | S107: 14 | T107: COP.
G108: ≥ 135,000 Btu/hr | H108: 47°F db/43°F wb outdoor air | I108: -- | J108: 3.3 COP | K108: -- | S108: 15 | T108: COP
H109: 17°F db/15°F wb outdoor air | I109: -- | J109: 2.1 COP. | K109: -- | S109: 15 | T109: COP.
D110: Heat Pumps, Water-Source (See note 2) | G110: < 135,000 Btu/hr | H110: 86°F Entering Water (Cooling Mode) | I110: -- | J110: 14 EER | K110: -- | S110: 17 | T110: EER
H111: 68°F Entering Water (Heating Mode) | I111: -- | J111: 4.6 COP | K111: -- | S111: 17 | T111: COP
D112: Variable Refrigerant Flow Heat Pumps, Air-Cooled (Cooling Mode) | G112: < 65, 000 Btu/hr | H112: Multi-split System | I112: =IF(INDIRECT("HVAC!"&INDEX(INDIRECT($T112),MATCH(I$43,Tiers,0))&$S112)=0," -- ",INDIRECT("HVAC!"&INDEX(INDIRECT($T112),MATCH(I$43,Tiers,0))&$S112)&" "&$T112) -> -- | J112: -- | K112: -- | S112: 47 | T112: SEER
I113: -- | J113: 13.3 EER | K113: -- | S113: 47 | T113: EER
G114: ≥ 65,000 Btu/hr and < 135,000 Btu/hr | H114: Multi-split System | I114: -- | J114: 13.3 EER | K114: -- | S114: 49 | T114: EER
I115: -- | J115: 14.1 IEER | K115: -- | S115: 49 | T115: IEER
H116: Multi-split System with Heat Recovery | I116: 12.5 EER | J116: -- | K116: -- | S116: 50 | T116: EER
I117: -- | J117: -- | K117: -- | S117: 50 | T117: IEER
G118: ≥ 135,000 Btu/hr and < 240,000 Btu/hr | H118: Multi-split System | I118: 12.5 EER | J118: -- | K118: -- | S118: 51 | T118: EER
I119: -- | J119: -- | K119: -- | S119: 51 | T119: IEER
H120: Multi-split System with Heat Recovery | I120: 11.3 EER | J120: -- | K120: -- | S120: 52 | T120: EER
I121: 14.2 IEER | J121: -- | K121: -- | S121: 52 | T121: IEER
G122: ≥ 240,000 Btu/hr | H122: Multi-split System | I122: 11.1 EER | J122: -- | K122: -- | S122: 53 | T122: EER
I123: 14 IEER | J123: -- | K123: -- | S123: 53 | T123: IEER
H124: Multi-split System with Heat Recovery | I124: 10.9 EER | J124: -- | K124: -- | S124: 54 | T124: EER
I125: 13.7 IEER | J125: -- | K125: -- | S125: 54 | T125: IEER
D126: Variable Refrigerant Flow Heat Pumps, Air-Cooled (Heating Mode) (See Note 2) | G126: < 65, 000 Btu/hr (single phase) | H126: Multi-split system | I126: -- | J126: -- | K126: -- | S126: 47 | T126: HSPF
G127: ≥ 65,000 Btu/hr and < 135,000 Btu/hr | H127: 47°F db/43°F wb outdoor air | I127: -- | J127: -- | K127: -- | S127: 49 | T127: COP
H128: 17°F db/15°F wb outdoor air | I128: -- | J128: -- | K128: -- | S128: 49 | T128: COP.
G129: ≥ 135,000 Btu/hr | H129: 47°F db/43°F wb outdoor air | I129: 8.5 COP | J129: -- | K129: -- | S129: 51 | T129: COP
H130: 17°F db/15°F wb outdoor air | I130: 8.5 COP. | J130: -- | K130: -- | S130: 51 | T130: COP.
D131: Variable Refrigerant Flow Heat Pumps, Water-Source (See note 2) | G131: < 135,000 Btu/hr | H131: Multi-split System, 86°F Entering Water (Cooling Mode) | I131: 10.7 EER | J131: -- | K131: -- | S131: 55 | T131: EER
H132: Multi-split System, 68°F Entering Water (Heating Mode) | I132: 3.2 COP | J132: -- | K132: -- | S132: 55 | T132: COP
D133: Variable Refrigerant Flow Heat Pumps, Water-Source (See note 2) | G133: < 135,000 Btu/hr | H133: Multi-split System with Heat Recovery, 86°F Entering Water (Cooling Mode) | I133: 10.3 EER | J133: -- | K133: -- | S133: 56 | T133: EER
H134: Multi-split System with Heat Recovery, 68°F Entering Water (Heating Mode) | I134: 3.2 COP | J134: -- | K134: -- | S134: 55 | T134: COP
D135: Equipment Type | G135: Size Category | H135: Sub-Category | I135: Energy Star Qualified $50/ton
D137: Heat Pumps, Ground-source (Heating & Cooling Mode) – See note 2 | G137: All sizes | H137: 77° Entering Water | I137: =IF(INDIRECT("HVAC!"&INDEX(INDIRECT($T137),MATCH(J$43,Tiers,0))&$S137)=0," -- ",INDIRECT("HVAC!"&INDEX(INDIRECT($T137),MATCH(J$43,Tiers,0))&$S137)&" "&$T137) -> 17.1 EER | S137: 29 | T137: EER
H138: 32° Entering Water | I138: =IF(INDIRECT("HVAC!"&INDEX(INDIRECT($T138),MATCH(J$43,Tiers,0))&$S138)=0," -- ",INDIRECT("HVAC!"&INDEX(INDIRECT($T138),MATCH(J$43,Tiers,0))&$S138)&" "&$T138) -> 3.6 COP | S138: 29 | T138: COP
D139: Heat Pumps, Groundwater-source (Heating & Cooling Mode) – See note 2 | G139: All sizes | H139: 59° Entering Water | I139: =IF(INDIRECT("HVAC!"&INDEX(INDIRECT($T139),MATCH(J$43,Tiers,0))&$S139)=0," -- ",INDIRECT("HVAC!"&INDEX(INDIRECT($T139),MATCH(J$43,Tiers,0))&$S139)&" "&$T139) -> 21.1 EER | S139: 30 | T139: EER
H140: 50° Entering Water | I140: =IF(INDIRECT("HVAC!"&INDEX(INDIRECT($T140),MATCH(J$43,Tiers,0))&$S140)=0," -- ",INDIRECT("HVAC!"&INDEX(INDIRECT($T140),MATCH(J$43,Tiers,0))&$S140)&" "&$T140) -> 4.1 COP | S140: 30 | T140: COP
D141: 1. Equipment that meets or exceeds the efficiency requirements listed for the size category in the above table may qualify for the listed incentive. Equipment must meet both listed efficiency requirements to qualify for the listed incentives.
D142: 2. Incentives for heat pumps are available per ton of cooling capacity ONLY. No incentives are paid per ton of heating capacity. Heat pumps must meet both the cooling mode and heating mode efficiency requirements to qualify for per ton cooling efficiency incentives.
D143: 3. Equipment size categories and capacities are specified in terms of net cooling capacity at AHRI standard conditions as determined by AHRI Standard 210/240 for units < 65,000 btu/hr, AHRI Standard 340/360 for units ≥ 65,000 btu/hr, and AHRI Standard 310/380 for PTAC/PTHP units.
D144: 4. Ground and Water Source Heat Pumps must meet or exceed listed efficiency requirements when rated in accordance with ISO-13256-1 to qualify for an incentive.
D145: 5. Units rated only with an IPLV may qualify for the listed incentives if the value meets or exceeds the minimum IPLV established as part of the Consortium for Energy Efficiency Commercial Unitary Air Conditioning and Heat Pump Specification effective January 16, 2009.
D148: EER = Energy Efficiency Ratio | H148: IPLV = Integrated Part Load Value
D149: SEER = Seasonal Energy Efficiency Ratio | H149: HSPF = Heating Seasonal Performance Factor
D150: IEER = Integrated Energy Efficiency Ratio | H150: COP = Coefficient of Performance
D151: CEE = Consortium for Energy Efficiency | H151: AHRI = Air Conditioning, Heating, and Refrigeration Institute

Sheet HELP
B2: HVAC Calculator Tool Help
D4: ="The HVAC Calculator Tool estimates savings attributed to the installation of unitary air-cooled air conditioners, air-source heat pumps and water-source heat pumps over an energy code baseline."&" The calculator will also provide incentive amounts available for equipment meeting "&IF(InstallState="","",INDEX(Program_name,MATCH(InstallState,StateAbrev_List,0)))&" program requirements." -> The HVAC Calculator Tool estimates savings attributed to the installation of unitary air-cooled air conditioners, air-source heat pumps and water-source heat pumps over an energy code baseline. The calculator will also provide incentive amounts available for equipment meeting wattsmart Business program requirements.
B5: Applicability
D7: ="The HVAC Calculator Tool may be used to determine savings/incentives in each State where the "&IF(InstallState="","",INDEX(Program_name,MATCH(InstallState,StateAbrev_List,0)))&" program is offered, which includes Northern " &"California, Central and Southeast Washington, Southeast Idaho, and large areas of Wyoming and Utah. " & "The tool computes savings by comparing the user-entered efficiency of the HVAC equipment to the minimum efficiency required by the respective state code. " &"Required efficiencies may include the Energy Efficiency Ratio (EER), Seasonal Energy Efficiency Ratio (SEER), Integrated Energy Effeciency Ratio (IEER), Integrated Part " &"Load Value (IPLV, Coefficient of Performance (COP), and Heating Seasonal Performance Factor (HSPF). " & " Efficiencies and cooling capacities must meet or exceed minimum program requirements and be reported in accordance with the applicable testing standard as listed in the table below. " & " For further details and requirements, please contact your project coordinator or visit wattsmart.com" -> The HVAC Calculator Tool may be used to determine savings/incentives in each State where the wattsmart Business program is offered, which includes Northern California, Central and Southeast Washington, Southeast Idaho, and large areas of Wyoming and Utah. The tool computes savings by comparing the user-entered efficiency of the HVAC equipment to the minimum efficiency required by the respective state code. Required efficiencies may include the Energy Efficiency Ratio (EER), Seasonal Energy Efficiency Ratio (SEER), Integrated Energy Effeciency Ratio (IEER), Integrated Part Load Value (IPLV, Coefficient of Performance (COP), and Heating Seasonal Performance Factor (HSPF). Efficiencies and cooling capacities must meet or exceed minimum program requirements and be reported in accordance with the applicable testing standard as listed in the table below. For further details and requirements, please contact your project coordinator or visit wattsmart.com
D19: Equipment Type | F19: Testing Standard | H19: Note: -Incentives are not available for installations of condensing units only. -Equipment with a system classification of "Split System" must be tested as a complete system including: the indoor (coil) unit and the outdoor (condensing) unit. -If an AHRI certificate does not exist for the installed equipment, please contact your EEA coordinator by calling 1-866-415-9800.
D20: Unitary AC (Air Cooled) | E20: <65,000 btu/h | F20: AHRI 210/240
D21: Unitary AC (Water Cooled) | E21: <65,000 btu/h
D22: Unitary AC (Evaporitvely Cooled) | E22: <65,000 btu/h
D23: Heat Pump (Air Cooled) | E23: <65,000 btu/h
D25: Unitary AC (Air Cooled) | E25: ≥65,000 btu/h | F25: AHRI 340/360
D26: Unitary AC (Water Cooled) | E26: ≥65,000 btu/h
D27: Unitary AC (Evaporitvely Cooled) | E27: ≥65,000 btu/h
D28: Heat Pump (Air Cooled) | E28: ≥65,000 btu/h
D30: Heat Pump (Water Cooled) | F30: ISO 13256-1
D31: Ground-Source Heat Pump
D32: Groundwater Source Heat Pump
D33: VRF Heat Pump (Air Cooled) | F33: AHRI 1230
D34: VRF Heat Pump (Water Cooled)
B36: Instructions
D37: ="The user should input data into the yellow fields in the Project/Customer Information sections, identifying the business name, address, state, and utility account and meter numbers, in addition to the rate schedule the project location is served by."& " Use the drop-down menus to select the equipment and system types in the blue fields identified in the Project Information and Energy/Cost Savings section. Enter the AHRI cooling capacity in Btu/hr."& " Each equipment type with a unique system type and size must be entered on a separate line."& " Once all required the data is entered, the HVAC Calculator will display the estimated savings and available incentive. Click the 'Create Application' button for a PDF copy of the application. "&" To submit follow the instructions as found in the application."&" If zeros are displayed, the equipment may not meet the minimum efficiency requirements to qualify for an incentive. Please contact your project coordinator or refer to the Program Requirements tab for more information." -> The user should input data into the yellow fields in the Project/Customer Information sections, identifying the business name, address, state, and utility account and meter numbers, in addition to the rate schedule the project location is served by. Use the drop-down menus to select the equipment and system types in the blue fields identified in the Project Information and Energy/Cost Savings section. Enter the AHRI cooling capacity in Btu/hr. Each equipment type with a unique system type and size must be entered on a separate line. Once all required the data is entered, the HVAC Calculator will display the estimated savings and available incentive. Click the 'Create Application' button for a PDF copy of the application. To submit follow the instructions as found in the application. If zeros are displayed, the equipment may not meet the minimum efficiency requirements to qualify for an incentive. Please contact your project coordinator or refer to the Program Requirements tab for more information.
B38: Applicable Energy Codes
D39: ="This calculator uses the energy codes listed below as the baseline for calculating energy savings. If a different energy code applies, please contact " & IF(InstallState="","Rocky Mountain Power/Pacific Power",INDEX(Lookups!$E$2:$E$6,MATCH(InstallState,Lookups!$D$2:$D$6,0))) & "." -> This calculator uses the energy codes listed below as the baseline for calculating energy savings. If a different energy code applies, please contact Rocky Mountain Power.
E40: ="California: " -> California: | F40: =INDEX(EnergyCodeBaseline_List,MATCH("CA",StateAbrev_List,0)) -> 2019 Building Efficiency Standards
E41: ="Idaho: " -> Idaho: | F41: =INDEX(EnergyCodeBaseline_List,MATCH("ID",StateAbrev_List,0)) -> International Energy Conservation Code 2009
E42: ="Utah: " -> Utah: | F42: =INDEX(EnergyCodeBaseline_List,MATCH("UT",StateAbrev_List,0)) -> International Energy Conservation Code 2015
E43: ="Washington: " -> Washington: | F43: =INDEX(EnergyCodeBaseline_List,MATCH("WA",StateAbrev_List,0)) -> Washington State Energy Code 2015
E44: ="Wyoming: " -> Wyoming: | F44: =INDEX(EnergyCodeBaseline_List,MATCH("WY",StateAbrev_List,0)) -> International Energy Conservation Code 2009
B46: Applicable Tariffs
D47: ="The incentives are calculated in accordance with the applicable state tariff, with the effective date for each as listed below. For equipment purchased prior to these dates, please contact " & IF(InstallState="","Rocky Mountain Power/Pacific Power",INDEX(Lookups!$E$2:$E$6,MATCH(InstallState,Lookups!$D$2:$D$6,0))) & "." -> The incentives are calculated in accordance with the applicable state tariff, with the effective date for each as listed below. For equipment purchased prior to these dates, please contact Rocky Mountain Power.
E48: California A-115: | F48: =VLOOKUP(LEFT(E48,2),TariffTable,2,FALSE) -> September 24, 2020
E49: Idaho 115: | F49: =VLOOKUP(LEFT(E49,2),TariffTable,2,FALSE) -> January 20, 2018
E50: Utah 140: | F50: =VLOOKUP(LEFT(E50,2),TariffTable,2,FALSE) -> April 23, 2019
E51: Washington 140: | F51: =VLOOKUP(LEFT(E51,2),TariffTable,2,FALSE) -> August 1, 2020
E52: Wyoming 140: | F52: =VLOOKUP(LEFT(E52,2),TariffTable,2,FALSE) -> October 2, 2020
B54: Note
D56: The FinAnswer Express program is transitioning to a new name: wattsmart Business. The name has changed for the Idaho, Utah, Washington and Wyoming territories and is expected to change soon for the territories in California.

Sheet Application NEW (hidden)
F6: General Application
F10: PARTICIPANT INFORMATION
F11: (Check will be issued to the business name and address listed below unless the payment release section below has been filled out)
F12: Participant is (check all that apply) | S12: =IF(CheckBoxLink_AccountHolder=TRUE,"X","") ->  | T12: Customer | Z12: =IF(CheckBoxLink_FacilityOwner=TRUE,"X","") ->  | AA12: Facility Owner | AG12: =IF(CheckBoxLink_ElectricityUser=TRUE,"X","") ->  | AH12: Tenant/Electricity user
S13: FALSE | Z13: FALSE | AG13: FALSE
F14: Participant business name (As shown on income tax return):
F15: =CustomerBusinessName -> 0
F16: Mailing address: | AD16: City: | AN16: State: | AS16: Zip:
F17: =CustomerAddress -> 0 | AD17: =CustomerCity -> 0 | AN17: =CustomerState -> 0 | AS17: =CustomerZip -> 0
F18: Contact name: | AD18: Contact title:
F19: =CustomerContactName -> 0 | AD19: =CustomerContactTitle -> 0
F20: Contact telephone number: | R20: Cell number: | AC20: FALSE | AD20: Contact email address:
F21: =IF(CheckboxLink_CellPhone=FALSE,CustomerContactPhone,0) -> 0 | R21: =IF(CheckboxLink_CellPhone=TRUE,CustomerContactPhone,0) -> 0 | AD21: =CustomerContactEmail -> 0
F23: TAXPAYER IDENTIFICATION (Must be complete in order to receive an incentive)
F24: Participant Federal taxpayer ID number (EIN) or SS#: | AF24: ____ ____ ____ ____ ____ ____ ____ ____ ____
F25: Please check the appropriate box:
H26: Individual or Sole Proprietor | R26: LLC, LLP, or Partnership | AA26: C Corporation | AG26: S Corporation | AM26: Trust/Estate | AS26: Exempt Payee
F29: PROJECT SITE INFORMATION
F30: Facility/Project name:
F31: =ProjectName -> 0
F32: Facility address: | AD32: City: | AN32: State: | AS32: Zip:
F33: =InstallAddress -> 0 | AD33: =InstallCity -> 0 | AN33: =InstallState -> WY | AS33: =InstallZip -> 0
F34: Commercial/Industrial electric account #: | Q34: =AccountNumber -> 0 | AN34: Rate Schedule: | AS34: =RateSchedule -> 0
F36: Electric meter number – seven or eight digits: (If multiple meters at site only enter one) | Q36: =MeterNumber -> 0 | AD36: Customer name: (As shown on bill)
AD37: =AccountName -> 0
F38: Please provide a description of your project so we may better help you:
H40: Lighting Retrofit | U40: Additional project information: (scope and schedule)
G42: X | H42: Listed Equipment Incentives
G44: =IF(OR(ProjectType="New Construction",ProjectType="Major Renovation"),"X","") ->  | H44: New Construction
H46: Custom or Energy Management Incentives
H48: Other:________________________________
F51: INCENTIVE ASSIGNMENT (Complete only if incentive is to be assigned to someone other than participant above)
F52: Check should be made out to:
F53: =IF(OR(IncentivePayeeSelector="Participant Business Address",IncentivePayeeSelector="Project Address"),"n/a",PayeeBusinessName) -> 0
F54: Mailing address: | AD54: City: | AN54: State: | AS54: Zip:
F55: =IF(OR(IncentivePayeeSelector="Participant Business Address",IncentivePayeeSelector="Project Address"),"n/a",PayeeAddress) -> 0 | AD55: =IF(OR(IncentivePayeeSelector="Participant Business Address",IncentivePayeeSelector="Project Address"),"n/a",PayeeCity) -> 0 | AN55: =IF(OR(IncentivePayeeSelector="Participant Business Address",IncentivePayeeSelector="Project Address"),"n/a",PayeeState) -> 0 | AS55: =IF(OR(IncentivePayeeSelector="Participant Business Address",IncentivePayeeSelector="Project Address"),"n/a",PayeeZip) -> 0
F56: Contact name: | AD56: Contact telephone:
F57: =IF(OR(IncentivePayeeSelector="Participant Business Address",IncentivePayeeSelector="Project Address"),"n/a",PayeeContactName) -> 0 | AD57: =IF(OR(IncentivePayeeSelector="Participant Business Address",IncentivePayeeSelector="Project Address"),"n/a",PayeeContactPhone) -> 0
F59: APPLICATION ACKNOWLEDGEMENT
F60: ="By my signature below, I certify that all information provided for participation will be accurate including but not limited to supplemental material and claims of " & "participant and equipment information. I confirm I have read, understand and agree with the TERMS AND CONDITIONS and agree to be bound by them. I authorize " & INDEX(UtilityName_List,MATCH(InstallState,StateAbrev_List,0)) & " to provide my electric account information to consultants associated with the wattsmart Business program." -> By my signature below, I certify that all information provided for participation will be accurate including but not limited to supplemental material and claims of participant and equipment information. I confirm I have read, understand and agree with the TERMS AND CONDITIONS and agree to be bound by them. I authorize Rocky Mountain Power to provide my electric account information to consultants associated with the wattsmart Business program.
F61: Under penalties of perjury, I certify that: 1) The taxpayer identification number is correct, and 2) I am not subject to backup withholding due to failure to report interest and dividend income, and 3) I am a U.S. citizen, resident alien or other U.S. person. The Internal Revenue Service does not require your consent to any provision of this document other than the certifications required to avoid backup withholding.
G63: Signatory name & title (please print) | W63: Participant signature | AM63: Date
G64: ="Effective " & VLOOKUP(InstallState,HVAC!$AE$4:$AG$8,2,FALSE) & " v12/23/2013" -> Effective October 2, 2020 v12/23/2013 | AV64: wattsmart is registered in U.S. Patent and Trademark Office.
F66: TERMS & CONDITIONS
F68: How to participate: | AC68: =INDEX(UtilityName_List,MATCH(InstallState,StateAbrev_List,0)) & " does not warrant the performance of qualifying installed equipment/energy management measures and does not warrant that the qualifying installed equipment/energy management measures will deliver any specified amount of energy or cost savings. " & "Participant shall independently evaluate any advice or direction given by " & INDEX(UtilityName_List,MATCH(InstallState,StateAbrev_List,0)) & " or its consultants related to the estimates of electricity savings or the cost, selection or installation of qualifying equipment/energy management measures. " & "In no event will " & INDEX(UtilityName_List,MATCH(InstallState,StateAbrev_List,0)) & " or its consultants be liable for the failure of the participant to achieve its expected amount of energy savings, for any personal injury or harm to participant’s facilities of any kind, " & "or for any incidental or consequential damages of any kind including hazardous material identification in connection with installation or inspection of qualifying equipment and energy management measures. " & INDEX(UtilityName_List,MATCH(InstallState,StateAbrev_List,0)) & " is not responsible if a third party provides inaccurate information about the amount and/or conditions of the actual incentive and " & INDEX(UtilityName_List,MATCH(InstallState,StateAbrev_List,0)) & " will not pay incentives for equipment that is mislabeled or misrepresented by third parties regarding incentive qualifications." -> Rocky Mountain Power does not warrant the performance of qualifying installed equipment/energy management measures and does not warrant that the qualifying installed equipment/energy management measures will deliver any specified amount of energy or cost savings. Participant shall independently evaluate any advice or direction given by Rocky Mountain Power or its consultants related to the estimates of electricity savings or the cost, selection or installation of qualifying equipment/energy management measures. In no event will Rocky Mountain Power or its consultants be liable for the failure of the participant to achieve its expected amount of energy savings, for any personal injury or harm to participant’s facilities of any kind, or for any incidental or consequential damages of any kind including hazardous material identification in connection with installation or inspection of qualifying equipment and energy management measures. Rocky Mountain Power is not responsible if a third party provides inaccurate information about the amount and/or conditions of the actual incentive and Rocky Mountain Power will not pay incentives for equipment that is mislabeled or misrepresented by third parties regarding incentive qualifications.
F69: Typical incentives:
G70: 1. | H70: Pre-qualification is recommended but not required.
G71: 2. | H71: Purchase and install qualifying equipment.
G72: 3. | H72: Complete general application, technology-specific supplemental equipment form(s), and IRS Form W-9.
G73: 4. | H73: Submit application and all required supplemental forms as directed on supplemental form(s).
F75: Lighting retrofit incentives:
G76: 1. | H76: Pre-qualification is required prior to equipment purchase. Submit general application and IRS Form W-9 to your Project Manager or a wattsmart Business Vendor.
G77: 2. | H77: Participate in inspections prior to the installation or removal of any equipment.
G78: 3. | H78: Incentive offer will be provided to eligible participants. Return signed incentive offer. | AC78: =" " & " The incentive offer is an estimate. The final incentive will be based on actual electric savings and approved actual project costs incurred by the participant for implemented approved energy efficiency measures. " & "Participant agrees to provide any reasonable documentation to allow " & INDEX(UtilityName_List,MATCH(InstallState,StateAbrev_List,0)) & " to determine electric savings and actual costs incurred. To the extent that " & INDEX(UtilityName_List,MATCH(InstallState,StateAbrev_List,0)) & " determines (at its sole discretion) that any of the recommended measures have not been installed and commissioned in a satisfactory manner, " & "participant shall receive a reduced incentive, if any, based on the inspection and verification of installed and commissioned measures." -> The incentive offer is an estimate. The final incentive will be based on actual electric savings and approved actual project costs incurred by the participant for implemented approved energy efficiency measures. Participant agrees to provide any reasonable documentation to allow Rocky Mountain Power to determine electric savings and actual costs incurred. To the extent that Rocky Mountain Power determines (at its sole discretion) that any of the recommended measures have not been installed and commissioned in a satisfactory manner, participant shall receive a reduced incentive, if any, based on the inspection and verification of installed and commissioned measures.
G79: 4. | H79: Complete project and notify your assigned Project Manager or wattsmart Vendor.
G81: 5. | H81: Provide all required documentation and participate in any required inspections.
F82: Custom and energy management incentives:
G83: 1. | H83: Pre-qualification is required prior to equipment purchase/project implementation. Submit general application and IRS Form W-9.
G84: 2. | H84: Participate in project scoping meeting(s), inspections and engineering analysis(s) prior to installation or removal of equipment. Provide additional supplemental applications or information as needed. | AC84: =" "&"If Participant terminates a material portion of its electric service requirements from "&INDEX(UtilityName_List,MATCH(InstallState,StateAbrev_List,0))&"for Participant's Facility within up to 120 months of the date of final incentive payment, Participant is obligated to repay the final incentive to "&INDEX(UtilityName_List,MATCH(InstallState,StateAbrev_List,0))&"within 30 days of written request. The repayment (""Repayment"""&") will be determined as follows:"&CONCATENATE(" Repayment = final incentive x (120-Savings Delivery Term)/120, where Savings Delivery Term = number of months between the month the Final Incentive payment was made and the month the Facility terminated a material portion of its electric service.")&CONCATENATE("For determining the repayment, the dates will be the first day of the month in which they occur.") -> If Participant terminates a material portion of its electric service requirements from Rocky Mountain Powerfor Participant's Facility within up to 120 months of the date of final incentive payment, Participant is obligated to repay the final incentive to Rocky Mountain Powerwithin 30 days of written request. The repayment ("Repayment") will be determined as follows: Repayment = final incentive x (120-Savings Delivery Term)/120, where Savings Delivery Term = number of months between the month the Final Incentive payment was made and the month the Facility terminated a material portion of its electric service.For determining the repayment, the dates will be the first day of the month in which they occur.
G86: 3. | H86: Incentive offer(s) will be provided to eligible participants. Return signed incentive offer within the required time.
G87: 4. | H87: Complete project and provide completion notification to your assigned Project Manager.
G88: 5. | H88: Provide all required documentation and participate in any required inspections.
F89: =" " & "In the event that " & INDEX(UtilityName_List,MATCH(InstallState,StateAbrev_List,0)) & " does not pay the incentive as a result of the participant’s failure to comply with the terms and conditions, the assignee’s sole recourse shall be against participant." -> In the event that Rocky Mountain Power does not pay the incentive as a result of the participant’s failure to comply with the terms and conditions, the assignee’s sole recourse shall be against participant. | AC89: =" " & " Participant hereby transfers to " & INDEX(UtilityName_List,MATCH(InstallState,StateAbrev_List,0)) & " all ""Environmental Attributes"" attributable to the installation of the qualifying equipment or its operation. " & "Environmental Attributes include any and all credits, benefits, emissions reductions, offsets and allowances, howsoever entitled, resulting from the avoidance of the emission of any substance to the air, " & "soil or water at or by the company’s generating facilities, through reduced generation of energy or other savings or offsets on account of the qualifying equipment. " & "Participant will not claim ownership of any Environmental Attributes. " & "As long as participant at the same time states the installation of the qualifying equipment was made possible with funding from " & INDEX(UtilityName_List,MATCH(InstallState,StateAbrev_List,0)) & ", participant may claim that it is facilitating the production of the Environmental Attributes attributable to the qualifying equipment." -> Participant hereby transfers to Rocky Mountain Power all "Environmental Attributes" attributable to the installation of the qualifying equipment or its operation. Environmental Attributes include any and all credits, benefits, emissions reductions, offsets and allowances, howsoever entitled, resulting from the avoidance of the emission of any substance to the air, soil or water at or by the company’s generating facilities, through reduced generation of energy or other savings or offsets on account of the qualifying equipment. Participant will not claim ownership of any Environmental Attributes. As long as participant at the same time states the installation of the qualifying equipment was made possible with funding from Rocky Mountain Power, participant may claim that it is facilitating the production of the Environmental Attributes attributable to the qualifying equipment.
F90: =" " & " Participant agrees to cooperate with " & INDEX(UtilityName_List,MATCH(InstallState,StateAbrev_List,0)) & " and its consultants to conduct energy analysis and inspections at the participant's site. " & INDEX(UtilityName_List,MATCH(InstallState,StateAbrev_List,0)) & " reserves the right to inspect qualifying equipment/energy management measures, which may include a telephone survey, site visit, " & "and/or the installation of temporary monitoring equipment at any time up to 36 months after installation for quality control or program performance evaluations." -> Participant agrees to cooperate with Rocky Mountain Power and its consultants to conduct energy analysis and inspections at the participant's site. Rocky Mountain Power reserves the right to inspect qualifying equipment/energy management measures, which may include a telephone survey, site visit, and/or the installation of temporary monitoring equipment at any time up to 36 months after installation for quality control or program performance evaluations.
F93: =" " & "Neither " & INDEX(UtilityName_List,MATCH(InstallState,StateAbrev_List,0)) & " nor its Program Administrator is providing tax advice or responsible for any tax liability which may be imposed on the participant as a result of any incentive payment. " & "Participant may be responsible for the tax reporting to the IRS of any incentive payments directed to third parties. " -> Neither Rocky Mountain Power nor its Program Administrator is providing tax advice or responsible for any tax liability which may be imposed on the participant as a result of any incentive payment. Participant may be responsible for the tax reporting to the IRS of any incentive payments directed to third parties. | AC93: =" " & " Incentive qualifications and amounts are subject to change and termination at any time. " & "Visit the program’s website or contact a wattsmart Business vendor or " & INDEX(UtilityName_List,MATCH(InstallState,StateAbrev_List,0)) & " for current program information." -> Incentive qualifications and amounts are subject to change and termination at any time. Visit the program’s website or contact a wattsmart Business vendor or Rocky Mountain Power for current program information.
F94: =" " & "Participants may not receive custom incentives in lieu of typical (listed) incentives. " & "Participants are responsible for ensuring that equipment installed for this program meets all applicable codes, standards, environmental regulations and regulatory requirements." -> Participants may not receive custom incentives in lieu of typical (listed) incentives. Participants are responsible for ensuring that equipment installed for this program meets all applicable codes, standards, environmental regulations and regulatory requirements. | AC94: =" " & "Confidential information provided to " & INDEX(UtilityName_List,MATCH(InstallState,StateAbrev_List,0)) & " or consultants shall not be disclosed to any third party. Confidential information shall mean data disclosed during the course of the energy analysis, " & "and identified by the participant in writing as confidential. The obligation to protect confidential information will remain in force for two (2) years from the date the energy analysis is performed." -> Confidential information provided to Rocky Mountain Power or consultants shall not be disclosed to any third party. Confidential information shall mean data disclosed during the course of the energy analysis, and identified by the participant in writing as confidential. The obligation to protect confidential information will remain in force for two (2) years from the date the energy analysis is performed.
F96: Application Supplemental
F97: HVAC - Air-conditioners & Heat Pumps
F99: To apply for wattsmart Business incentives, complete this application supplement and send it with the general incentive application to the address to the right. Please review and confirm each of the qualifying criteria below, as applicable. | AH99: Send completed application by email, mail, or fax to:
AH100: =INDEX(HVACEmail_List,MATCH(InstallState,StateAbrev_List,0)) -> wy.hvacr@rockymountainpower.net
AH101: ="wattsmart Business " & INDEX(MailAddress1_List,MATCH(InstallState,StateAbrev_List,0)) & " " & INDEX(MailCity_List,MATCH(InstallState,StateAbrev_List,0)) & ", " & INDEX(MailState,MATCH(InstallState,StateAbrev_List,0)) & " " & INDEX(MailZip_List,MATCH(InstallState,StateAbrev_List,0)) -> wattsmart Business 2223 S Highland Drive #E6-333 Salt Lake City, UT 84106
H103: Equipment is installed and operating at the site listed on the general application.
H105: The dated sales receipt or invoice is included with labor and material costs itemized.
AH106: =INDEX(ApplyToFaxNL_List,MATCH(InstallState,StateAbrev_List,0)) & " - fax" -> 1-801-266-4787 - fax
H107: Manufacturer’s specification sheet for each installed equipment model is included.
H109: Completed application is submitted within six months of project completion. | AH109: For additional information or assistance, please call 1-855-805-7231

Sheet Lookups (hidden)
A1: Year | B1: YearPlusOne | C1: StateName | D1: StateAbrev | E1: UtilityName | F1: UtilityWebsite | G1: AllianceWebsite | H1: UtilityHotline | I1: FXHotline | J1: UtilityEmail | K1: UtilityFax | L1: VersionNmbr | M1: ApplicationVersionNmber | N1: EffectiveDate | O1: CustInct | P1: CustCap | Q1: HVACEmail | R1: MotorsEmail | S1: FoodServiceEmail | T1: IrrigationEmail | U1: BldgEnvEmail | V1: LightingEmail | W1: CompAirEmail | X1: FarmDairyEmail | Y1: OtherEmail | Z1: NLApplicationEmail | AA1: RateSchedule | AB1: MailAddress1 | AC1: MailAddress2 | AD1: MailCity | AE1: MailState | AF1: MailZip | AG1: States | AH1: OtherUtilityName | AI1: State1 | AJ1: State2 | AK1: State3 | AL1: State1Abb | AM1: State2Abb | AN1: State3Abb | AO1: ST1_RT_Schedule | AP1: ST2_RT_Schedule | AQ1: ST3_RT_Schedule | AR1: ST1_CRD Name | AS1: ST1_CRD Info | AT1: ST1_CRD Number | AU1: ST1_CRD Email | AV1: ST2_CRD Name | AW1: ST2_CRD Number | AX1: ST2_CRD Info | AY1: ST2_CRD Email | AZ1: ST3_CRD Name | BA1: ST3_CRD Number | BB1: ST3_CRD Info | BC1: ST3_CRD Email | BD1: Costpercentage | BE1: Purchase Directions | BF1: Purchase Directions | BG1: NC/MR Pre Purchase Directions | BH1: Letter of intent Note | BI1: Retrofit Directions | BJ1: IA Retrofit Directions | BK1: Other Utility Directions | BL1: St1RetroLightingProcess | BM1: St1NCMRLightingProcess | BN1: St1NonlightProcess | BO1: St1CustomProcess | BP1: St2RetroLightingProcess | BQ1: St2NCMRLightingProcess | BR1: St2NonlightProcess | BS1: St2CustomProcess | BT1: St3RetroLightingProcess | BU1: St3NCMRLightingProcess | BV1: St3NonlightProcess | BW1: St3CustomProcess | BX1: HESWebsite | BY1: ST1FinAnswerWebsite | BZ1: ST2FinAnswerWebsite | CA1: ST3FinAnswerWebsite | CB1: BSTWebsite | CC1: EmailSuffix | CD1: EnergyCodeBaseline | CE1: CodeEffDate | CF1: AbbreviatedCode | CG1: Tariff # | CH1: ApplyToFaxNL | CI1: ApplyToFaxLtg | CJ1: Program name
A2: 2020 | B2: =A2+1 -> 2021 | C2: Utah | D2: UT | E2: Rocky Mountain Power | F2: wattsmart.com | G2: rockymountainpower.net/alliance | H2: 1-800-222-4335 | I2: 1-866-415-9800 | J2: energy.expert@rockymountainpower.net | K2: 801-233-0883 | L2: V 11/14/12 | M2: V 07/01/13 | N2: 2014-07-01 | O2: 0.1 | P2: 50 | Q2: ut.hvacr@rockymountainpower.net | R2: ut.motors@rockymountainpower.net | S2: ut.foodservice@rockymountainpower.net | T2: ut.irrigation@rockymountainpower.net | U2: ut.bldgenvelope@rockymountainpower.net | V2: ut.lighting@rockymountainpower.net | W2: ut.compair@rockymountainpower.net | X2: ut.farmdairy@rockymountainpower.net | Y2: ut.othertech@rockymountainpower.net | Z2: ut.finanswerexpress@rockymountainpower.net | AA2: 6, 6A, 6B, 8, 9, 9A, 10, 12, 15, 21, 23, Supplementary service under Schedule 31 | AB2: 2223 S Highland Drive #E6-333 | AD2: Salt Lake City | AE2: UT | AF2: 84106 | AG2: Utah, Wyoming and Idaho | AH2: Pacific Power | AI2: Utah | AJ2: Wyoming | AK2: Idaho | AL2: UT | AM2: WY | AN2: ID | AO2: 6, 6A, 6B, 8, 9, 9A, 10, 12, 15, 21, 23, Supplementary service under Schedule 31 | AP2: 25, 28, 33, 40, 46, 48, 54, 58, 210, 212, 213 | AQ2: 6, 6A, 8, 9, 12, 19, 23, 23A, 24, 35, 35A | AR2: Mark Clary | AT2: 801.233.0882 | AU2: ut.lighting@rockymountainpower.net | AV2: Jim Soukup | AW2: 307.235.0438 | AY2: wy.lighting@rockymountainpower.net | AZ2: William Gatchel | BA2: 541.727.5386 | BC2: id.lighting@rockymountainpower.net | BD2: 50 | BE2: Lighting retrofits must have a signed incentive agreement prior to purchase of equipment | BL2: Pre-purchase Agreement | BM2: Post-purchase Application | BN2: Post-purchase Application | BO2: Pre-purchase Agreement | BP2: Pre-purchase Agreement | BQ2: Post-purchase Application | BR2: Post-purchase Application | BS2: Pre-purchase Agreement | BT2: Pre-purchase Agreement | BU2: Post-purchase Application | BV2: Post-purchase Application | BW2: Pre-purchase Agreement | BX2: www.homeenergysavings.net | BY2: www.rockymountainpower.net/bus/se/epi/utah/ilc/ef.html | BZ2: www.rockymountainpower.net/bus/se/epi/wyoming/ilc/ef.html | CA2: www.rockymountainpower.net/bus/se/epi/idaho/ilc/ef.html | CB2: www.rockymountainpower.net/bus/bst.html | CC2: @rockymountainpower.net | CD2: International Energy Conservation Code 2015 | CE2: 2010-07-01 | CF2: IECC 2015 | CG2: 140 | CH2: 1-801-266-4786 | CI2: 1-801-233-0883 | CJ2: wattsmart Business
A3: 2020 | B3: =A3+1 -> 2021 | C3: Wyoming | D3: WY | E3: Rocky Mountain Power | F3: rockymountainpower.net/wattsmart | G3: rockymountainpower.net/alliance | H3: 1-800-222-4335 | I3: 1-866-415-9800 | J3: energy.expert@rockymountainpower.net | K3: 307-333-4952 | L3: V 10/01/11 | M3: V 01/01/13 | N3: 2011-10-01 | O3: 0.1 | P3: 70 | Q3: wy.hvacr@rockymountainpower.net | R3: wy.motors@rockymountainpower.net | S3: wy.foodservice@rockymountainpower.net | T3: wy.irrigation@rockymountainpower.net | U3: wy.bldgenvelope@rockymountainpower.net | V3: wy.lighting@rockymountainpower.net | W3: wy.compair@rockymountainpower.net | X3: wy.farmdairy@rockymountainpower.net | Y3: wy.othertech@rockymountainpower.net | Z3: wy.finanswerexpress@rockymountainpower.net | AA3: 25, 28, 33, 40, 46, 48T, 54, 58, 210, 212, 213 | AB3: 2223 S Highland Drive #E6-333 | AD3: Salt Lake City | AE3: UT | AF3: 84106 | AG3: Utah, Wyoming and Idaho | AH3: Pacific Power | AI3: Utah | AJ3: Wyoming | AK3: Idaho | AL3: UT | AM3: WY | AN3: ID | AO3: 6, 6A, 6B, 8, 9, 9A, 10, 12, 15, 21, 23, Supplementary service under Schedule 31 | AP3: 25, 28, 33, 40, 46, 48, 54, 58, 210, 212, 213 | AQ3: 6, 6A, 8, 9, 12, 19, 23, 23A, 24, 35, 35A | AR3: Mark Clary | AT3: 801.233.0882 | AU3: ut.lighting@rockymountainpower.net | AV3: Jim Soukup | AW3: 307.235.0438 | AY3: wy.lighting@rockymountainpower.net | AZ3: William Gatchel | BA3: 541.727.5386 | BC3: id.lighting@rockymountainpower.net | BD3: 50 | BL3: Pre-purchase Agreement | BM3: Post-purchase Application | BN3: Post-purchase Application | BO3: Pre-purchase Agreement | BP3: Pre-purchase Agreement | BQ3: Post-purchase Application | BR3: Post-purchase Application | BS3: Pre-purchase Agreement | BT3: Pre-purchase Agreement | BU3: Post-purchase Application | BV3: Post-purchase Application | BW3: Pre-purchase Agreement | BX3: www.homeenergysavings.net | BY3: www.rockymountainpower.net/bus/se/epi/utah/ilc/ef.html | BZ3: www.rockymountainpower.net/bus/se/epi/wyoming/ilc/ef.html | CA3: www.rockymountainpower.net/bus/se/epi/idaho/ilc/ef.html | CB3: www.rockymountainpower.net/bus/bst.html | CC3: @rockymountainpower.net | CD3: International Energy Conservation Code 2009 | CE3: December 1, 2014 (as determined by Rocky Mountain Power) | CF3: IECC 2009 | CG3: 140 | CH3: 1-801-266-4787 | CI3: 1-541-376-8446 | CJ3: wattsmart Business
A4: 2020 | B4: =A4+1 -> 2021 | C4: Idaho | D4: ID | E4: Rocky Mountain Power | F4: rockymountainpower.net/wattsmart | G4: rockymountainpower.net/alliance | H4: 1-800-222-4335 | I4: 1-866-415-9800 | J4: energy.expert@rockymountainpower.net | K4: 541-376-8446 | L4: V 07/14/12 | M4: V 01/01/13 | N4: 2014-11-01 | O4: 0.1 | P4: 50 | Q4: id.hvacr@rockymountainpower.net | R4: id.motors@rockymountainpower.net | S4: id.foodservice@rockymountainpower.net | T4: id.irrigation@rockymountainpower.net | U4: id.bldgenvelope@rockymountainpower.net | V4: id.lighting@rockymountainpower.net | W4: id.compair@rockymountainpower.net | X4: id.farmdairy@rockymountainpower.net | Y4: id.othertech@rockymountainpower.net | Z4: id.finanswerexpress@rockymountainpower.net | AA4: 6, 6A, 7, 7A, 9, 12, 19, 23, 23A, 24, 35, 35A | AB4: 2223 S Highland Drive #E6-333 | AD4: Salt Lake City | AE4: UT | AF4: 84106 | AG4: Utah, Wyoming and Idaho | AH4: Pacific Power | AI4: Utah | AJ4: Wyoming | AK4: Idaho | AL4: UT | AM4: WY | AN4: ID | AO4: 6, 6A, 6B, 8, 9, 9A, 10, 12, 15, 21, 23, Supplementary service under Schedule 31 | AP4: 25, 28, 33, 40, 46, 48, 54, 58, 210, 212, 213 | AQ4: 6, 6A, 7, 7A, 9, 12, 19, 23, 23A, 24, 35, 35A | AR4: Mark Clary | AT4: 801.233.0882 | AU4: ut.lighting@rockymountainpower.net | AV4: Jim Soukup | AW4: 307.235.0438 | AY4: wy.lighting@rockymountainpower.net | AZ4: William Gatchel | BA4: 541.727.5386 | BC4: id.lighting@rockymountainpower.net | BD4: 50 | BL4: Pre-purchase Agreement | BM4: Post-purchase Application | BN4: Post-purchase Application | BO4: Pre-purchase Agreement | BP4: Pre-purchase Agreement | BQ4: Post-purchase Application | BR4: Post-purchase Application | BS4: Pre-purchase Agreement | BT4: Pre-purchase Agreement | BU4: Post-purchase Application | BV4: Post-purchase Application | BW4: Pre-purchase Agreement | BX4: www.homeenergysavings.net | BY4: www.rockymountainpower.net/bus/se/epi/utah/ilc/ef.html | BZ4: www.rockymountainpower.net/bus/se/epi/wyoming/ilc/ef.html | CA4: www.rockymountainpower.net/bus/se/epi/idaho/ilc/ef.html | CB4: www.rockymountainpower.net/bus/bst.html | CC4: @rockymountainpower.net | CD4: International Energy Conservation Code 2009 | CE4: 2011-01-01 | CF4: IECC 2009 | CG4: 140 | CH4: 1-801-266-4788 | CI4: 1-503-482-7447 | CJ4: wattsmart Business
A5: 2020 | B5: =A5+1 -> 2021 | C5: California | D5: CA | E5: Pacific Power | F5: pacificpower.net/wattsmart | G5: pacificpower.net/alliance | H5: 1-800-222-4335 | I5: 1-866-415-9800 | J5: energy.expert@pacificpower.net | K5: (541) 770-2731 | L5: V 01/19/12 | M5: V 01/01/13 | N5: 2014-07-01 | O5: 0.1 | P5: 70 | Q5: ca.hvacr@pacificpower.net | R5: ca.motors@pacificpower.net | S5: ca.foodservice@pacificpower.net | T5: ca.irrigation@pacificpower.net | U5: ca.bldgenvelope@pacificpower.net | V5: ca.lighting@pacificpower.net | W5: ca.compair@pacificpower.net | X5: ca.farmdairy@pacificpower.net | Y5: ca.othertech@pacificpower.net | Z5: ca.finanswerexpress@pacificpower.net | AA5: A-25, A-32, A-33, A-36, AT-47, AT-48, LS-53, LS-58, OL-42, PA-20 | AB5: 6312 SW Capitol Way #1023 | AD5: Portland | AE5: OR | AF5: 97239 | AG5: California and Washington | AH5: Rocky Mountain Power | AI5: California | AJ5: Washington | AL5: CA | AM5: WA | AO5: A-25, A-32, A-33, A-36, AT-47, AT-48, AWH-31, LS-53, LS-58, OL-42, PA-20, PA-40 | AP5: 24, 33, 36, 40, 47T, 48T, 54 | AR5: Bob Greeley | AT5: 541.601.8088 | AU5: ca.lighting@pacificpower.net | AV5: Lori Sanders | AW5: 509.727.0394 | AX5: - Yakima | AY5: wa.lighting@pacificpower.net | AZ5: William Gatchel | BA5: 541.377.7943 | BB5: - Walla Walla | BC5: wa.lighting@pacificpower.net | BD5: 60 | BE5: Lighting retrofits in Washington must have a signed incentive agreement prior to purchase of equipment. Lighting retrofits in California may be done post-purchase, but pre-approval is recommended. | BG5: Note that pre-purchase incentive agreements are only required in Washington for retrofit projects. Incentive Agreements and Letters of Intent are NOT required for any projects in California or for any New Construction/Major Renovation projects | BH5: Note: Letter of Intent is only required for retrofit projects in California. | BI5: For Washington retrofit projects, instruct customer not to purchase equipment until an incentive agreement is executed. | BJ5: For retrofit projects (except in California), the incentive agreement must be signed BEFORE the customer signs purchase orders or installation contracts for the project. | BK5: For information on Rocky Mountain Power customer incentives in Oregon, contact the Energy Trust of Oregon at www.energytrust.org. | BL5: Post-purchase Application | BM5: Post-purchase Application | BN5: Post-purchase Application | BO5: Pre-purchase Agreement | BP5: Pre-purchase Agreement | BQ5: Post-purchase Application | BR5: Post-purchase Application | BS5: Pre-purchase Agreement | BX5: www.homeenergysavings.net | BY5: www.pacificpower.net/bus/se/epi/california/ilc/ef.html | BZ5: www.pacificpower.net/bus/se/epi/washington/ilc/ef.html | CB5: www.pacificpower.net/bus/bst/index.html | CC5: @pacificpower.net | CD5: 2019 Building Efficiency Standards | CE5: 2010-01-01 | CF5: Title 24 2013 | CG5: 140 | CH5: 1-503-482-7447 | CI5: 1-503-482-7447 | CJ5: wattsmart Business
A6: 2020 | B6: =A6+1 -> 2021 | C6: Washington | D6: WA | E6: Pacific Power | F6: bewattsmart.com | G6: pacificpower.net/alliance | H6: 1-800-222-4335 | I6: 1-866-415-9800 | J6: energy.expert@pacificpower.net | K6: (541) 376-8446 | L6: V 01/01/14 | M6: V 01/01/14 | N6: 2014-01-01 | O6: 0.1 | P6: 70 | Q6: wa.hvacr@pacificpower.net | R6: wa.motors@pacificpower.net | S6: wa.foodservice@pacificpower.net | U6: wa.bldgenvelope@pacificpower.net | V6: wa.lighting@pacificpower.net | W6: wa.compair@pacificpower.net | X6: wa.farmdairy@pacificpower.net | Y6: wa.othertech@pacificpower.net | Z6: wa.finanswerexpress@pacificpower.net | AA6: 24, 33, 36, 40, 47T, 48T, 53, 54 | AB6: 6312 SW Capitol Way #1023 | AD6: Portland | AE6: OR | AF6: 97239 | AG6: California and Washington | AH6: Rocky Mountain Power | AI6: California | AJ6: Washington | AL6: CA | AM6: WA | AO6: A-25, A-32, A-33, A-36, AT-47, AT-48, AWH-31, LS-53, LS-58, OL-42, PA-20, PA-40 | AP6: 24, 33, 36, 40, 47T, 48T, 54 | AR6: Bob Greeley | AT6: 541.601.8088 | AU6: ca.lighting@pacificpower.net | AV6: Lori Sanders | AW6: 509.727.0394 | AX6: - Yakima | AY6: wa.lighting@pacificpower.net | AZ6: William Gatchel | BA6: 541.377.7943 | BB6: - Walla Walla | BC6: wa.lighting@pacificpower.net | BD6: 60 | BL6: Post-purchase Application | BM6: Post-purchase Application | BN6: Post-purchase Application | BO6: Pre-purchase Agreement | BP6: Pre-purchase Agreement | BQ6: Post-purchase Application | BR6: Post-purchase Application | BS6: Pre-purchase Agreement | BX6: www.homeenergysavings.net | BY6: www.pacificpower.net/bus/se/epi/california/ilc/ef.html | BZ6: www.pacificpower.net/bus/se/epi/washington/ilc/ef.html | CB6: www.pacificpower.net/bus/bst/index.html | CC6: @pacificpower.net | CD6: Washington State Energy Code 2015 | CE6: 2013-07-01 | CF6: WSEC 2015 | CG6: 140 | CH6: 1-503-482-7447 | CI6: 1-503-482-7447 | CJ6: wattsmart Business
A12: Business Type List | C12: Install States | E12: Rate Schedules | F12: Rate Schedules(truncated) | H12: Incentive Recipient List
A13: Agriculture - Dairy | C13: CA | E13: =HVAC!BB11 -> WY 212 | F13: =RIGHT(E13,LEN(E13)-3) -> 212
A14: Agriculture - Livestock | C14: ID | E14: =HVAC!BB12 -> WY 210 | F14: =RIGHT(E14,LEN(E14)-3) -> 210 | H14: Project Address
A15: Agriculture - Poultry | C15: UT | E15: =HVAC!BB13 -> WY 58 | F15: 58 | H15: Participant Business Address
A16: Agriculture - Sod | C16: WA | E16: =HVAC!BB14 -> WY 54 | F16: 54 | H16: Other 3rd Party (enter below)
A17: Apartment | C17: WY | E17: =HVAC!BB15 -> WY 48T | F17: 48T
A18: Auditorium | E18: =HVAC!BB16 -> WY 46 | F18: 46
A19: Auto Repair | E19: =HVAC!BB17 -> WY 40 | F19: 40
A20: Automotive facility | E20: =HVAC!BB18 -> WY 33 | F20: 33
A21: Common areas, corridors, restrooms, elevators, lobbies | E21: =HVAC!BB19 -> WY 28 | F21: 28
A22: Condominium | E22: =HVAC!BB20 -> WY 25 | F22: 25
A23: Convenience store | E23: =HVAC!BB21 -> WA 48T | F23: 48T
A24: Convention Center | E24: =HVAC!BB22 -> WA 40 | F24: 40
A25: Courthouse | E25: =HVAC!BB23 -> WA 36 | F25: 36
A26: Data Center | E26: =HVAC!BB24 -> WA 24 | F26: 24
A27: Dining - Bar Lounge / Leisure | E27: =HVAC!BB25 -> 0
A28: Dining - Cafeteria / Fast Food | E28: =HVAC!BB26 -> UT 23 | F28: 23
A29: Dining - Restaurant | E29: =HVAC!BB27 -> UT 10 | F29: 10
A30: Dormitory | E30: =HVAC!BB28 -> UT 9 | F30: 9
A31: Duplex | E31: =HVAC!BB29 -> UT 9A | F31: 9A
A32: Exercise Center/Gymnasium | E32: =HVAC!BB30 -> UT 8 | F32: 8
A33: Financial Institution | E33: =HVAC!BB31 -> UT 6 | F33: 6
A34: General commercial/industrial work buildings | E34: =HVAC!BB32 -> OR 48 | F34: 48
A35: Grocery Stores | E35: =HVAC!BB33 -> OR 30 | F35: 30
A36: Healthcare - Hospital | E36: =HVAC!BB34 -> OR 28 | F36: 28
A37: Healthcare - Medical buildings and clinics | E37: =HVAC!BB35 -> ID 35 | F37: 35
A38: Healthcare - Nursing homes | E38: =HVAC!BB36 -> ID 23 | F38: 23
A39: Healthcare - other | E39: =HVAC!BB37 -> ID 10 | F39: 10
A40: Hotel banquet/conference/exhibition hall | E40: =HVAC!BB38 -> ID 9 | F40: 9
A41: Hotel/motel | E41: =HVAC!BB39 -> ID 6 | F41: 6
A42: Industrial | E42: =HVAC!BB40 -> ID 6A | F42: 6A
A43: Irrigation | E43: =HVAC!BB41 -> CA 48 | F43: 48
A44: Laboratory spaces | E44: =HVAC!BB42 -> CA 36 | F44: 36
A45: Laboratory/Scientific | E45: =HVAC!BB43 -> CA 32 | F45: 32
A46: Laundries | E46: =HVAC!BB44 -> CA 25 | F46: 25
A47: Library | E47: =HVAC!BB45 -> CA PA20 | F47: PA20
A48: Mall | E48: =HVAC!BB46 -> 0
A49: Manufactured Home | E49: =HVAC!BB47 -> 0
A50: Manufacturing Facility | E50: =HVAC!BB48 -> 0
A51: Mixed use
A52: Mobile Home
A53: Multi-Family
A54: Museum/exhibit
A55: Office building, office/administrative areas
A56: Other
A57: Parking Garage
A58: Penitentiary
A59: Police/Fire Station
A60: Post Office
A61: Recreation
A62: Religious Building
A63: Retail/wholesale store
A64: School
A65: School - University
A66: School preK-12 - buildings/classrooms/daycare centers
A67: Service
A68: Single Dwelling
A69: Sports Arena
A70: Theater - motion picture
A71: Theater - performing arts
A72: Town Hall
A73: Transportation
A74: Tree fruit storage
A75: Warehouse - storage areas

Sheet CFR 10.430.32 (hidden)

Sheet IECC 2009 (hidden)

Sheet IECC 2012 (hidden)

Sheet Title 24-2013 (hidden)

Sheet CFR Title 10.431.97 (hidden)

Sheet WSEC 2015 (hidden)

Sheet Change Log (hidden)
A1: Date | B1: Change Description | C1: Name | D1: Previous Revision # | E1: New Revision # | F1: Current Revision (click to check)
A2: 2012-08-16 | B2: updated RMP rates (ID, UT, WY) | C2: Troy Williams | D2: 071412 | E2: 071412.2
A3: 2013-05-15 | B3: Layout-Addition of a "False-front" to collect information for the application print out and allow changes in the look of the calculator without changing any calculations. Addition of application print out option- user may fillout information in the calculator tool and has the option of printing an application for incentives. A printed copy of the "false-front" will be included in the application print out. Additional help buttons-Help buttons have been added to aid the user by providing information and links to AHRI directory and applicable state HVAC catalog. Automatic equipment size to tons- Useful information for the customer and processors Cost/savings information for individual equipment lines- Previous versions calculated this information for the entire project. Information for each equipment line aids the Trade ally to properly inform the customer and aids the customer in decision making. Addition of a program requirements tab-Upon selection of a project state the user may view the minimum efficiency program requirements to qualify for incentives. This information is limited to the equipment requiring calculation using this tool. The user may also find project specific minimum efficiency requirements upon the selection of an equipment type, size, and where applicable a system type. Updates to baseline requirements to allign with state code: UT-IECC 2012, WA-WSEC 2012 Increased functionality to allow input, savings and incentive calculations for: groundsource heat pumps, groundwater source heat pumps, water cooled air conditioners, evaporatively cooled air conditioners. Updates to rate schedules | C3: Troy Williams, Jake DeMann | D3: 71412.2 | E3: 070113.1
A4: 2013-07-02 | B4: Updates to rate schedules | C4: Jake DeMann | D4: 070113.1 | E4: 070113.2
A5: 2013-12-27 | B5: WA now exports to wattsmart Business application. Note: General application has not yet been updated | C5: Jake DeMann | D5: 70113.2 | E5: 010114.1
A6: 2014-01-07 | B6: Updated rates, using Rates for Software 1-1-2014 | C6: Jake DeMann | D6: 010114.1 | E6: 010114.2
A7: 2014-03-05 | B7: Revised incentive calculations to calculate from equipment tons rounded to the nearest tenth | C7: Jake DeMann | D7: 010114.2 | E7: 010114.3
A8: 2014-06-01 | B8: Functionality increased to allow VRF heat pump (air-cooled and water-source only) cost, savings and incentive calculations. Functionality added for all states, active only in UT and WA, disabled in CA, ID, WY Air source VRF heat pumps (multi-split, multi-split with heat recovery) Water source VRF heat pumps (multi-split, multi-split with heat recovery) Calculation methodology the same as all other equipment types, costs developed through survey results. Baseline is code required efficiencies, program minimum efficiency requirements are CEE Tier 1 or better. Program requirements updated to include VRF requirements Code/standard label updates (UT to IECC 2012, CA to Title 24-2013) | C8: Jake DeMann | D8: 010114.3 | E8: 070114.1
A9: 2014-07-15 | B9: QC revisions- help tab codes, tariff dates -spelling correction for VRF multisplit w/heat recovery to match user drop down selection to tool calculations -water source heat pump pre-filling (IEER, COP) programing error correction | C9: Jake DeMann | D9: 070114.1 | E9: 070114.2
A10: 2014-10-27 | B10: Idaho changes: - Updated tariff number and effective date - VRF heat pumps added to HVAC Type drop-down (CA and WY territories will continue to omit this option) - Program name updated to wattsmart Business - Application printout updated to general application/wattsmart business format Other changes: - For projects with invoice dates before effective tariff dates: o Messaging added to contact coordinator for applicable calculator tool o Application will not print for these projects | C10: Jake DeMann | D10: '070114.2 | E10: 110114.1
A11: 2014-11-17 | B11: Fix equipment selection bug | C11: Jake DeMann | D11: 110114.1 | E11: 110114.2
A12: 2014-11-18 | B12: Revised version # and effective date for ID | C12: Jake DeMann | D12: 110114.2 | E12: 111314.1
A13: 2014-11-24 | B13: - WY tariff schedule revised to 140 - WY tariff effective date revised to December 1, 2014 - WY messaging/application revised to wattsmart Business - WY incentive levels revised to $25/ton, $50/ton, $75/ton (previously $50/ton, $75/ton, $100/ton) - VRF functionality allowed for WY projects - WY baseline updated to IECC 2009 | C13: Jake DeMann | D13: 111314.1 | E13: beta 120114
A14: 2014-12-05 | B14: - ID baseline updated to IECC 2012 (matches UT) | C14: Jake DeMann | D14: beta 120114 | E14: beta 010115
A15: 2014-12-15 | B15: Finalized tool, official tool version | D15: beta 010115 | E15: 010115.1
A16: 2015-05-01 | B16: - CA tariff schedule revised to 140 - CA tariff effective date revised to December 1, 2014 - CA messaging/application revised to wattsmart Business - CA incentive levels revised to $25/ton, $50/ton, $75/ton (previously $50/ton, $75/ton, $100/ton) - VRF functionality allowed for CA projects - Single phase air-cooled heat pumps and air conditioner baselines adjusted to match CFR 10-430.32 in all states - Incentives adjusted for single phase air-cooled heat pumps and air conditioners to match Utah tariff effective 5-15-15 and Idaho tariff effective 5-16-15 | C16: Jake DeMann | D16: 10115.1 | E16: beta 051615
A17: 2015-05-01 | B17: -Incentives adjusted for single phase air-cooled heat pumps and air conditioners to match Washington tariff effective 6-1-2015 | C17: Jake DeMann | D17: 051615.1 | E17: beta 060115
A18: 2015-05-21 | B18: Changed formula in N12 on main sheet to state A-140 for CA | C18: Joe Larsen | D18: beta 060115 | E18: 060115.1
A19: 2015-11-20 | B19: -Updated baseline requirements for watersource heat pumps to match Federal regulations effective Oct. 9, 2015 (see tab titled "CFR Title 10.431.97") -Incentives adjusted for single phase air-cooled heat pumps and air conditioners to match Wyoming tariff effective 1-1-2016? | C19: Jake DeMann | D19: 060115.1 | E19: 010116.1
A20: 2016-02-22 | B20: Corrected rate schedule validation look-up ranges | C20: Jake DeMann | D20: 010116.1 | E20: 010116.2
A21: 2016-06-10 | B21: Adjusted WA baselines to match WSEC 2015 Adjusted UT baselines to match IECC 2015 Adjusted minimum efficiency requirements to match proposed WA tariff | C21: Jake DeMann | D21: 010116.2 | E21: beta 071116.1
A22: 2016-07-07 | B22: Updated rates, using Rates for Software 6-17-2016 | C22: Jake DeMann | D22: beta 071116.1 | E22: 071116.1
A23: 2016-11-15 | B23: Unlocked version for updating Modified air cooled VRF heat-pump baselines and minimum efficiency requirements. Baselines now align with WSEC 2015 values for unitary air conditioners. Baseline decisions were based on ASHRAE 90.1 -2013 Appendix G Selection and CBECS 2012 Building Stock Characteristics for the Pacific Region. Used to determine what is the most probable HVAC system type VRF will be replacing or installed in place of. | C23: Jake DeMann | E23: beta 010117.1
A24: 2017-01-06 | B24: Revised version # and effective date for WA Locked tool | C24: Jake DeMann | D24: beta 010117.1 | E24: 010117.1
A25: 2017-11-01 | B25: WA incentive fix | C25: Jake DeMann | D25: 010117.1 | E25: 010117.2
A26: 2017-01-23 | B26: UT and ID program change updates and Federal Baseline adjustments | C26: Jake DeMann | D26: 010117.2 | E26: 010117.3
A27: 2018-12-26 | B27: WY, UT, WA rate change. Update WY and WA CEE specifications effective 1/1/2019 | C27: Van Le | D27: 010117.3 | E27: 122618
A28: 2019-02-01 | B28: WY, UT, WY rate correction. Update UT CEE specifications effective 1/1/2019 | C28: Van Le | D28: 122618 | E28: 122618.1
A29: 2019-02-19 | B29: WA CEE specification correction. CA & ID rate updates | C29: Van Le | D29: 122618.1 | E29: 122618.1.2
A30: 2019-02-21 | B30: VRF incentive adjustment to $125/ton. Added Incentive ($/ton) (column H) on the "HVAC-Tool" Tab. Update language for the General application the "Application NEW" tab; add hyperlinks to IRS W-9 form and the "find a vendor" search. | C30: Van Le | D30: 122618.1.2 | E30: 122618.2
A31: 2019-03-08 | B31: Update tools for the UT 4/24/2019 tariff change | C31: Van Le | D31: 122618.2 | E31: 042419
A32: 2019-07-01 | B32: Fix VRF HP efficiency requirement for UT | C32: Van Le | D32: 042419 | E32: 042419.2
A33: 2019-07-16 | B33: Fix efficiency requirements for ID, UT, WY, and WA. Update rates using Rates for Software 6.18.2019 | C33: Van Le | D33: 042419.2 | E33: 042419.3
A34: 2020-01-13 | B34: Updated minimum efficiencies to match new WA program. Update rates using Rates for Software 11.22.2019 for WA. | C34: Drew Petersen | D34: 042419.3 | E34: 010120.1
A35: 2020-02-28 | B35: Updated minimum efficiencies for Utah 2020 tariff. Update rates using Rates for Software 11.22.2019 for UT and WY. Fixed minor eligibility issues outlined in the HVAC Calculator Tool QC 022820 Google document. https://docs.google.com/document/d/1EzsO6je0Sqt-F_2D3E_tZKDqTe5ZXgRT7pHhxwJzrX4/edit# | C35: Van Le | D35: 010120.1 | E35: 010120.2
A36: 2020-07-01 | B36: Update Wyoming with bonus incentives from Covid-19 effective 6/22/2020 | C36: Van Le | D36: 10120.2 | E36: 70120.1
A37: 2020-07-30 | B37: Update Washington with bonus incentives from Covid-19 effective 8/1/2020 | C37: Van Le | D37: 70120.1 | E37: 73020.1
A38: 2020-10-21 | B38: Fix incentive calculation for HP replacing ER (HVAC tab, col Q). Add deemed incremental cost HP replacing ER for payback calculation. Update California to the latest tariff effective 9/24/2020. Fix WA minimum eligibility requirements, which were previously incorrect Revise lock tool macro to hide the "Program Requirements" tab. The tab needs revision for a more professional look; however, it is rarely used, so it should stay hidden for now. Update some information in the "Lookups" tab, but this tab needs more work. | C38: Van Le | D38: 73020.1 | E38: 73020.2
A39: 2020-10-27 | B39: Expand ground-source heat pump to Air-to-Air and Water-to-Water with loop types in Wyoming. Minimum efficiency requirement is Energy Star | C39: Van Le | D39: 73020.2 | E39: 73020.3
A40: 2020-11-10 | B40: Add baseline and minimum efficiency EER reqs to AC in all states (EER = 11). The program doesn't require equipment to meet a specific EER, but the kW and deemed cost is not calculated correctly without these values coded into the tool. | C40: Van Le | D40: 70320.2 | E40: 70320.4
A41: 2021-01-05 | B41: Moved the Wyoming VRF efficiency reqs from CD:CI (Tier 3) to BR:BW (Tier 1). Change the Tier 1 incentives to $125 in Wyoming (cell BU311). This change is to accommodate the higher VRF incentives ($75 to $125/ton) effective 10/2/2020. This incentive increase is not part of the Covid-19 bonus incentive. Changed the efficiency reqs for VRF < 65 kBtu in California to be the same as the baseline. | C41: Van Le | D41: 70320.4 | E41: 70320.5 | F41: a
A42: Next time | B42: If the bonus incentive is removed, remember to revise the California incentives so it calculates correctly (HVAC tab, row 189)

Sheet Sheet1 (hidden)
